{"text_format":"1","workbook":"xlsx","n_sheets":3,"sheets":["Présentation","Bibliothèque","Etiquettes"],"not_rendered":{"charts":0,"images":1,"macros":1,"external_links":0,"defined_names":4,"comments":0,"pivot_tables":0},"unopened":[],"bounds":{"document_bytes":16777216,"sheet_cells":100000,"rows_first":2000,"rows_last":500,"rows_between":2000,"halvings":0,"cell_chars":16384,"cell_head_chars":4096},"cells_cut":0,"cells_raw":0,"read":"whole","date_system":"1900"}

{"sheet":"Présentation","index":0,"n_rows":28,"n_cols":9,"rows_kept":28,"cut":false,"hidden":false,"merged":[[0,0,0,1]]}
["Présentation de la bibliothèque d'indicateurs EcoCité"]
[]
["Explication des fiches indicateurs"]
["Intitulé court :","Nom général de l’indicateur \n"]
["Intitulé long : ","Nom opérationnel de l’indicateur"]
["Type d'indicateur :","Echelle (territorial ou spécifique) et Nature (Réalisation, Résultat ou Impact)"]
["Définition :","Définition des termes de l’indicateur, de sa finalité et son utilité"]
["Méthode de calcul :","Méthodes et hypothèses de calcul ou évaluation"]
["Périmètre technique :","Postes à prendre en compte dans le calcul"]
["Unité :","Unité(s) de l’indicateur"]
["Périmètre géographique :","Périmètre géographique de calcul (Action, Quartier, EPCI, Autre)"]
["Périodicité","Fréquence de remplissage de l'indicateur (ponctuel ou évolution)"]
["Source des données :","Où trouver les données pour calculer cet indicateur"]
["Origine de l'indicateur :","Référentiel d’origine de l’indicateur ou personne/EcoCité l’ayant créé"]
[]
["Vous pouvez choisir des critères de filtre :"]
["Choix du domaine d'action"]
["Choix de l'objectif"]
[]
["Domaine d'action","Objectif"]
[]
[]
[]
[]
[null,null,null,null,null,null,null,null," "]
[]
[]
[null,null,null,null,null,null,null," "]

{"sheet":"Bibliothèque","index":1,"n_rows":200,"n_cols":82,"rows_kept":200,"cut":false,"hidden":false,"merged":[[0,0,0,1],[1,23,1,27],[1,2,2,2],[1,5,2,5],[1,6,2,6],[1,11,2,13],[1,7,2,10],[1,18,1,19],[1,0,2,0],[1,1,2,1],[1,14,1,17],[1,3,1,4],[1,20,2,22]]}
["Bibliothèque d'indicateurs"]
[null,"Intitulé court","Intitulé long","Type d'indicateur",null,"Définition","Méthode de calcul","Périmètre technique\n(quels postes de calcul)",null,null,null,"Unités",null,null,"Périmètre géographique",null,null,null,"Préiodicité",null,"Sources des données",null,null,"Origine de l'indicateur",null,null,null,null,null,{"$f":"Etiquettes!B2","v":"Gestion de l'eau et de l'assainissement"},{"$f":"Etiquettes!B3","v":"Collecte, valorisation et traitement des déchets"},{"$f":"Etiquettes!B4","v":"Monitoring, données et modélisation urbaine"},{"$f":"Etiquettes!B5","v":"Eclairage public"},{"$f":"Etiquettes!B6","v":"Réseaux et smart grid"},{"$f":"Etiquettes!B7","v":"Production d’énergie "},{"$f":"Etiquettes!B8","v":"Stockage de l’énergie"},{"$f":"Etiquettes!B9","v":"Transports en commun"},{"$f":"Etiquettes!B10","v":"Service d'aide à la mobilité"},{"$f":"Etiquettes!B11","v":"Pôle intermodal"},{"$f":"Etiquettes!B12","v":"Véhicules individuels motorisés"},{"$f":"Etiquettes!B13","v":"Logistique urbaine"},{"$f":"Etiquettes!B14","v":"Modes actifs"},{"$f":"Etiquettes!B15","v":"Stationnement "},{"$f":"Etiquettes!B16","v":"Construction"},{"$f":"Etiquettes!B17","v":"Rénovation"},{"$f":"Etiquettes!B18","v":"Exploitation dans les bâtiments"},{"$f":"Etiquettes!B19","v":"Instrumentation et suivi de performance"},{"$f":"Etiquettes!B20","v":"Aménagement des espaces publics"},{"$f":"Etiquettes!B21","v":"Trame viaire et trame bâtie"},{"$f":"Etiquettes!B22","v":"Espaces Verts, Milieux naturels et aquatiques"},{"$f":"Etiquettes!B23","v":"Agriculture urbaine"},{"$f":"Etiquettes!B24","v":"Gestion des sols et des déblais"},{"$f":"Etiquettes!B25","v":"Gestion des risques"},{"$f":"Etiquettes!B26","v":"Education, sensibilisation et formation"},{"$f":"Etiquettes!B27","v":"Culture, loisirs et patrimoine"},{"$f":"Etiquettes!B28","v":"Service de santé et de soins"},{"$f":"Etiquettes!B29","v":"Application numérique et site web"},{"$f":"Etiquettes!B30","v":"Conciergerie"},{"$f":"Etiquettes!B31","v":"Espaces de vivre ensemble"},{"$f":"Etiquettes!B32","v":"Economie circulaire"},{"$f":"Etiquettes!B33","v":"Economie sociale et solidaire"},{"$f":"Etiquettes!B34","v":"Economie collaborative"},{"$f":"Etiquettes!B35","v":"Incubateurs et clusters de R&D"},{"$f":"Etiquettes!D2","v":"Renforcer l'emploi et l'économie locale"},{"$f":"Etiquettes!D3","v":"Assurer la connectivité et l'accès aux aménités sur le territoire"},{"$f":"Etiquettes!D4","v":"Promouvoir la qualité des aménités, des espaces publics et du cadre de vie"},{"$f":"Etiquettes!D5","v":"Favoriser la santé et le bien-être"},{"$f":"Etiquettes!D6","v":"Garantir l’équité sociale et inter-générationnelle"},{"$f":"Etiquettes!D7","v":"Garantir l’intégration socio-économique"},{"$f":"Etiquettes!D8","v":"Encourager la résilience des territoires et s'adapter aux effets du changement climatique"},{"$f":"Etiquettes!D9","v":"Assurer la résilience et l'efficience économique du projet"},{"$f":"Etiquettes!D10","v":"Réduire les émissions de gaz à effet de serre et économiser l'énergie\n"},{"$f":"Etiquettes!D11","v":"Réduire la pollution"},{"$f":"Etiquettes!D12","v":"Protéger, restaurer et valoriser la biodiversité et les écosystèmes"},{"$f":"Etiquettes!D13","v":"Maîtriser les ressources foncières"},{"$f":"Etiquettes!D14","v":"Gérer les ressources naturelles de façon durable et diminuer la production de déchets"},{"$f":"Etiquettes!D15","v":"Protéger, préserver et gérer les ressources en eau"},"Domaine d'action","Objectif"]
[null,null,null,"Spécifique","Territorial",null,null,null,null,null,null,null,null,null,"Action","Quartier","EPCI","Autre","Evolution","Ponctuel",null,null,null,"CITYkeys","ISO","RFSC","EcoCité","Autre",null,"x","x","x","x","x","x","x","x","x","x","x","x","x","x","x","x","x","x","x","x","x","x","x","x","x","x","x","x","x","x","x","x","x","x","x","x","x","x","x","x","x","x","x","x","x","x","x","x","x","x"]
[1,"Accompagnement aux écogestes","Nombre de ménages accompagnés pour la maîtrise des consommations et à l'adoption d'éco-gestes","Réalisation",null,"L'indicateur permet de calculer le nombre de ménages qui ont bénéficié d'un accompagnement en vue d'apprendre à réduire leurs consommations d'eau et d'énergie, à se servir de la domotique, à réaliser le tri des déchets, etc.\nLe porteur devra préciser en quoi à consister l'accompagnement (Réunions d'information publiques, animateur du quartier, ambassadeurs de tri, etc.).","L'indicateur mesure le nombre de ménages accompagnés pendant une période donnée.",null,null,null,null,"Nombre de ménages",null,null,"x",null,null,null,"x","x","Données issues du projet",null,null,null,null,null,null,null,null,null,null,null,null,null,null,null,null,null,null,null,null,null,null,"x","x","x",null,null,null,null,null,null,null,"x"]
[2,"Construction de logements","Nombre de logements construits","Réalisation","Réalisation","Il s’agit du nombre de logements ayant fait l’objet d’un permis de construire accepté.\n","Méthode de calcul :\nL'indicateur spécifique concerne les logements construits grâce au PIA VDD. \nL'indicateur territorial concerne tous les logements construits sur le territoire (ayant fait l'objet d'un permis de construire).",null,null,null,null,"Nombre de logements","m2",null,"x",null,null,null,null,"x","Données issues du projet (dossier de réalisation de ZAC, dossiers Permis de Construire déposés)",null,null,null,null,null,"EcoCité générique REAL 1",null,null,null,null,null,null,null,null,null,null,null,null,null,null,null,null,"x"]
[3,"Espaces de nature ","Surface cumulée d'espace de nature et d'espace aménagés de nature en ville ","Réalisation","Réalisation","Cet indicateur décrit la surface d’espace de nature ou espace vert en milieu urbain. Cet indicateur peut être calculé à l’échelle d’un projet, il semble toutefois plus intéressant à l’échelle d’une ville étant donné que la fréquentation, les usages et les déplacements des habitants peuvent nécessiter la prise en considération d’espaces naturels situés en dehors du périmètre du projet d’aménagement.","Il s'agit de comptabiliser la surface accumulée d'espaces verts ou de nature au sein d'un périmètre donné.",null,null,null,null,"m²",null,null,"x","x","x",null,"x","x","Plan masse d'un projet et tableau de programmation typologique (ou par ratio) de l'opération",null,null,null,null,null,"Adapté indicateur spécifique, Bordeaux, parc aux Angéliques","AEU2",null,null,null,null,null,null,null,null,null,null,null,null,null,null,null,null,null,null,null,"x",null,"x"]
[4,"Linéaire de transports en commun en site propre","Linéaire de transport en commun en site propre financé par le PIA","Réalisation",null,"Cet indicateur permet de quantifier le linéaire d’infrastructures de transport en commun en site propre mis en service et qui a été financé grâce au PIA VDD.","Cet indicateur se calcule en mesurant le linéaire d'infrastructures de transport en commun en site propre au sein d'un périmètre donné.",null,null,null,null,"mètre linéaire",null,null,"x",null,null,null,null,"x","Données issues du projet","Autorisation d’exploitation par un représentant de l’Etat",null,null,null,null,"EcoCité générique REAL 5",null,null,null,null,null,null,null,null,null,"x"]
[5,"Linéaire de voiries à vitesse limitée","Linéaire de voiries \"apaisées\" avec une vitesse limitée au plus à 30km/h ","Réalisation","Réalisation","Cet indicateur vise à mesurer les efforts consentis en vue de modérer les vitesses de circulation des véhicules motorisés, ce qui permet à la fois d'améliorer le cadre de vie, d'encourager les mobilités douces et de garantir la sécurité des espaces.","L'indicateur se calcule ainsi :\nlinéaire de voirie où la vitesse est limitée à 20 ou 30 km/h (zones 30, aires piétonnes et zones de rencontre) / longueur totale des voiries du secteur (en Km linéaires)",null,null,null,null,"% de voirie",null,null,"x","x","x",null,null,"x","Plan masse (lot VRD) ou plan de voirie à l'échelle de la ville",null,null,null,null,null,null,"AEU2/Strasbourg",null,null,null,null,null,null,null,null,null,null,null,"x",null,"x",null,null,null,null,null,null,"x"]
[6,"Linéaire du réseau de canalisation","Longueur cumulée en m du réseau de canalisation construit par le projet","Réalisation",null,"Cet indicateur vérifie l'atteinte des objectifs opérationnels initiaux visés par le projet. Il s'agit d'un indicateur de suivi (réalisation)","L'indicateur se calcule ainsi : \nLongueur cumulée en mètres linéaires du réseau de canalisation construit /longueur totale prévue par le projet",null,null,null,null,"mètre linéaire","%",null,"x",null,null,null,null,"x","Données issues du projet (dossier DCE Espaces publics)",null,null,null,null,null,null,null,null,"x"]
[7,"Linéaire du réseau de chaleur ou de froid","Linéaire du réseau de chaleur ou de froid","Réalisation",null,"Cet indicateur vise à mesurer la longueur de canalisations nouvelles déployées dans le cadre de la construction ou du raccordement au réseau.","L'indicateur se calcule ainsi :\nLongueur en mètres linéaires de canalisations",null,null,null,null,"mètre linéaire","km linéaire",null,"x",null,null,null,null,"x","Données gestionnaire du réseau ou données PRO/DCE Espaces Publics dans le cadre d'une opération d'aménagement",null,null,null,null,null,null,null,null,null,null,null,null,"x"]
[8,"Nombre d'arbres plantés","Nombre d'arbres plantés","Réalisation",null,"Cet indicateur de réalisation vise à évaluer l'effort de végétalisation sur le projet.","Il se calcule en comptabilisant le nombre de pieds d'arbres plantés au sein d'un périmètre donné.",null,null,null,null,"Nombre d'arbres",null,null,"x",null,null,null,"x","x","Notice paysagère en phase PRO/DCE d'un projet ou données du service Espaces verts de la collectivité",null,null,null,null,null,null,"Atelier de concertation",null,null,null,null,null,null,null,null,null,null,null,null,null,null,null,"x","x",null,null,"x",null,"x"]
[9,"Nombre de bornes billettiques","Nombre de bornes billettiques implantées","Réalisation","Réalisation","L'installation de bornes billettiques permet de faciliter l'utilisation des transports en commun en simplifiant les procédures d'achat, validation, l'intermodalité, etc.",null,"Possibilité de calcul dans certains lieux particuliers (ex : quartiers prioritaires)",null,null,null,"Nombre de bornes billettiques",null,null,"x",null,"x",null,"x","x","Données issues du projet",null,null,null,null,null,"Indicateur Spécifique, Montpellier, Plateforme EMMA",null,null,null,null,null,null,null,null,null,null,"x"]
[10,"Nombre de bornes de recharge","Nombre de bornes de recharge pour véhicules électriques installées grâce au PIA","Réalisation",null,"Cet indicateur vérifie l'atteinte des objectifs opérationnels initiaux visés par le projet. Il s'agit d'un indicateur de suivi (réalisation)","L'indicateur se calcule en comptabilisant le nombre de bornes installées."," ",null,null,null,"Nombre de bornes",null,null,"x",null,null,null,null,"x","Données issues du projet",null,null,null,null,null,"EcoCité générique REAL 4",null,null,null,null,null,null,null,null,null,null,null,null,"x"]
[11,"Nombre de candélabres","Nombre cumulé de candélabres installés grâce au projet","Réalisation",null,"Cet indicateur vérifie l'atteinte des objectifs opérationnels initiaux visés par le projet. Il s'agit d'un indicateur de suivi (réalisation)","L'indicateur implique un comptage du nombre de candélabres installés sur le nombre de cadélabres initialement prévus par le projet",null,null,null,null,"Nombre de candélabres installés (en cumulé)","% de candélabres",null,"x",null,null,null,null,"x","Données issues du projet",null,null,null,null,null,null,null,null,null,null,null,"x"]
[12,"Nombre de logements instrumentés","Nombre de logements (ou m2 \"hors logement\") instrumentés grâce au PIA VDD","Réalisation",null,"Il s’agit du nombre de logements ayant fait l’objet d’une instrumentation dans le cadre du PIA VDD.\nUne instrumentation correspond à la mise en place de capteurs (de températeur, d'hygrométrie, de qualité de l'air, d'ensoleillement...) ou de compteurs (d'énergie, d'eau, de gaz...). ",null,null,null,null,null,"Nombre de logements","% de logements",null,"x",null,null,null,"x","x","Données issues du projet ",null,null,null,null,null,"Adapté EcoCité générique REAL 2",null,null,null,null,null,null,null,null,null,null,null,null,null,null,null,null,null,null,null,"x"]
[13,"Nombre de nouveaux services proposés","Nombre de services proposés par le projet","Réalisation",null,"\nL'indicateur permet de calculer le nombre de services créés et améliorés par le projet en distinguant les deux catégories",null,"Les types de services créés par le projet","Les types de services améliorés",null,null,"Nombre de services (créés par le projet, ou améliorés par le projet, ou total 'créés et renforcés')",null,null,"x",null,null,null,null,"x","Données issues du projet",null,null,null,null,null,null,null,null,null,null,"x",null,null,null,null,null,null,null,null,null,null,null,null,null,null,null,null,null,null,null,null,null,null,null,null,"x","x","x",null,"x","x"]
[14,"Nombre de place de stationnement voiture","Nombre de places de stationnement voiture créées/supprimées par l'action","Réalisation",null,"Cet indicateur traduit l'effort d'optimisation de la place de la voiture, en fonction du contexte (ex: pertinence de la création de places de stationnement près de certains pôles multimodaux pour permettre le rabattement des utilisateurs sur du transport en commun, mais pertinence de réduire le nombre de places de stationnement dans des projets d'aménagement très bien desservis en transports en commun).","L'indicateur se calcule ainsi :\nNombre de places de stationnement pour véhicules motorisés après projet - Nombre de places de stationnement pour véhicules motorisés dans la situation de référence (ie avant projet).","Logements","Bureaux","Habitants avec telle ou telle caractéristique",null,"Nombre de places de stationnement sur l'espace public (voirie)",null,null,"x",null,null,null,null,"x","Données issues du projet",null,null,null,null,null,null,"Adapté indicateurs Montpellier",null,null,null,null,null,null,null,null,null,null,null,"x",null,null,"x","x",null,null,null,"x",null,null,null,null,null,null,null,null,null,null,null,null,null,null,null,null,null,null,null,null,null,null,null,null,null,null,"x"]
[15,"Nombre de places (théoriques) pour l'accueil d'usagers","Création et/ou renforcement de la capacité d'accueil d'usagers","Réalisation",null,"Cet indicateur vise à évaluer l'augmentation de la capacité d'accueil d'usagers par un service (nouveau ou renforcé) suite au projet","Le porteur de projet indique le nombre de places théoriques prévues par le projet pour l'accueil des usagers","Le cas échéant, possibilité de distinguer le nombre de place d'accueil en fonction des différents services proposés par le projet",null,null,null,"Nombre de places pour l'accueil d'usagers",null,null,"x",null,null,null,null,"x","Données issues du projet",null,null,null,null,null,null,"http://www.collectivites-locales.gouv.fr/",null,null,null,null,null,null,null,null,null,null,"x",null,null,null,null,null,null,null,null,null,null,null,null,null,null,"x","x","x",null,"x","x",null,null,"x","x"]
[16,"Nombre de places de livraison","Nombre de places de livraison créées","Réalisation",null,"Cet indicateur traduit l'effort de gestion de l'espace public et d'optimisation du nombre de places de livraison. ","L'indicateur se calcule ainsi : \nNombre de places de stationnement (livraison) créées / m2 SP construite (surfaces d'activités)",null,null,null,null,"m²","Nombre de places de livraison",null,"x",null,null,null,null,"x","Données issues du projet",null,null,null,null,null,null,"Paris-Rennes",null,null,null,null,null,null,null,null,null,null,null,null,"x",null,null,null,null,null,null,null,null,null,null,null,null,null,null,null,null,null,null,null,null,null,null,null,null,null,null,null,null,null,null,null,null,null,null,null,null,"x"]
[17,"Nombre de places de stationnement vélo","Nombre de places de stationnement vélo sur l'espace public sur le périmètre géographique de l'action","Réalisation","Réalisation","Cet indicateur traduit l'effort d'aide à l'utilisation des modes actifs.","Comptage du nombre de places créé par l'action",null,null,null,null,"Nombre de places de stationnement",null,null,"x","x","x",null,null,"x","Données issues du projet: dossier PRO/DCE Espaces publics et dossiers permis de construire",null,null,null,null,null,null,"Adapté indicateurs Montpellier",null,null,null,null,null,null,null,null,null,null,null,null,null,"x","x",null,null,null,null,"x"]
[18,"Nombre de points d'apport volontaire","Nombre cumulé des points d'apport volontaire installés grâce au projet (pour la collecte sélective, pour le compostage...)","Réalisation",null,"Cet indicateur permet le comptage des points d'apport volontaire pouvant servir à de la collecte sélective, au réemploi, au compostage (déchets verts). ","Il implique le comptage du nombre de points d'apport volontaire installés grâce au projet. Il peut être rapporté au nombre total de points d'apport volontaire visés initialement prévus par le projet.","Préciser le type de point d'apport volontaire qui sont pris en compte pour le calcul de l'indicateur",null,null,null,"Nombre de points d'apport volontaire (en cumulé)","% de PAV",null,"x",null,null,null,null,"x","Données issues du projet : PRO/DCE",null,null,null,null,null,null,"A vérifier : Indicateur CDC 2011 ? (CSTB, IMBE)",null,null,"x",null,null,null,null,null,null,null,null,null,null,null,null,null,null,null,null,"x"]
[19,"Nombre de points de livraison du réseau","Nombre de points de livraison du réseau","Réalisation",null,"Cet indicateur de réalisation vise à mesurer l'étendue du réseau.",null,null,null,null,null,"Nombre de points de livraison",null,null,"x",null,null,null,null,"x","Données du gestionnaire du réseau",null,null,null,null,null,null,null,null,null,null,null,null,"x"]
[20,"Nombre de points d'instrumentation ou compteurs","Nombre cumulé de points d'instrumentation ou compteurs mis en place","Réalisation",null,"Cet indicateur vise à quantifier le nombre de points d'instrumentation mis en oeuvre au sein d'un périmètre donné en vue de collecter puis transmettre différentes informations. Un point d'instrumentation est par exemple un capteur, un compteur intelligent....","L'indicateur implique un comptage du nombre de points d'instrumentation mis en place. Il peut être rapporté à la surface du projet.","Possibilité de détailler selon le type et la nature des capteurs et compteurs","Compteurs électriques","Compteurs \"autres fluides\"",null,"Nombre de points instrumentés","Nombre de points instrumentés / m2",null,"x",null,null,null,null,"x","Données issues du projet",null,null,"x",null,null,"Indicateur spécifique Grenoble",null,null,null,null,"x",null,"x",null,null,null,null,null,null,null,null,null,null,null,null,"x"]
[21,"Nombre de points lumineux sous contrôle","Nombre de points lumineux sous contrôle","Réalisation",null,"Cet indicateur vérifie l'atteinte des objectifs opérationnels initiaux visés par le projet.Il implique le comptage du nombre de cadélabres bénéficiant d'une gestion du niveau de puissance",null,null,null,null,null,"Nombre de candélabres sous contrôle",null,null,"x",null,null,null,null,"x","Données issues du projet",null,null,null,null,null,"Indicateur spécifique, Clermont Ferrand Action Eclairage Public Optimisé",null,null,null,null,null,"x"]
[22,"Offre kilométrique réelle","Amplitude horaire et nombre de kilomètres parcourus par jour","Réalisation",null,"Cet indicateur vise à rendre compte de l'offre réellement mise en place par le projet. Il se décline en deux items : l'amplitude horaire et le nombre de kilomètre parcourus en véhicules.kilomètres.","L'amplitude horaire correspond à la différence entre l'heure du dernier service et l'heure du premier service. \nLe nombre de kilomèters parcourus sur la ligne se calcule en  vehicules.kilomètres et correspond au nombre de courses par jour multiplé par le nombre de kilomètre de la ligne.",null,null,null,null,"Nombre d'heures","Véhicule.kilomètre",null,"x",null,null,null,null,"x","Données issues du projet","Cerema","Bilan annuel de l’exploitant pour l’AOT",null,null,null,null,null,null,null,null,null,null,null,null,null,"x",null,null,null,null,null,null,null,null,null,null,null,null,null,null,null,null,null,null,null,null,null,null,null,null,null,null,null,"x"]
[23,"Rénovation de logements","Nombre de logements rénovés","Réalisation","Réalisation","Cet indicateur vise à évaluer l'effort de rénovation du parc bâti.\nL'indicateur spécifique concerne les logements rénovés grâce au PIA. L'indicateur territorial concerne tous les logements rénovés sur le territoire.",null,"Copropriétés","Logements privés",null,null,"Nombre de logements","m2",null,"x",null,null,null,"x","x","Données issues du projet ","Agence Locale de l'Energie",null,null,null,null,null,null,null,null,null,null,null,null,null,null,null,null,null,null,null,null,null,null,"x"]
[24,"Surface dédiée à l'agriculture urbaine","Surface en m² dédiée à l'agriculture urbaine","Réalisation",null,"Cet indicateur inclut toutes les surfaces dédiées à l'agriculture urbaine (ex: potager au sol dans l'espace public, fermes urbaines en toiture, etc.).\nCet indicateur permet aussi de quantifier la surface, au sein d'un projet de réhabilitation, qui a été transformée et consacrée à un usage de production agricole en ville.","L'indicateur correspond à la surface transformée ou consacrée à l'agriculture.",null,null,null,null,"m²",null,null,"x",null,null,null,"x","x","Plan masse ou données programmatiques projet",null,null,null,null,null,null,null,null,null,null,null,null,null,null,null,null,null,null,null,null,null,null,"x","x",null,null,"x",null,"x","x"]
[25,"Surface du traitement des eaux","Surface du traitement des eaux","Réalisation",null,"Cet indicateur traduit la taille de l'installation de traitement des eaux usées ou des eaux pluviales.",null,null,null,null,null,"m²",null,null,"x",null,null,null,null,"x","Données issues du projet",null,null,null,null,null,"Indicateur spécifique, Marseille, Parc de Bougainville",null,null,"x",null,null,null,null,null,null,null,null,null,null,null,null,null,null,null,null,null,null,null,"x"]
[26,"Surfaces dédiées à un nouvel équipement ou service ","Surface totale dédiée à un nouvel équipement ou service ","Réalisation",null,"Cet indicateur vise à évaluer la surface dédiée à un service ou un équipement (nouveau ou renforcé dans le cadre d'une extension par exemple) porté par le projet.","L'indicateur calcule la surface totale dédiée à la création d'un service ou d'un équipement. \nDans le cas d'une extension d'un service ou équipement déjà existant, l'indicateur calcul uniquement la surface supplémentaire allouée au service ou à l'équipement.","Le cas échéant, possibilité de distinguer la surface en fonction des différentes activités proposées par le projet",null,null,null,"m²",null,null,"x",null,null,null,null,"x","Données issues du projet",null,null,null,null,null,null,"Adapté du Label EcoQuartier",null,null,null,null,null,null,null,null,null,null,null,null,null,null,null,null,null,null,null,null,null,null,null,null,null,"x","x","x",null,"x",null,null,null,"x","x"]
[27,"Volumes de terres gérées","Volumes de terres excavées et apportées sur le site","Réalisation",null,"Il s'agit de quantifier : \n- le volume de terres excavées sur le site dans le cas d'un projet d'aménagement \n- le volume de terres nouvelles apportées sur le site pour remblayer \n- le volume de terres traitées sur le site (excavées, traitées, réutilisées)",null,"Volume de terres excavées","Volume de terres d'apport extérieur","Volume de terres traitées sur site",null,"m3 de terres",null,null,"x","x",null,null,null,"x","Données issues du projet","Plans de géomètre pour un projet d'aménagement",null,null,null,null,null,null,null,null,null,null,null,null,null,null,null,null,null,null,null,null,null,null,null,null,null,null,null,null,null,"x"]
[28,"Albédo moyen","Albédo moyen des surfaces d'un projet\n","Résultat",null,"Cet indicateur donne une indication sur le comportement des surfaces extérieures vis-à-vis de l’effet d’îlot de chaleur. Sont prises en compte toutes les façades et tous les types de sol. \n\nChaque type de surface extérieure se caractérise par un coefficient appelé albédo, compris entre 0 et 1, qui est le pouvoir réfléchissant de la surface (énergie lumineuse réfléchie par rapport à l'énergie lumineuse incidente).\nL’impact d’une surface sur l’îlot de chaleur dépend principalement de son albedo et de sa capacité d’évapo-transpiration. ","Cet indicateur peut se calculer de deux manières :\n- soit en calculant directement l'albédo moyen : somme des surfaces extérieures pondérées par leur albédo\n- soit en calculant plutôt le coefficient de régulation de chaleur (1 - albédo) : somme des surfaces pondérées par leur coefficient ","Albédo moyen","Coefficient de régulation de chaleur moyen","Possibilité d'aller plus loin : calculer l'albédo moyen avant projet, l'albédo moyen après projet, et le degré d'amélioration de l'albédo (en %) (Albédo avant / Albédo Après * 100%)","Espaces publics et/ou lots privés","Sans unité",null,null,"x","x",null,null,null,"x","Données programmatiques avec les différents matériaux de sol et de façade, et les superficies correspondantes (dossier PRO/DCE Espaces publics, dossiers PRO/DCE Bâtiments)",null,null,null,null,null,null,"Adapté Référentiel Ile de France",null,null,null,null,null,null,null,null,null,null,null,null,null,null,null,null,null,null,null,"x",null,null,null,null,null,null,null,null,null,null,null,null,null,null,null,null,null,null,"x",null,null,"x"]
[29,"Alertes de risque","Nombre d'alertes déclenchées par le système de surveillance des risques naturels/technologiques","Résultat",null,"L'indicateur évalue le nombre d'alertes émises par le système d'hypervision/surveillance mis en place, par exemple concernant une alerte canicule pour des personnes fragilisées, une alerte inondation, etc.","L'indicateur mesure le nombre d'alertes émises pendant une période donnée.\nL'indicateur peut aussi s'exprimer en nombre de personnes alertées.",null,null,null,null,"Nombre d'alertes","Nombre de personnes alertées",null,null,"x",null,"Territoire couvert par le système de surveillance","x","x","Données collectivité",null,null,null,null,null,null,null,null,null,null,null,null,null,null,null,null,null,null,null,null,null,null,null,null,null,null,null,null,null,null,null,"x",null,null,null,null,null,null,null,null,null,null,null,null,null,null,null,null,"x"]
[30,"Autoconsommation énergétique","Part d'énergie consommée qui est d'origine renouvelable et produite localement","Résultat",null,"Cet indicateur permet d'évaluer le niveau d'autoconsommation d'un projet (bâtiment ou quartier), c'est à dire la part de toutes les consommations énergétiques qui est assurée par une production locale d'énergie renouvelable.\nIl convient de calculer séparément l'autoconsommation pour l'électricité, la chaleur, le froid et l'eau chaude sanitaire.","L'indicateur se calcule ainsi :\nConsommation annuelle d'énergie produite localement / Consommation annuelle totale d'énergie","Electricité","Chaleur","ECS","Froid","kWh EF/an","% en kWh EF",null,"x","x",null,null,"x","x","Données bâtiment (copropriété ou bailleur) ou quartier (ASL, gestionnaire...)",null,null,null,null,null,null,null,null,null,null,null,null,null,"x",null,null,null,null,null,null,null,null,"x","x",null,null,null,null,null,null,null,null,null,null,null,null,null,null,null,null,null,null,null,null,null,null,null,null,"x",null,"x"]
[31,"Bâtiments raccordés au réseau","Bâtiments raccordés au réseau de chaleur ou de froid ou au smartgrid","Résultat",null,"L'indicateur traduit l'effet du développement d‟un réseau de chaleur et/ou de froid (cogénération). Ces réseaux peuvent alimenter les bâtiments construits ou rénovés ou existants du projet Ville de Demain et permettre ainsi de réduire l‟impact carbone de l‟énergie consommée, surtout pour des chaudières bois, et de limiter les pertes d‟une production centralisée de l‟énergie. ","Il s'agit du nombre ou bien des m2 de bâtiments raccordés au réseau de chaleur ou de froid. Cet indicateur peut aussi s'adapter à un smartgrid.",null,null,null,null,"Nombre de bâtiments","Nombre de logements","m²","x",null,null,null,null,"x","Gestionnaires du réseau, promoteurs pour les nouveaux bâtiments, maîtres d'ouvrage publics",null,null,null,null,null,null,"étude CSTB 2011",null,null,null,null,null,"x",null,null,null,null,null,null,null,null,null,null,null,null,null,null,null,null,null,null,null,null,null,null,null,null,null,null,null,null,null,null,"x"]
[32,"Bénéfices pour les usagers finaux","Evaluation qualitative des bénéfices réels du projet pour les usagers finaux","Résultat",null,"L'indicateur vise à déterminer, sur une échelle de Likert, dans quelle mesure le projet offre des bénéfices réels pour les usagers finaux.\nLes bénéfices peuvent être de différentes natures, par exemple sur le plan des économies financières, de l'amélioration de la qualité ou du confort des usagers finaux.\nRemarque : si l'évaluation porte uniquement sur les avantages du projet sur le plan des économies financières, il est préférable de choisir l'indicateur sur le \"coût du service pour les usagers finaux\".","Les sources de réponse à l'indicateur (pour situer le projet sur l'échelle de Likert) peuvent être fondées sur des entretiens avec le porteur de l'action ou basé sur des jugements d'expert, mais de préférence elles seront fondées sur une enquête ex post auprès des usagers finaux. Il sera important de préciser les modalités d'enquête choisies pour positionner le projet sur l'échelle de Likert.\nEchelle de Likert:\n1 - Pas de bénéfice : le projet n'offre pas de bénéfice clair aux usagers finaux.\n2 - Peu de bénéfices : le projet offre très peu de gains aux usagers finaux, de manière indirecte et peu notable.\n3 - Quelques bénéfices : le projet offre quelques bénéfices aux usagers finaux qui dans une certaine mesure bénéficient des principes ou de la technologie mis(e) en oeuvre par le projet.\n4 - D'importants bénéfices : le projet offre des bénéfices importants aux usagers finaux qui bénéficient des principes ou de la technologie mis(e) en oeuvre avec des effets directs et très positifs.\n5 - De remarquables bénéfices : le projet offre des bénéfices remarquables aux usagers finaux qui bénéficient des principes ou de la technologie mis(e) en oeuvre avec des effets directs et particulièrement positifs (amélioration du confort, amélioration du cadre de vie...).",null,null,null,null,"Echelle de Likert",null,null,"x",null,null,null,null,"x","Entretien avec porteur de projet","Jugement d'experts","Enquête ex post auprès des usagers finaux","x",null,null,null,null,null,null,null,null,null,null,null,null,null,null,null,null,null,null,null,null,null,"x",null,null,null,null,null,null,null,"x","x","x","x","x","x",null,null,null,null,null,null,"x"]
[33,"Bornes de collecte enterrées","Part de bornes de collecte des déchets enterrées","Résultat",null,"Les points d'apport volontaire enterrés permettent de réduire les nuisances visuelles et olfactives tout en désencombrant l'espace public. ","L’indicateur se calcule ainsi : Nombre de bornes enterrées / Nombre de bornes de collecte des déchets au total.",null,null,null,null,"Nombre de bornes","% des bornes",null,null,"x",null,null,null,"x","Plan masse d'un projet (dossier PRO/DCE) ou données du service propreté de la collectivité à une échelle plus large",null,null,null,null,null,null,"Pays d'Aix",null,null,"x",null,null,null,null,null,null,null,null,null,null,null,null,null,null,null,null,"x",null,null,null,null,null,null,null,null,null,null,null,null,null,null,null,null,null,"x","x"]
[34,"Capacité de stockage","Capacité de stockage","Résultat",null,"La capacité de stockage est la quantité maximale d'énergie qui peut être stockée par le système à un moment donné.",null,null,null,null,null,"MWh","kWh","GWh","x",null,null,null,null,"x","Données du gestionnaire",null,null,null,"ISO 37122",null,null,null,null,null,null,null,null,"x",null,"x",null,null,null,null,null,null,null,null,null,null,null,null,null,null,null,null,null,null,null,null,null,null,null,null,null,null,null,null,null,null,null,null,null,"x",null,"x"]
[35,"Coefficient Bbio","Coefficient de besoin bioclimatique","Résultat",null,"Le Bbio est un indice de la bonne conception bioclimatique du bâtiment. Cet indicateur vérifie la conception bioclimatique des bâtiments et évalue la performance énergétique de l'enveloppe des bâtiments neufs dans le périmètre de la zone d’aménagement.\nLa valeur de l’indicateur reflète le besoin cumulé en énergie pour les composantes dépendant de la conception du bâti : chauffage, refroidissement et éclairage artificiel. Elle impose ainsi une optimisation du bâti indépendamment des systèmes énergétiques mis en oeuvre.","Le coefficient peut être calculé avec la méthode de calcul Th BCE 2012. Des logiciels spécifiques agrées sont disponibles. ","Chauffage","Froid","Electricité",null,"Sans unité",null,null,"x","x",null,null,null,"x","Données issues du projet : études thermiques réglementaires des bâtiments (annexées au dossier PC)",null,null,null,null,null,null,"AEU2",null,null,null,null,null,null,null,null,null,null,null,null,null,null,null,"x","x",null,null,null,null,null,null,null,null,null,null,null,null,null,null,null,null,null,null,null,null,null,null,null,null,"x"]
[36,"Coefficient de biotope","Part des surfaces favorables à la biodiversité à l’échelle d'un projet","Résultat",null,"Cet indicateur vise à évaluer la contribution d'un projet ou d'un espace donné au maintien de la biodiversité et de la nature en ville, en évaluant les différents types de surface éco-aménageables et en les pondérant selon leur contribution. Il permet ainsi de décrire la proportion de surface favorable à la nature (ex: coefficient de 0.5 pour un espace vert sur dalle avec épaisseur de terre inférieure à 80cm, 0.7 pour un espace vert sur dalle avec épaisseur de terre supérieure à 80cm, 1 pour un espace vert en pleine terre, 0.5 pour une façade végétalisée, 0 pour une surface entièrement minéralisée, etc.).","Il s'agit du ratio entre la surface éco aménageable et la surface de la parcelle où la surface éco aménageable est la somme des surfaces de chaque type d'espace (espace vert en pleine terre, espace gravillonné, toiture imperméable...)  multipliées par un coefficient de biotope correspondant (compris entre 0 et 1)\nUn sol imperméabilisé est considéré comme un coefficient 0, c’est à dire non favorable à la biodiversité; un sol de pleine terre est associé à un coefficient égal à 1, les murs et toitures végétalisées se voient par exemple attribuer en règle générale un coefficient de 0,5 et de 0,7. Les modalités de fixation des coefficients peuvent varier et l’utilisation de cet indicateur nécessite une réelle réflexion amont de la part de la MOA pour définir les pondérations. ",null,null,null,null,"Sans unité",null,null,"x","x",null,null,null,"x","Dossier PRO/DCE espaces publics et bâtiments au sein d'un projet",null,null,null,null,null,null,"AEU2",null,null,null,null,null,null,null,null,null,null,null,null,null,null,null,null,null,null,null,null,"x","x","x",null,null,null,null,null,null,null,null,null,null,null,null,null,null,null,null,null,null,null,null,null,null,"x"]
[37,"Coefficient d'emprise végétale","Somme des espaces de nature rapportée à la surface totale du projet","Résultat","Résultat","Ce coefficient, parfois aussi appelé coefficient de végétalisation, vise à évaluer l’effort de végétalisation du projet. Il s’agit de comptabiliser toutes les surfaces végétalisées au sein d'un projet (espaces verts en pleine terre, espaces verts sur dalle, toitures végétalisées, façades végétalisées, joints enherbés de surfaces pavées, etc.). ","Il s'agit de remplir un tableau indiquant, pour chaque type d'espace (imperméable, en pleine terre, toiture végétalisée, etc.), la surface en m² correspondante. Un espace est comptabilisé quand sa surface est au moins de 2 m². \nTous les espaces végétalisés se voient attribuer un coefficient de 1, les espaces imperméables un coefficient de 0. Cela permet de calculer la surface végétale totale au sein du projet.",null,null,null,null,"m² de surface végétalisée","% de surface",null,"x","x","x",null,null,"x","Dossier PC de chaque lot privé et dossier PRO/DCE pour les espaces publics d'une opération d'aménagement\nDonnées collectivité sinon",null,null,null,null,null,null,null,null,null,null,null,null,null,null,null,null,null,null,null,null,null,null,null,null,null,null,"x",null,null,null,null,null,null,null,null,null,null,null,null,null,null,null,null,null,null,"x",null,null,null,null,null,null,"x"]
[38,"Coefficient d'imperméabilisation","Part de la surface du projet participant au ruissellement des eaux pluviales","Résultat","Résultat","Le taux d'imperméabilisation correspond au rapport entre la surface active (Surface participant au ruissellement des eaux pluviales) et la surface au sol totale du périmètre de projet","La surface active se calcule en distinguant les différents types d'espace (pleine terre, espace vert sur dalle, parking...) et en leur attribuant un coefficient de ruissellement variant entre 0 et 1 (1 pour une surface totalement imperméable, 0 pour une surface entièrement perméable).",null,null,null,null,"m² de surface active","% de surface",null,"x","x","x",null,null,"x","Plan masse d'une opération d'aménagement (le calcul peut être amorcé au stade AVP Espaces publics/APS Bâtiment, puis affiné jusqu'au dossier PRO/DCE)",null,null,null,null,null,"Adapté indicateur spécifique, Bordeaux, Parc aux Angéliques",null,null,null,null,null,null,null,null,null,null,null,null,null,null,null,null,null,null,null,null,"x","x",null,"x",null,"x",null,null,null,null,null,null,null,null,null,null,null,null,null,null,null,null,"x",null,null,null,null,null,null,"x"]
[39,"Compostage de déchets verts","Part des déchets verts issus des espaces publics faisant l'objet de compostage","Résultat","Résultat","Cet indicateur vise à évaluer les pratiques de la collectivité en matière de valorisation des déchets verts issus de l'entretien des espaces publics : il s'agit de comptabiliser les déchets qui sont valorisés organiquement (compostage).","L'indicateur se calcul ainsi : Masse de déchets verts compostés par an (en tonnes) / masse de déchets verts collectés par an (en tonnes/an)",null,null,null,null,"tonnes/an","% en masse",null,"x","x","x",null,"x","x","Données des services gestionnaires des espaces verts de la collectivité compétente",null,null,null,null,null,null,null,null,null,"x",null,null,null,null,null,null,null,null,null,null,null,null,"x",null,"x",null,"x",null,"x","x",null,null,null,null,null,null,null,null,null,null,null,null,null,null,null,null,null,null,null,null,null,null,null,null,"x"]
[40,"Consommation en eau des systèmes énergétiques","Consommation en eau des systèmes énergétiques","Résultat",null,"Cet indicateur mesure la consommation en eau du système.","Il s'agit du ratio entre la quantité d'eau consommée par le système de production d'énergie et la quantité d'énergie produite ou livrée.","La quantité d'eau consommée sur le réseau correspond à l'eau d'appoint ajoutée dans le réseau primaire afin d'en compenser les pertes par fuite.\nSauf cas exceptionnel, la quantité d'eau d'appoint est mesurée par compteur.",null,null,null,"m3","m3 /MWh",null,"x",null,null,null,"x","x","Données du gestionnaire",null,null,null,null,null,null,"IGD / adapté PEER",null,null,null,null,null,"x","x","x",null,null,null,null,null,null,null,null,null,null,null,null,null,null,null,null,null,null,null,null,null,null,null,null,null,null,null,null,null,null,null,null,null,null,null,null,null,null,null,null,"x"]
[41,"Consommation en eau potable des espaces publics  ","Consommation en eau potable des espaces publics  ","Résultat","Résultat","Il s'agit de mesure la consommation en eau potable annuelle des espaces publics d'une opération donnée (espaces minéraux, espaces verts, espaces liés à l’eau comme bassins artificiels, fontaines, etc.).","L'indicateurse calcule ainsi : volume en m3 d’eau potable consommée annuellement / surface des espaces publics aménagés en ha.\n",null,null,null,null,"m3/habitant/an",null,null,"x","x","x",null,"x","x","Données des services appropriés de la collectivité (VRD ou espaces verts)",null,null,null,null,null,"Adapté indicateur spécifique, Bordeaux, Parc aux Angéliques","AEU2/Ecoquartier",null,null,null,null,null,null,null,null,null,null,null,null,null,null,null,null,null,null,null,"x",null,"x","x",null,null,null,null,null,null,null,null,null,null,null,null,null,null,null,null,null,null,null,null,null,null,null,null,null,"x"]
[42,"Consommation en eau potable du bâtiment","Consommation en eau potable du bâtiment (ECS incluse)","Résultat",null,"L'objectif de cet indicateur est d'effectuer le suivi de la consommation en eau potable du bâtiment en regard des dispositifs mis en oeuvre pour en réduire les consommations (réduction de la pression en entrée de réseau, chasses d'eau à double débit, robinetterie hydroéconome, limitation de la longueur de tirage du réseau ECS, etc.). \nAfin de pouvoir apprécier la performance du bâtiment, la valeur de l'indicateur mesurée annellement sera comparée à une valeur moyenne sur le territoire en question. A titre d'exemple la valeur moyenne de consommation d'un foyer français est de 410 m3 d'eau par logement et par an","Il s'agit du ratio entre le volume d'eau potable utilisé en m3 par logement et par an.\nPOur des bâtiments tertiaires, il est possible de rapporter de la ration en utilisateur par an",null,null,null,null,"m3/logement.an","m3/utilisateur.an\n(pour le tertiaire)",null,"x",null,null,null,"x","x","Relevé du compteur d'adduction en eau potable du bâtiment dans le local technique",null,null,null,null,null,"Indicateur spécifique, Grenoble, Ilot Cambridge",null,null,null,null,null,null,null,null,null,null,null,null,null,null,null,null,"x","x","x","x",null,null,null,null,null,null,null,null,null,null,null,null,null,null,null,null,null,null,null,null,null,null,null,null,null,null,null,null,null,"x"]
[43,"Consommation énergétique de la logistique","Consommation énergétique du système de logistique","Résultat",null,"Cet indicateur de performance mesure la consommation énergétique d'une action de logistique urbaine.\nLa consommation énergétique est calculée à partir des trajets réalisés par les véhicules de logistiques en fonction du type de véhicule, du type de carburant, du nombre de kilomètre parcouru... La consommation des groupes froids des camions frigoriques peut aussi être prise en compte.","La mesure peut être rapportée par nombre de véhicules et par an. Elle doit être exprimée en kWh.\nEn moyenne, un litre d'essence équivaut à 9,4 kWh et un litre de diesel équivaut à 11,1 kWh.","Véhicules","Groupes froids",null,null,"kWh/an","kWh/véhicule/an",null,"x",null,null,null,"x","x","Données du porteur de projet",null,null,null,null,null,"Indicateur spécifique, Bordeaux, Logistique urbaine",null,null,null,null,null,null,null,null,null,null,null,null,null,"x",null,null,null,null,null,null,null,null,null,null,null,null,null,null,null,null,null,null,null,null,null,null,null,null,null,null,null,null,null,null,"x",null,null,null,null,null,"x"]
[44,"Consommation énergétique de l'éclairage public","Consommation énergétique de l'éclairage public ","Résultat",null,"L’indicateur qualifie la consommation électrique totale due à l’éclairage public dans le périmètre du projet.\nDans le cas de projets de renouvellement urbain, l’indicateur qualifie également la réduction des consommations après le projet.","L'indicateur se calcul ainsi : Σ Consommations électriques des différents points lumineux ou des différentes voiries rapporté au linéaire de voirie","La consommation électrique des différents points lumineux du projet et les linéaires de voirie (en km)",null,null,null,"kWhEF/an (et/ou kWhEP/an)\n","kWhEF/an (et/ou kWhEP/an)/km de voiries","kWhEF/an (et/ou kWhEP/an) / point lumineux","x",null,null,null,"x","x","Gestionnaire de l’éclairage public (service interne ou structure mixte)",null,null,null,"ISO 37120 / ISO 37122",null,"Indicateur spécifique, Clermont Ferrand Action Eclairage Public Optimisé\nGrenoble, Eclairage public actif","EcoQuartier (CSTB, 2014)",null,null,null,null,"x",null,null,null,null,null,null,null,null,null,null,null,null,null,null,null,null,null,null,null,null,null,null,null,null,null,null,null,null,null,null,null,null,null,null,null,null,null,null,"x"]
[45,"Consommation énergétique des bâtiments","Consommation énergétique moyenne des bâtiments","Résultat",null,"Cet indicateur de performance mesure la consommation énergétique moyenne annuelle des bâtiments situés dans le périmètre de l’opération.\nLes consommations à prendre en compte sont à minima celles liées aux usages réglementaires.\nSelon le contexte et les ambitions de l’opération les bâtiments à prendre en compte peuvent être les bâtiments publics, les bâtiments du parc social ainsi que les bâtiments privés.","La consommation énergétique moyenne à l’échelle du quartier se calcule en pondérant les consommations énergétiques de chaque bâtiment par sa surface de plancher (SDP). Il s'agit d'un calcul en énergie finale selon le référentiel AEU2, mais une réflexion en énergie primaire s'avérerait encore plus pertinent en termes de limitation des consommations.","Chauffage","Froid","Electricité","ECS","kWhEP/m2/an","kWhEF/m2/an",null,"x",null,null,null,"x","x","Etudes thermiques à l'échelle des bâtiments (STD éventuelle)",null,null,null,null,null,"Indicateur spécifique, Grenoble, Ilot Cambridge","AEU2, EcoQuartier - CEQ",null,null,null,null,null,null,null,null,null,null,null,null,null,null,null,"x","x","x","x",null,null,null,null,null,null,null,null,null,null,null,null,null,null,null,null,null,null,null,null,null,null,null,null,"x"]
[46,"Consommation énergétique des espaces publics","Consommation énergétique en phase de vie liée aux espaces publics","Résultat",null,"Consommation énergétique (en phase de vie) liée aux espaces publics, Incluant les consommations pour l'entretien des espaces verts, l'éclairage public, etc.","L'indicateur est en énergie primaire, ce qui signifie qu'il convient de déterminer la consommation d'énergie finale à partir des compteurs ou factures, puis de la multiplier par le facteur de conversion Energie Finale > Energie Primaire (ex : 2.58 pour l'électricité)",null,null,null,null,"kWh EP/m²/an",null,null,"x","x",null,null,"x","x","Données collectivité : service gestionnaire des espaces verts et factures d'électricité",null,null,null,null,null,null,"EcoQuartiers-CEQ",null,null,null,null,null,null,null,null,null,null,null,null,null,null,null,null,null,null,null,"x",null,null,null,null,null,null,null,null,null,null,null,null,null,null,null,null,null,null,null,null,null,null,null,"x"]
[47,"Coût de dépollution","Coût de dépollution par m3 et m² de surface au sol traitée","Résultat",null,"Cet indicateur vise à mesurer les efforts mis en oeuvre en vue de dépolluer les sols.","L'indicateur se calcule ainsi : \n- ratio entre le coût total de dépollution au sein d'un perimètre donné et la surface au sol ayant fait l'objet d'un traitement au sein du périmètre\n- ratio entre le coût total de dépollution au sein d'un perimètre donné et le volume de terres ayant fait l'objet d'un traitement  ",null,null,null,null,"Euros","Euros/m²","Euros/m3","x",null,null,null,null,"x","Données aménageur ou entreprise de travaux",null,null,null,null,null,null,null,null,null,null,null,null,null,null,null,null,null,null,null,null,null,null,null,null,null,null,null,null,null,null,"x",null,null,null,null,null,null,null,null,null,null,null,null,null,null,null,null,null,null,"x"]
[48,"Coût du MWh du réseau","Prix moyen du MWh - Réseaux","Résultat",null,"Cet indicateur vise à évaluer le coût de revient de l'énergie délivrée.","Il s'agit du ratio entre les recettes d'énergie thermique totales TTC et la quantité d'énergie thermique livrée. \nLes recettes d'énergie thermique totales TTC correspondent aux recettes liées à l'exploitation du réseau. Ces recettes correspondent aussi au chiffre d'affaires TTC (= la somme des factures payées par les abonnés). La quantité d'énergie thermique livrée correspond à la somme des énergies facturées aux abonnés.\nCe prix moyen devrait être accompagné des prix extrêmes sur la saison du MWh (maximum e. t minimum) pour éviter tout biais d'analyse lors de la non prise en compte de la saisonnalité de la tarification. Ces prix se retrouvent dans les différentes factures adressées aux abonnés.",null,null,null,null,"Euros TTC/MWh",null,null,"x",null,null,null,null,"x","Données du gestionnaire du réseau ",null,null,null,null,null,null,"IGD",null,null,null,null,null,"x",null,null,null,null,null,null,null,null,null,null,null,null,null,null,null,null,null,null,null,null,null,null,null,null,null,null,null,null,null,null,null,null,null,null,null,null,"x"]
[49,"Coût du MWh en production d'énergie","Prix moyen du MWh - Production d'énergie","Résultat",null,"Cet indicateur vise à évaluer le cout de revient de l'énergie produite.","Il s'agit du ratio entre les recettes d'énergie thermique totales TTC et la quantité d'énergie thermique livrée.",null,null,null,null,"Euros TTC/MWh",null,null,"x",null,null,null,null,"x","Données du gestionnaire du système énergétique",null,null,null,null,null,null,null,null,null,null,null,null,null,"x","x",null,null,null,null,null,null,null,null,null,null,null,null,null,null,null,null,null,null,null,null,null,null,null,null,null,null,null,null,null,null,null,null,null,null,"x"]
[50,"Coût du service pour les usagers finaux","Coût du service proposé aux usagers finaux par le projet","Résultat",null,"Coût standard (ou moyen) du ou des service(s) pour les usagers finaux et son évolution après la mise en service ou l'adaptation du projet. Il faut porter une attention particulière sur la manière dont est calculé le montant des coûts (les abonnements, les tarifications...). \nLe porteur devra décrire précisement ce qu'il inclut dans le coût.","L'indicateur se calcule en comptabilisant la somme de différents coûts pour l'utilisation du service par les usagers finaux.\nRemarque : s'il s'agit d'une opération d'amélioration du coût du service pour les usagers finaux, se référer de préférence à l'indicateur \"Economies monétaires pour les utilisateurs finaux\".","Coûts pour les usagers finaux (préciser ce qui est inclus dans le calcul des coûts)",null,null,null,"Euros","Selon type d'action (valeur rapportée à des litres d'eau, à la tonne de déchets collectés...)",null,"x",null,null,null,null,"x","Données issues du projet",null,null,null,"ISO 37151",null,null,null,null,"x","x",null,null,null,null,null,null,null,null,null,null,null,null,null,null,null,null,null,null,null,null,null,null,"x","x","x","x","x","x",null,null,null,null,null,null,null,null,null,"x",null,null,null,null,null,null,null,null,null,"x"]
[51,"Cout évité pour l'éclairage public","Cout évité pour l'éclairage public","Résultat",null,"Cet indicateur vise à évaluer les coûts évités grâce à la mise en place du projet: coûts liés à la consommation d'électricité (factures) et coûts liés aux besoins d'entretien-maintenance.\nPour calculer cet indicateur, il faut comparer les factures d'électricité d'une année sur l'autre. ","L'indicateur se calcule ainsi : \nCoûts de l'année n-1 (factures d'électricité + coûts d'entretien maintenance)  - Coûts de l'année n (factures d'électricité + coûts d'entretien maintenance)","Fonctionnement","Maintenance",null,null,"Euros",null,null,"x",null,null,null,null,"x","Données collectivité : budget consacré à l'entretien de l'éclairage + factures d'électricité",null,null,null,null,null,null,null,null,null,null,null,"x",null,null,null,null,null,null,null,null,null,null,null,null,null,null,null,null,null,null,null,null,null,null,null,null,null,null,null,null,null,null,null,null,null,null,null,null,null,"x"]
[52,"Coût réel du projet de transport en commun","Coût réel du projet de transport en commun","Réalisation",null,"Cet indicateur vise à actualiser le coût du projet évalué et à évaluer la maitrise financière. Il faut préciser les coûts d'investissement avec répartition par investisseurs, les coûts d'exploitation du projet ainsi que les coûts d'exploitations économisés (si d'autres lignes de bus ont été supprimées).","L'indicateur correspond au coût total du projet sur le même périmètre que le projet initial. Il faut préciser en cas d'évolution du projet la nature de ces évolutions. Il faut aussi préciser l'année d'actualisation du montant.","Coût d'investissement","Coût d'exploitation / an","Coûts d'exploitation éludés (économisés du fait du projet)",null,"€",null,null,"x",null,null,null,null,"x","Données issues du projet -Rapports d’avancement","Cerema",null,null,null,null,null,null,null,null,null,null,null,null,null,null,"x",null,null,null,null,null,null,null,null,null,null,null,null,null,null,null,null,null,null,null,null,null,null,null,null,null,null,null,null,null,null,null,null,null,"x"]
[53,"Coûts des espaces verts","Coûts d'investissement et d'exploitation annuel par m² d'espace vert","Résultat",null,"Cet indicateur vise à évaluer:\n- d'une part, les efforts mis en oeuvre dans la conception des espaces verts (coût d'investissement)\n- d'autre part, la pertinence des choix de conception en matière d'espèces végétales (degré d'adpatation des espèces au milieu naturel : essences locales, peu consommatrices en eau, etc.)  et  en prenant en compte les contraintes des futurs gestionnaires. Plus les coûts d'exploitation sont faibles, plus cela signifie que les espèces sont adaptées et que les gestionnaires ont été intégrés au processus de conception.","Il s'agit de deux ratios : \nCoût d'investissement initial / Surface totale d'espaces verts\nCoût d'exploitation annuel / Surface totale d'espaces verts","Coût d'investissement","Coût d'exploitation annuel",null,null,"Euros","Euros/m²",null,"x","x",null,null,null,"x","Données service gestionnaire des espaces verts de la collectivité",null,null,null,null,null,"Adapté Indicateur spécifique, Marseille, Parc Bougainville",null,null,null,null,null,null,null,null,null,null,null,null,null,null,null,null,null,null,null,null,null,null,"x",null,null,null,null,null,null,null,null,null,null,null,null,null,null,null,null,null,null,null,null,"x"]
[54,"Couverture wifi de l'espace public","Surface d'espaces publics couverts par le Wi Fi gratuit","Résultat","Résultat","Cet indicateur vise à évaluer l'accessibilité d'une connexion internet gratuite dans l'espace public, en mesurant la surface d'espace public située dans un rayon de 200 mètres autour d'un point d'accès Wi-Fi.\n","Cet indicateur se calcule ainsi : \n Superficie totale de couverture Wifi / Superficie urbaine totale * 100%",null,null,null,null,"% de surface",null,null,null,"x","x",null,"x","x","Carte des points d'accès Wifi publics (données collectivité)",null,null,"x",null,null,null,null,null,null,null,null,null,null,null,null,null,null,null,null,null,null,null,null,null,null,null,"x",null,null,null,null,null,null,null,null,null,null,null,null,null,null,null,null,"x"]
[55,"Création ou rénovation de voirie pacifiéee","Part de voirie créée ou rénovée intégrant des critères d'accessibilité pour tous, de confort et de partage de la voirie","Résultat",null,"Cet indicateur permet de quantifier la part de voirie, au sein d'un périmètre défini, créée ou rénovée intégrant des critères d'accessibilité pour tous, de confort et de partage de la voirie (mise aux normes PMR, amélioration des circulations douces, pacification, etc.)","L'indicateur se calcule ainsi : Linéaire de voirie créée ou rénovée intégrant les critères précédents / Linéaire total créé ou rénové","Linéaire de voirie créé ou nénové","% de linéaire",null,null,"Mètres linéaires (ml)","% de mètres linéaires","ml/ha","x","x",null,null,null,"x","Plan masse d'un projet d'aménagement (dossier PRO/DCE)",null,null,null,null,null,null,"AEU2/Strasbourg",null,null,null,null,null,null,null,null,null,null,null,"x",null,null,null,null,null,null,null,null,"x",null,null,null,null,null,null,null,null,null,null,null,null,null,null,null,"x","x","x"]
[56,"Déchets détournés de l'enfouissement ou de l'incinération en exploitation","Quantité de déchets détournés de l'enfouissement ou de l'incinération en phase d'exploitation du projet","Résultat",null,"Les projets d'économie circulaire permettent que des déchets de certains acteurs, autrefois voués à être enfouis ou incinérés, deviennent des ressources pour d'autres acteurs. Ces projets permettent donc de détourner des déchets de solutions d'élimination peu durables (emission de GES, pollution des sols et des nappes, etc.)","L'indicateur se calcule ainsi : \nTonnes de déchets enfouis ou incinérés avant le projet - Tonnes de déchets enfouis ou incinérés après le projet",null,null,null,null,"Tonnes de déchets",null,null,"x",null,null,null,null,"x","Porteurs des projets\nActeurs de la collecte des déchets\nActeurs de l'élimination des déchets",null,null,null,null,null,null,null,null,null,null,null,null,null,null,null,null,null,null,null,null,null,null,null,null,null,null,null,null,null,null,"x",null,null,null,null,null,null,null,"x",null,null,null,null,null,null,null,null,null,null,null,null,null,null,null,"x"]
[57,"Densité thermique","Densité thermique","Résultat",null,"La densité thermique est un indicateur qui permet de donner un ordre de grandeur sur le dimensionnement d’un réseau de chaleur/froid. \n","Il s'agit du ratio entre la quantité de chaleur livrée sur une année [MWh] et la longueur \"équivalente à la longueur aller OU retour des canalisations\"",null,null,null,null,"MWh/ml",null,null,"x",null,null,null,null,"x","Données gestionnaire de réseau",null,null,null,null,null,null,"Site web Cerema",null,null,null,null,null,"x",null,null,null,null,null,null,null,null,null,null,null,null,null,null,null,null,null,null,null,null,null,null,null,null,null,null,null,null,null,null,null,null,null,null,null,null,null,"x"]
[58,"Dépollution locale des terres","Volume de terres polluées faisant l'objet d'un traitement de dépollution sur le site","Résultat",null,"Cet indicateur permet de mesurer les efforts déployés en matière de dépollution au sein d'un périmètre donné afin de garantir des conditions sanitaires optimales aux futurs utilisateurs, ainsi que de restaurer des conditions écologiques favorables au développement de la biodiversité. ","L'indicateur correspond au volume en m3 de terres polluées faisant l'objet d'un traitement sur site",null,null,null,null,"m3 de terres",null,null,"x",null,null,null,null,"x","Données issues du projet ou plan de géomètre",null,null,null,null,null,null,null,null,null,null,null,null,null,null,null,null,null,null,null,null,null,null,null,null,null,null,null,null,null,null,"x",null,null,null,null,null,null,null,null,null,null,null,null,null,null,null,null,null,null,null,null,"x"]
[59,"Durée de vie du stockage","Nombre de cycles du système de stockage","Résultat",null,"Cet indicateur vise à mesure la durée de vie du stockage énergétique. La cyclabilité est le nombre maximal de charge-décharge que peut effectuer le moyen de stockage. \nL’usure est liée à l’amplitude des cycles et à l’état de charge moyen.","L'indicateur correspond au nombre de cycles de charge-décharge possibles avec le stockage énergétique.",null,null,null,null,"Nombre de cycles",null,null,"x",null,null,null,null,"x","Données issues du projet (gestionnaire)",null,null,null,null,null,null,null,null,null,null,null,null,null,null,"x",null,null,null,null,null,null,null,null,null,null,null,null,null,null,null,null,null,null,null,null,null,null,null,null,null,null,null,null,null,null,null,null,null,"x","x",null,null,null,null,"x"]
[60,"Efficacité du stockage énergétique","Rendement du stockage","Résultat",null,"Cet indicateur vise à mesure l'efficacité du stockage énergétique grâce au rendement.","Il s'agit du ratio entre la part d'énergie restituée et l’énergie fournie en entrée.",null,null,null,null,"% d'énergie",null,null,"x",null,null,null,null,"x","Données gestionnaire du système énergétique",null,null,null,null,null,null,null,null,null,null,null,null,null,null,"x",null,null,null,null,null,null,null,null,null,null,null,null,null,null,null,null,null,null,null,null,null,null,null,null,null,null,null,null,null,null,null,null,null,"x",null,"x"]
[61,"Efficacité du système énergétique","Rendement du système énergétique","Résultat",null,"Cet indicateur permet d'évaluer le rendement du système énergétique en prenant en compte la poduction et acheminement. ","Il s'agit du ratio entre l'énergie livrée et l'énergie consommée. Il faut aussi prendre en compte la cogénération, en soustrayant l'énergie supplémenataire produite par cogénération au dénominateur. ",null,null,null,null,"% d'énergie",null,null,"x",null,null,null,null,"x","Données gestionnaire du système énergétique",null,null,null,null,null,null,"Adapté PEER",null,null,null,null,null,null,"x",null,null,null,null,null,null,null,null,null,null,null,null,null,null,null,null,null,null,null,null,null,null,null,null,null,null,null,null,null,null,null,null,null,null,null,null,"x"]
[62,"Emploi de main d'oeuvre locale","Part du coût total du projet attribué à des entreprises du bassin d'emploi local","Résultat",null,"Pourcentage du coût total du projet qui a été attribué à des entreprises (sous-traitants, fournisseurs...) du bassin d'emploi local (échelle de l'agglomération).","Si le coût total du projet inclus également les études amont (en plus du coût du chantier), il faudra le préciser dans le périmètre technique. \nLe calcul de l'indicateur est en principe plutôt pour les phases amont du projet (jusqu'à sa livraison), mais il est possible aussi de le proposer en phase ex post à condition d'adapter le périmètre technique (part et montant des commandes en euros passées chez des fournisseurs ou prestataires du bassin d'emploi local).","Préciser le périmètre pour le calcul du coût total du projet (uniquement le chantier ou aussi les études amont...).\n",null,null,null,"% d'euros","Euros",null,null,null,null,"Bassin d'emploi",null,"x","Données issues du projet",null,null,"x",null,null,null,null,null,"x","x",null,null,"x",null,null,"x",null,null,null,null,null,null,"x","x","x",null,"x",null,null,null,null,null,null,null,null,null,null,null,null,null,null,null,"x"]
[63,"Equipements de mobilité implantés dans les quartiers prioritaires","Part des équipements de mobilité implantés dans les quartiers prioritaires","Résultat",null,"Cet indicateur mesure un objectif d'équité territoriale. \nD'après l'INSEE, les quartiers prioritaires de la politique de la ville sont des territoires d'intervention du ministère de la Ville, définis par la loi de programmation pour la ville et la cohésion urbaine du 21 février 2014. Leur liste et leurs contours ont été élaborés par le Commissariat général à l’égalité des territoires.","L'indicateur se calcule ainsi : \nNombre d'équipements implantés dans les quartiers prioritaires / Nombre d'équipements total",null,null,null,null,"Nombre d'équipements de mobilité","% d'équipements de mobilité",null,"x",null,null,null,null,"x","Données issues du projet",null,null,null,null,null,null,"Adapté indicateurs spécifiques Montpellier",null,null,null,null,null,null,null,null,null,"x",null,"x",null,"x",null,null,null,null,null,null,null,null,null,null,null,null,null,null,null,null,null,null,null,null,null,null,null,null,null,"x"]
[64,"Espace public dédié à la voiture","Part de la superficie d'espace public dédiée à la voiture","Résultat",null,"Cet indicateur vise à évaluer l'importance accordée à la voiture au sein d'un projet donné, en calculant l'ensemble des surfaces qui leur sont accessibles (ex: voirie, aire de stationnement, etc.). Plus le résultat de l'indicateur est faible, plus le projet accorde une place importante aux mobilités douces et vise à créer des espaces pacifiés.","L'indicateur se calcule ainsi :\nsuperficie d'espace public dédiée à la voiture (incluant toutes les surfaces de circulation et de stationnement aérien accessibles en voiture) / surface totale d'espace public",null,null,null,null,"% en surface",null,null,"x","x",null,null,null,"x","Plan masse d'un projet (dossiers PRO/DCE)",null,null,null,null,null,null,"Rennes",null,null,null,null,null,null,null,null,null,null,null,"x",null,null,null,null,null,null,null,"x","x",null,null,null,null,null,null,null,null,null,null,null,null,null,null,null,null,null,null,null,null,null,null,null,null,null,"x"]
[65,"Espaces de nature par habitant","Surface cumulée d'espace de nature et d'espace aménagés de nature en ville par habitant","Résultat","Résultat","Cet indicateur décrit la surface d’espace de nature ou espace vert en milieu urbain par habitant.","L'indicateur se calcule ainsi : \nSurface d'espace de nature en m² au sein d'un périmètre donné/Nombre d'habitants résidant au sein de ce même périmètre",null,null,null,null,"m2/habitant",null,null,"x","x","x",null,"x","x","Plan masse d'un projet et tableau de programmation typologique (ou par ratio) de l'opération",null,null,null,null,null,"Adapté indicateur spécifique, Bordeaux, parc aux Angéliques","AEU2",null,null,null,null,null,null,null,null,null,null,null,null,null,null,null,null,null,null,null,"x",null,"x",null,null,null,null,null,null,null,null,null,null,null,null,null,null,null,"x",null,null,null,null,null,null,null,"x"]
[66,"Flux de déplacement","Impact sur les politiques de déplacement","Résultat",null,"En quoi le projet de TCSP a-t-il été un élément structurant, déclencheur, fédérateur, des politiques de déplacement à l’intérieur et à l’extérieur du périmètre du projet ?\nCette question vise à déterminer la place du projet financé au sein de la politique de déplacement générale du territoire, à l'échelle de l'EcoCité et de la collectivité en général. A-t-il été un élément structurant, déclencheur, fédérateur, des politiques de déplacement ? Comment ?","L'indicateur vise à déterminer, sur une échelle de Likert, dans quelle mesure le projet a impacté les politiques de déplacement.\n1 - Tout à fait d'accord : Le projet est structurant dans la politique de déplacements du territoire, dont il constitue l'armature principale\n2 - D'accord : Le projet appartient à l'armature principale de la politique de déplacements du territoire, parmi d'autres\n3 - Ni en désaccord ni d'accord : Le projet a eu des retombées dans la politique de déplacements du territoire : il est lié à d'autres projets sans les commander\n4 - Pas d'accord : Le projet jette quelques passerelles avec d'autres parmi les nombreux que comporte la politique de déplacements du territoire mais n'a pas de rôle clé\n5 - Pas du tout d'accord : Le projet n'est pas articulé à la politique globale de déplacements sur le territoire.\nLe porteur doit justifier la réponse choisie.",null,null,null,null,"Echelle de Likert",null,null,null,null,null,null,null,"x",null,null,null,null,null,null,null,null,null,null,null,null,null,null,null,null,"x",null,null,null,null,null,null,null,null,null,null,null,null,null,null,null,null,null,null,null,null,null,null,null,null,null,null,null,null,null,null,null,null,null,null,null,"x"]
[67,"Fréquentation des espaces publics","Taux de fréquentation d'un espace public donné par jour","Résultat",null,"Cet indicateur vise à mesurer le degré d'attractivité d'un espace public donné et ainsi sa concordance avec les besoins des habitants et usagers visés.\nLes espaces verts sont compris dans les espaces publics.","L'indicateur se calcule ainsi :\nnombre depersonnes fréquentant un espace public ou espace vert donné par jour / nombre d'habitants du quartier visé",null,null,null,null,"Nombre d'usagers","%",null,"x","x",null,null,"x","x","Données difficilement accessibles : il est nécessaire d'effectuer une étude de comptage (analyse d'images prises par les caméras, données de comptage lié au traçage Wi Fi...)",null,null,null,null,null,null,"CSTB",null,null,null,null,null,null,null,null,null,null,null,null,null,null,null,null,null,null,null,"x",null,"x",null,null,null,null,null,null,null,null,null,null,null,null,null,null,"x","(x)"]
[68,"Fréquentation du transport en commun","Nombre de voyages par jour sur le transport en commun financé","Résultat",null,"Il s’agit du nombre moyen de voyages constatés par jour ouvré sur la ligne créée/prolongée. Le nombre de jours ouvrés par an pris en compte pour renseigner cet indicateur est de 252 jours ouvrés.","L'indicateur se calcule ainsi : \nNombre de voyages journaliers constatés sur 252 jours ouvrés / 252\n\nL'indicateur peut aussi être exprimé pour un jour moyen annuel. Il se calcule alors ainsi : \nNombre de voyages journaliers sur un an / 365 ",null,null,null,null,"Nombre de voyages / jour",null,null,null,null,null,"ligne TC concernée","x","x","Données billettiques","Bilan annuel de l’exploitant pour l’AOT","Enquêtes reports et induction",null,null,null,"EcoCité générique IMP 3","étude CSTB 2011",null,null,null,null,null,null,null,null,"x",null,"x",null,null,null,null,null,null,null,null,null,null,null,null,null,null,null,null,null,null,null,null,null,null,null,null,null,"x",null,null,null,null,null,null,"x","x"]
[69,"Gestion différenciée des espaces verts","Surface d'espaces verts gérées de manière différenciée","Résultat","Résultat","La gestion différenciée est une méthode d'entretien des espaces verts qui consiste à adapter le mode d'entretien aux caractéristiques et fonctions de chaque espace vert : pas de tonte systématique de toutes les surfaces enherbées, fauchage raisonné, etc. ","Cet indicateur se calcule en estimant la surface d'espaces verts faisant l'objet d'une gestion différenciée, rapportée à la surface totale d'espaces verts.",null,null,null,null,"% de surface",null,null,"x","x","x",null,null,"x","Données du service gestionnaire des espaces verts de la collectivité",null,null,null,null,null,null,null,null,null,null,null,null,null,null,null,null,null,null,null,null,null,null,null,null,null,null,null,null,"x",null,null,null,null,null,null,null,null,null,null,null,null,null,null,null,null,null,null,null,null,null,null,null,"x"]
[70,"Identité locale et sentiment d'attachement des habitants et usagers à leur cadre de vie","Degré auquel la conception du projet favorise l'identité locale et le sentiment d'attachement des habitants et usagers à leur cadre de vie\n","Résultat",null,"Le 'sentiment d'attachement' est un terme plutôt subjectif mais il s'agit ici d'évaluer le degré d'intégration dans la conception du projet d'éléments permettant de créer une identité, de rendre le site de projet reconnaissable, engendrant un sentiment d'appartenance (ex: préservation d'éléments existants, création de lieux pour accueillir des événements et activités...). Cela inclut le lien avec l'héritage culturel existant (préservation, restauration, réutilisation de bâtiments historiques et paysages culturels...)","Echelle de Likert:\n1 - Pas du tout d'accord : la volonté de créer un 'sentiment d'attachement' n'a pas  été intégrée à la conception du projet, les habitants ne sont pas en mesure d'identifier quoi que ce soit\n2 - Pas d'accord : la conception du projet a considéré ce 'sentiment d'attachement', mais comme un élément mineur de conception\n3 - Ni en désaccord ni d'accord : la création d'un 'sentiment d'attachement' a été prise en compte dans la conception du projet\n4 - D'accord : la création d'un 'sentiment d'attachement' a été prise en compte de manière importante dans la conception du projet\n5 - Tout à fait d'accord  : la prise en compte de ce 'sentiment d'attachement' dans la conception du projet est clairement identifiable et reconnaissable dans le projet, même pour des gens extérieurs",null,null,null,null,"Echelle de Likert",null,null,"x",null,null,null,null,"x","Enquête auprès de l'équipe projet, du service urbanisme de la collectivité et d'habitants/usagers & documentation sur le projet",null,null,"x",null,null,null,null,null,null,null,null,null,null,null,null,null,null,null,null,null,null,null,"x","x",null,null,"x",null,"x",null,null,null,"x","x",null,null,null,null,null,null,null,null,null,null,"x"]
[71,"Inclusion et équité sociale","Degré d'inclusion et d'équité sociale vis-à-vis de publics spécifiques et minoritaires","Résultat","Résultat","Cet indicateur vise à évaluer les efforts en terme d'inclusion et d'équité sociale vis-à-vis de publics spécifiques (notamment les femmes, les minorités sociales et culturelles, les personnes handicapées).","Echelle de Likert:\n1 - Pas du tout : le projet n'a pas amélioré l'intégration, ni l'équité vis-à-vis de publics spécifiques\n2 - Faible : le projet a amélioré, mais de manière très faible, l'intégration ou l'équité vis-à-vis de publics spécifiques\n3 - Moyen : le projet a amélioré dans une certaine mesure l'intégration ou l'équité vis-à-vis de publics spécifiques\n4 - Bon : le projet a amélioré de manière significative l'intégration ou l'équité vis-à-vis de publics spécifiques\n5 - Excellent : le projet a amélioré d'une manière remarquable l'intégration ou l'équité vis-à-vis de publics spécifiques",null,null,null,null,"Echelle de Likert",null,null,"x","x","x",null,null,"x","Enquête à mener auprès d'un échantillon représentatif des publics visés",null,null,"Adapté de CityKeys",null,null,null,null,null,null,null,"x",null,null,null,null,"x","x","x","x",null,"x",null,"x","x","x",null,"x","x","x",null,null,null,"x","x","x","x","x","x",null,"x",null,null,null,null,null,null,"x"]
[72,"Infiltration ou réutilisation des eaux pluviales","Part des eaux pluviales non rejetées au réseau ","Résultat",null,"Cet indicateur vise à identifier la part des eaux pluviales déconnectées du réseau d'assainissement, c'est à dire qui peuvent être gérées et infiltrées localement. Cet indicateur ne présente un intérêt que dans certains contextes, lorsque les couches géologiques sont perméables et les sols non pollués, permettant une infiltration.\nIl se calcule pour une pluie d'occurrence donnée (10 ans, 20 ans, 30 ans...) \nExemple :  100% des eaux pour une pluie de retour 10 ans et 20% des pluies pour une pluie de retour 30 ans traitées localement","Pour calculer cet indicateur, il est nécessaire de déterminer la pluie de référence et, pour cette pluie-là :\n- de calculer la surface active, à partir des données sur chaque type de surface et de coefficients de ruissellement\n- d'en déduire, sur la base des données de pluviométrie, les volumes à gérer pour cette pluie\n- de  calculer le volume d'eaux pluviales rejetées au réseau","Part d'eaux pluviales gérées localement les petites pluies :  pluie de retour 10 ans","Part d'eaux pluviales gérées localement pour une pluie de retour 20 ans","Part d'eaux pluviales gérées localement pour une pluie de retour 30 ans",null,"% de surface",null,null,"x",null,null,null,null,"x","Plan masse et données programmatiques  (différents types de surfaces extérieures et superficies correspondantes) + données pluviométriques + réglement d'assainissement local pour déterminer la pluie minimale à considérer\n\nNotice de gestion des eaux pluviales (dossier PRO/DCE Espaces publics)",null,null,null,null,null,null,null,null,null,null,null,null,null,null,null,null,null,null,null,null,null,null,null,null,null,null,"x","x","x","x",null,"x",null,null,null,null,null,null,null,null,null,null,null,null,null,null,null,null,"x",null,null,null,null,null,null,"x"]
[73,"Insertion urbaine du bâti","Différence de hauteur du bâti par rapport aux zones limitrophes","Résultat",null,"Cet indicateur vise à évaluer l'insertion urbaine du projet dans son environnement en termes de gabarit de bâti (hauteur minimale, moyenne et maximale des bâtiments par rapport à la hauteur moyenne des bâtiments des zones limitrophes).\nLa zone limitrophe peut être un îlot, un quartier...","L'indicateur correspond à la différence de hauteur entre la hauteur maximale et la hauteur maximale et moyenne sur les quartiers limitrophe",null,null,null,null,"m",null,null,"x","x",null,null,null,"x","Plan masse du projet et données collectivité pour les hauteurs des quartiers limitrophes",null,null,null,null,null,null,"AEU2/Strasbourg",null,null,null,null,null,null,null,null,null,null,null,null,null,null,null,"x","x",null,null,null,"x",null,null,null,null,null,null,null,null,null,null,null,null,null,null,null,null,"x"]
[74,"Intermittence du système énergétique","Nombre d'heures de fonctionnement par an","Résultat",null,"L'indicateur vise à évaluer l'intermittence et le taux de fonctionnement par an du système énergétique.","Il s'agit de mesurer le nombre d'heures de fonctionnement du système par an. Cette valeur peut aussi être traduite en pourcentage.",null,null,null,null,"Nombre d'heures","% d'heures",null,"x",null,null,null,null,"x","Données gestionnaire du système énergétique",null,null,null,null,null,null,null,null,null,null,null,null,null,"x",null,null,null,null,null,null,null,null,null,null,null,null,null,null,null,null,null,null,null,null,null,null,null,null,null,null,null,null,null,null,"(x)",null,null,null,null,null,"x"]
[75,"Labellisation écologique des espaces verts","Surface totale ayant reçu un label écologique","Résultat","Résultat","La surface labellisée est issue d'audits externes sur la base d'un référentiel de gestion écologique des espaces verts, de type \"Ecojardin\" ou \"Espace verts écologiques\".","Calcul : Surface d'espaces verts labelllisés (m²) / Surface totale d'espaces verts (m²)",null,null,null,null,"m2","% de surface",null,"x","x","x",null,null,"x","Données du service Espaces Verts de la collectivité",null,null,null,null,null,"Indicateur spécifique, Bordeaux, parc des Angéliques",null,null,null,null,null,null,null,null,null,null,null,null,null,null,null,null,null,null,null,null,null,null,"x",null,null,null,null,null,null,null,null,null,null,null,null,null,null,null,null,null,null,null,null,null,null,null,"x"]
[76,"Lien à l'urbain et qualité des espaces publics","Degré de prise en compte du lien à l'urbain et de la qualité des espaces publics","Résultat",null,"Dans le projet, quelle attention a été portée à la qualité des espaces publics traversés ?\nCette indicateur vise à qualifier l'impact du projet sur les espaces publics traversés par la ligne de TCSP en question : a-t-il été un facteur d'amélioration ou non, et comment.","L'indicateur vise à déterminer, sur une échelle de Likert, dans quelle mesure le projet a intégré dans sa conception ou son fonctionnement la qualité des espaces publics.\n1 - Tout à fait d'accord : Le projet a été l'occasion d'un réaménagement urbain le long de la ligne, qui a permis d'enclencher des opérations réhaussant la qualité des espaces publics (exemple : réaménagement façade à façade). Ces opérations sont au moins aussi importantes dans le projet que la fonction transport pure.\n2 - D'accord : Le projet a permis d'augmenter la qualité des espaces publics traversés (détailler)\n3 - Ni en désaccord ni d'accord : Le projet a été l'occasion de réhausser la qualité des espaces publics mais cet aspect n'est pas central dans le projet (expliquer)\n4 - Pas d'accord : Le projet n'a pas particulièrement amélioré la qualité des espaces publics (aspect peu traité dans le dossier en raison de ...)\n5 - Pas du tout d'accord : Le projet n'a eu aucun impact sur les espaces publics hors phase chantier (expliquer ; exemple : opérations de TCSP en souterrain).\nLe porteur doit justifier la réponse choisie.",null,null,null,null,"Echelle de Likert",null,null,null,null,null,null,null,"x",null,null,null,null,null,null,null,null,null,null,null,null,null,null,null,null,"x",null,null,null,null,null,null,null,null,null,null,null,null,null,null,null,null,null,null,null,null,null,null,null,null,null,null,null,null,"x"]
[77,"Linéaire de voiries accessibles aux PMR","Linéaire de trottoirs accessibles à tout public (adaptés PMR) rapportée à la longueur totale de voiries du secteur d'étude (en km linéaires)","Résultat","Résultat","Cet indicateur permet de mesurer la part des voiries qui disposent d'un trottoir accessible aux PMR (largeur de 2m minimale, pente inférieure à 5%  ...)","L'indicateur se calcule ainsi :\nlinéaire de troittoires accessibles à tout public (adaptés PMR) / linéaire totale de voirie du secteur d'étude",null,null,null,null,"% de voirie",null,null,"x","x","x",null,null,"x","Plan masse (dossier PRO/DCE)",null,null,null,null,null,null,null,null,null,null,null,null,null,null,null,null,null,null,null,null,null,null,null,null,null,null,null,"x",null,null,null,null,null,null,null,null,null,null,null,null,null,null,null,null,null,null,"x"]
[78,"Logements sociaux","Part de logements sociaux locatifs sur l'ensemble du projet","Résultat",null,"C'est le nombre de logements du parc locatif social ramené au nombre de résidences principales sur le périmètre du projet (bâtiment ou quartier). Toutefois, cet indicateur ne renseigne ni sur la qualité de l'offre ni sur le niveau de la demande (adéquation offre/demande). \nUn logement social définit comme un logement construit avec des aides (avantages fiscaux, subventions publiques et prêts à taux privilégiés), pour pouvoir loger des personnes aux revenus modestes. Il répond à plusieurs critère : \n- Etre agréé par l’Etat et financé avec des fonds publics\n- Faire l'objet d’une procédure d’attribution contrôlée par la puissance publique\n- Avoir un loyer plafonné\n- Accueillir des locataires qui disposent de ressources inférieures à un plafond et peuvent bénéficier de l’APL.","L'indicateur se calcule ainsi : \nNombre de logements locatifs sociaux / nombre de résidences\nprincipales",null,null,null,null,"% de logements",null,null,"x","x",null,null,null,"x","Plan masse du projet d'aménagement",null,null,null,null,null,null,"ARPE",null,null,null,null,null,null,null,null,null,null,null,null,null,null,null,"x","x",null,null,null,null,null,null,null,null,null,null,null,null,null,null,null,null,null,null,null,null,null,null,null,"x",null,null,null,null,null,null,null,null,null,"x"]
[79,"Matériaux certifiés en faveur de la santé et de l'environnement","Part de matériaux utilisés pour le gros oeuvre certifiés pour leurs caractéristiques sanitaires et environnementales","Résultat",null,"L‟indicateur permet d‟apprécier les résultats du projet vis-à-vis de l‟utilisation de matériaux certifiés pour leurs caractéristiques environnementales et sanitaires (écolabels : Bois FSC ou PEFC, NF environnement…)","L'indicateur se calcule ainsi : \nPoids de matériaux certifiés par bâtiment / \nSurface de plancher","Gros oeuvre","Second oeuvre",null,null,"kg/m2",null,null,"x","x",null,null,null,"x","Données de la MOA du projet",null,null,null,null,null,null,"IVDD / Label \"Bâtiment biosourcé\"",null,null,null,null,null,null,null,null,null,null,null,null,null,null,null,"x","x",null,null,null,null,null,null,null,null,null,null,null,null,null,null,null,null,null,null,null,null,null,"x",null,null,null,null,null,null,"(x)"]
[80,"Matériaux recyclables","Part des matériaux utilisés (sol, façade, etc.) qui seront recyclables en fin de vie","Résultat",null,"Il s'agit de quantifier la proportion des matériaux mis en place qui, en fin de vie, pourront être recyclés.","L'indicateur se calcule ainsi : \nquantité de matériaux recyclables / quantité totale de matériaux utilisés",null,null,null,null,"% de surface (m²)",null,null,"x",null,null,null,null,"x","Dossier PRO/DCE des espaces publics",null,null,"Adapté de CityKeys",null,null,null,null,null,null,null,null,null,null,null,null,null,null,null,null,null,null,null,"x","x",null,null,"x",null,null,null,null,null,null,null,null,null,null,null,null,null,null,null,null,null,null,null,null,null,null,null,null,null,null,null,"x"]
[81,"Matériaux recyclés","Part des matériaux recyclés ou récupérés sur les matériaux neufs pour la construction ou de la rénovation ","Résultat",null,"Il s'agit de définir à quel niveaux les matériaux utilisés lors de la construction  ou de la rénovation proviennent d'éléments reyclés","L'indicateur se calcule ainsi : \nQuantité de matériaux recyclés / Quantité de matériaux totale",null,null,null,null,"% de matériaux recyclés utilisés",null,null,"x","x",null,null,null,"x","Opérateur des travaux, collectivité-MOA et promoteurs",null,null,null,null,null,null,"AEU3",null,null,null,null,null,null,null,null,null,null,null,null,null,null,null,"x","x",null,null,"x",null,null,null,null,null,null,null,null,null,null,null,null,null,null,null,null,null,null,null,null,null,null,null,null,null,null,null,"x"]
[82,"Niveau de fréquentation ","Nombre d'usagers de l'équipement ou du service","Résultat",null,"Cet indicateur mesure le niveau de fréquentation des équipements (bibliothèques, piscines, gymnases...), des services (centres d'animation, antennes jeunes…) et des espaces publics (jardins...)","Nombre total d'usagers ou de visiteurs ",null,null,null,null,"Nombre d'usagers ou de visiteurs",null,null,"x",null,null,null,"x","x","Données de l'exploitant du service ou de l'équipement",null,null,null,null,null,null,"Adapté de la Direction de l’évaluation, de la prospective et de la performance (Depp)",null,null,null,null,null,null,null,null,null,null,null,null,null,null,null,null,null,null,null,"x",null,"x",null,null,null,"x","x","x",null,"x","x",null,null,null,null,null,"x","(x)"]
[83,"Nombre de manifestations pérennes et/ou éphémères","Nombre de manifestations organisés par le projet","Résultat",null,"Cet indicateur vise à comptabiliser le nombre de manifestations organisées par le projet. Parmi les manifestations organisées par le projet, sont notamment prises en compte :\n- Les manifestations culturelles, sportives,...\n- Les salons et foires\n- Les campagnes de sensibilisation et d'information\n- Autres évènements organisés\nL'indicateur indique le nombre et la durée totale (en jours) des manifestations organisées par le projet",null,"Possibilité de distinguer les manifestations selon leur catégorie (i.e. \"définition des termes\")","Nombre de manifestations","Durée des manifestations (en nombre de jours)",null,"Nombre (de manifestations ou de jours de manifestation)",null,null,"x",null,null,null,null,"x","Données issues du projet",null,null,null,null,null,null,"« Un aménagement durable pour Paris » (Ville de Paris, 2010)",null,null,null,null,null,null,null,null,null,null,null,null,null,null,null,null,null,null,null,null,null,null,null,null,null,"x","x","x",null,null,null,null,null,null,null,null,"x"]
[84,"Nombre de place de stationnement voiture par habitant","Nombre de place de stationnement voiture par habitant","Résultat",null,"Cet indicateur traduit l'effort d'optimisation de la place de la voiture, en fonction du contexte (ex: pertinence de la création de places de stationnement près de certains pôles multimodaux pour permettre le rabattement des utilisateurs sur du transport en commun, mais pertinence de réduire le nombre de places de stationnement dans des projets d'aménagement très bien desservis en transports en commun).","L'indicateur est le ratio entre le nombre de place de stationnement voiture du projet et le nombre d'habitants sur le site.\nLe nombre de place proposé peut aussi être rapporté au nombre de logement de l'opération.\nPour le tertiaire le ratio est entre le nombre de place et le nombre d'utilisateurs.","Logements","Bureaux",null,null,"Nombre de place de stationnement / habitant","Nombre de place de stationnement / usager","Nombre de place de stationnement / logement","x",null,null,null,null,"x","Données issues du projet : dossier PRO/DCE Espaces publics et dossiers permis de construire",null,null,null,null,null,null,null,null,null,null,null,null,null,null,null,null,null,null,"x",null,null,"x","x",null,null,null,"x",null,null,null,null,null,null,null,null,null,null,null,null,null,null,null,null,null,"x",null,null,null,null,null,null,null,null,"x"]
[85,"Nombre de places de stationnement vélo par habitant","Nombre de places de stationnement vélo sur l'espace public  par habitant","Résultat","Résultat","Cet indicateur permet d'évaluer la politique publique à destination des cyclistes, en vue d'encourager la pratique et d'offrir aux usagers des équipements de stationnement bien localisés, abrités et sécurisés. ","L'indicateur se calcule ainsi : \nNombre de places de stationnement vélo sur l'espace public / Nombre d'habitants sur le périmètre géographique de l'étude","Par type d'usagers : habitants, bureaux, autres","Places vélos abritées","Places vélos sécurisées",null,"Nombre de places de stationnement","Nombre de places / usager",null,"x","x","x",null,null,"x","Données collectivité",null,null,null,null,null,null,"Adapté indicateurs Montpellier",null,null,null,null,null,null,null,null,null,null,null,null,null,"x","x",null,null,null,null,"x",null,null,null,null,null,null,null,null,null,null,null,null,null,null,null,null,"x","x",null,null,null,"x"]
[86,"Nombre de véhicule utilisés par semaine","Nombre de véhicules utilisés pour la logistique urbaine par semaine","Résultat",null,"Cet indicateur de résultat traduit les efforts réalisés en termes d'optimisation des flux de véhicules. Il permet d'établir une comparaison avec une situation de référence (situation avant projet ou estimations lors de la conception du projet).","L'indicateur se calcule ainsi : \nNombre de camions utilisés par semaine dans la situation de référence - Nombre de camions utilisés en pratique par semaine",null,null,null,null,"Nombre de véhicule par semaine","Nombre de véhicules par semaine en moins / en plus",null,"x",null,null,null,null,"x",null,null,null,null,null,null,"Indicateur spécifique, Bordeaux, Logistique urbaine",null,null,null,null,null,null,null,null,null,null,null,null,null,"x",null,null,null,null,null,null,null,null,null,null,null,null,null,null,null,null,null,null,null,null,null,null,null,"x",null,null,null,null,null,null,"x","x",null,null,null,null,"x"]
[87,"Nombre d'heures d'ouverture de l'espace vert","Nombre d'heure d'ouverture journalière moyenne du parc en hiver et en été","Résultat",null,"Cet indicateur vise à évaluer l'accessibilité des espaces verts publics tout au long de l'année, et notamment en été. Une plage horaire d'ouverture importante en été permet en effet d'offrir aux habitants un espace de fraicheur en cas de fortes chaleurs.","L'indicateur se calcule ainsi :\nNombre total d'heures où le parc est ouvert durant les mois de juin, juillet, août, septembre / 122 ","Eté","Hiver",null,null,"Nombre d'heures par jour",null,null,"x",null,null,null,null,"x","Données du service gestionnaire des espaces verts de la collectivité",null,null,null,null,null,"Adapté Indicateur spécifique, Marseille, Parc Bougaincille",null,null,null,null,null,null,null,null,null,null,null,null,null,null,null,null,null,null,null,null,null,null,"x",null,null,null,null,null,null,null,null,null,null,null,null,null,null,"x"]
[88,"Part de la surface dédiée à l'agriculture urbaine","Part de la surface du projet dédiée à l'agriculture urbaine","Résultat",null,"Cet indicateur inclut toutes les surfaces dédiées à l'agriculture urbaine (ex: potager au sol dans l'espace public, fermes urbaines en toiture, etc.)","L'indicateur se calcule ainsi :\nsurface dédiée à l'agriculture urbaine / surface totale du projet.",null,null,null,null,"% de la surface au sol totale",null,null,"x",null,null,null,null,"x","Plan masse ou données programmatiques projet",null,null,null,null,null,null,null,null,null,null,null,null,null,null,null,null,null,null,null,null,null,null,"x","x",null,null,"x",null,"x","x",null,null,null,null,null,null,null,null,null,null,null,null,null,null,"x",null,null,null,"x",null,null,null,null,"x"]
[89,"Part de logements destinés à accueillir des publics spécifiques ","Part de logements destinés à accueillir des publics spécifiques ","Résultat",null,"L'accueil des publics spécifiques doit permmetre à toutes les catégories de population d'accéder au logement : familles \"classiques\" et monoparentales, personnes âgées, étudiants, travailleurs migrants, personnes démunies, sans abris, etc.","L'indicateur se calcule ainsi : \nNombre de logement dédié à l'accueil de publics spécifiques / nombre de logement total",null,null,null,null,"% d'habitants",null,null,"x","x",null,null,null,"x","Données issues du projet (plan masse et dossiers PC déposés)",null,null,null,null,null,null,"Référentiel \"un aménagement durable pour Paris\"",null,null,null,null,null,null,null,null,null,null,null,null,null,null,null,"x","x",null,null,null,null,null,null,null,null,null,null,null,null,null,null,null,null,null,null,null,null,null,null,"x"]
[90,"Part d'espèces végétales adaptées","Part d'espèces végétales introduites dans le cadre d'un projet qui sont favorables à la biodiversité","Résultat",null,"Les espèces végétales sont adaptées si elles sont indigènes de la région ou du milieu naturel en question, ne nécessitent pas d'entretien particulier, peuvent se développer avec un faible volume d'eau, peuvent accueillir de la faune (par leur densité, taille...).","Plusieurs méthodes de calcul peuvent être appliquées à cet indicateur : calcul global en raisonnant en surface en m² OU calcul par strate, en raisonnant pour les arbres et arbustes en nombre de pieds et pour la strate herbacée en m².","Par strate (strate arborée, strate arbustive, strate herbacée) ou au global","Part d'espèces régionales dans la palette OU part d''espèces régionales et adaptées",null,null,"% d'espèces ",null,null,"x","x",null,null,null,"x","Palette végétale et plan DCE des espaces publics au sein d'un projet d'aménagement + dossiers PC pour les lots privés",null,null,null,null,null,null,"AEU2",null,null,null,null,null,null,null,null,null,null,null,null,null,null,null,null,null,null,null,null,null,"x",null,null,null,null,null,null,null,null,null,null,null,null,null,null,null,null,null,null,null,null,null,null,null,"x"]
[91,"Parts modales","Proportion de déplacements réalisés dans chaque mode","Résultat","Résultat","Les parts modales correspondent à la part prise par les différents modes de transports  (voiture, transports publics, vélo, marche) dans la mobilité.","L'indicateur se calcule en dénombrant par un traitement statistique les déplacements effectués dans chaque mode ; cette donnée peut avoir différentes sources (bases de données locales ou nationales, enquête). Le traitement sera à adapter selon la structuration de la source de données.","Type de mode (TC, VP, marche, 2 roues, ...)","Motif (domicile-travail, domicile-étude, ...) => selon base de données utilisée",null,null,"% de déplacements",null,null,"x","x","x",null,null,"x","Enquête Ménages-Déplacements","Autres (enquêtes ponctuelles, études de pôle, ...)","Bases INSEE (Mobilités Professionnelles, Mobilités Scolaires)",null,null,null,"Indicateur spécifique, Lille, Centre de services et de mobilités","ARPE / @d",null,null,null,null,null,null,null,null,null,"x","x",null,null,null,null,null,null,null,null,null,null,null,null,null,null,null,null,null,null,null,null,null,null,null,null,null,"x","x",null,null,null,"x",null,"x",null,null,"x"]
[92,"Politique tarifaire pour les personnes à faibles revenus","Existence d'une politique tarifaire pour les personnes à faibles revenus","Résultat",null,"Cet indicateur vise à evaluer les efforts réalisés pour améliorer l'accessibilité financière du service.","Est-ce que pour l'accès à l'équipement ou au service une politique tarifaire particulière est dédiée aux personnes à faibles revenus (oui/non) ? Puis développer la réponse.",null,null,null,null,"Oui/non",null,null,"x",null,null,null,null,"x","Données issues du projet",null,null,null,"ISO 37151",null,null,null,null,"x","x",null,null,"x","x",null,"x","x","x","x",null,"x","x","x","x","x",null,null,null,null,"x",null,null,"x","x","x","x","x","x",null,null,null,"x",null,null,null,null,null,"x",null,null,null,null,null,null,null,null,null,"x"]
[93,"Prise en compte de la biodiversité et des écosystèmes","Degré de prise en compte de la biodiversité et des écosystèmes","Résultat",null,"L'urbanisation affecte la biodiversité et la qualité des écosystèmes par l'étalement urbain, la réduction des terres fertiles et la propagation d'espèces envahissantes. Une perte en qualité des écosystèmes et en biodiversité menace la production agricole, réduit les opportunités de loisirs et de tourisme et affecte une diversité de sources médicinales, des variétés de bois et d'énergie. Cela interfère aussi avec les fonctions écologiques essencielles, comme la capture du CO2, la rédulation du climat et la filtration de l'air. \nCet indicateur analyse les efforts qui ont été mis en place par le projet pour augmenter la biodiversité et la qualité des écosystèmes.","L'indicateur vise à déterminer, sur une échelle de Likert, dans quelle mesure le projet a pris en compte dans sa conception ou son fonctionnement la prise la biodiversité et les écosystèmes.\n1 - Tout à fait d'accord : La projet a permis d'apporter des améliorations majeures de la qualité de l'écosystème et de la biodiversité\n2 - D'accord : La projet a permis d'apporter beaucoup d'améliorations de la qualité de l'écosystème et de la biodiversité\n3 - Ni en désaccord ni d'accord : La projet a permis d'apporter quelques améliorations de la qualité de l'écosystème et de la biodiversité\n4 - Pas d'accord : Le projet a peu tenu compte de la qualité de l'écosystème et de la biodiversité\n5 - Pas du tout d'accord : Le projet n'a pas tenu compte de la qualité de l'écosystème et de la biodiversité",null,null,null,null,"Echelle de Likert",null,null,"x",null,null,null,null,"x","Enquête à mener",null,null,"x",null,null,null,null,null,"x","x","x","x","x","x","x","x","x","x","x","x","x","x","x","x","x","x","x","x","x","x","x","x","x","x","x","x","x","x","x","x","x","x",null,null,null,null,null,null,null,null,null,null,"x",null,null,null,"x"]
[94,"Prise en compte de la cohésion urbaine","Degré de prise en compte de la cohésion urbaine","Résultat",null,"Dans le projet, quelle attention a été portée à la cohésion urbaine ?\nCette indicateur vise à déterminer si le projet a été pensé en silo, ou au contraire si son incrémentation au tissu d'implantation a été une composante majeure du projet. La cohésion urbaine peut être définie comme ce qui fait qu'une ville fait bloc, comme un tout, aussi bien au niveau social que spatial. Ainsi, le TCSP doit trouver sa place au sein des équilibres déjà présents sans les bouleverser.","L'indicateur vise à déterminer, sur une échelle de Likert, dans quelle mesure le projet a intégré dans sa conception ou son fonctionnement des éléments de cohésion urbaine.\n1 - Tout à fait d'accord : Le projet remodèle les divers équilibres qui structurent l'espace urbain : il déplace certaines lignes de force et en crée d'autre, de manière à augmenter la cohésion.\n2 - D'accord : Le projet s'inscrit dans l'espace pensé comme un tout\n3 - Ni en désaccord ni d'accord : Le projet tient compte de l'espace dans lequel il s'inscrit mais n'est ni déterminé par lui, ni n'a d'impact massifs sur cet espace autre que pour la voie de circulation\n4 - Pas d'accord : Le projet ne comporte pas de mesure spécifique pour s'adapter au contexte urbain environnant car ce dernier n'a pas de caractéristique particulière qui nécessite une telle prise en compte\n5 - Pas du tout d'accord : Aucune attention n'a été portée au contexte local \nLe porteur doit justifier la réponse choisie.",null,null,null,null,"Echelle de Likert",null,null,null,null,null,null,null,"x",null,null,null,null,null,null,null,null,null,null,null,null,null,null,null,null,"x",null,null,null,null,null,null,null,null,null,null,null,null,null,null,null,null,null,null,null,null,null,null,null,null,null,null,null,null,"x","x",null,"x","x","x","x",null,"x","x",null,"x",null,"x",null,null,"x"]
[95,"Prise en compte des nouveaux comportements de mobilité","Degré de prise en compte des nouveaux comportements de mobilité","Résultat",null,"Le projet a-t-il pris en compte (et si oui comment) les nouveaux comportements de mobilité : SmartPhones, applications de guidage, covoiturage, … ?\nCette question porte sur l'innovation liée au TCSP : pas au projet en soi, mais sur sa capacité à prendre en compte un contexte évolutif au sujet des comportements de ses usagers.","L'indicateur vise à déterminer, sur une échelle de Likert, dans quelle mesure le projet a intégré dans sa conception ou son fonctionnement les nouveaux comportements de mobilité.\n1 - Tout à fait d'accord : Le projet repose sur de nouveaux comportements de la part des usagers, il a été pensé pour les impulser (décrire en quoi)\n2 - D'accord : L'une des composantes principales du projet est consacrée aux nouveaux comportements des usagers (dire laquelle et la place qu'elle occupe dans le projet en général) (justifier)\n3 - Ni en désaccord ni d'accord : Le projet prend en compte les nouveaux comportements des usagers mais ceux-ci ne définissent pas son essence (justifier)\n4 - Pas d'accord : Le projet ne comporte pas vraiment de pan consacré aux nouveaux comportements des usagers (expliquer pourquoi ; exemple : nouveaux comportements non constatés pour le territoire en question, ...)\n5 - Pas du tout d'accord : Le projet n'a pas de lien avec de nouveaux comportements des usagers\nLe porteur doit justifier la réponse choisie.",null,null,null,null,"Echelle de Likert",null,null,null,null,null,null,null,"x",null,null,null,null,null,null,null,null,null,null,null,null,null,null,null,null,"x",null,null,null,null,null,null,null,null,null,null,null,null,null,null,null,null,null,null,null,null,null,null,null,null,null,null,null,"x"]
[96,"Prise en compte du patrimoine existant ","Degré de prise en compte du patrimoine existant (architectural, urbain, culturel et naturel) par le projet","Résultat",null,"La notion de \"patrimoine\" est entendue dans son acception large, elle recouvre les aspects historiques et culturels du contexte local, mais aussi le caractère, l'urbanisme et l'architecture du bâti ainsi que la préservation et valorisation du patrimoine naturel et des paysages.","L'indicateur vise à déterminer, sur une échelle de Likert, dans quelle mesure le projet a intégré dans sa conception ou son fonctionnement des éléments du patrimoine existant local (architectural, urbain, culturel et naturel).\n1 - Tout à fait d'accord : Des éléments du patrimoine existant local ont été pleinement intégrés dans la conception ou le fonctionnement du projet.\n2 - D'accord : La projet a pris en compte des éléments du patrimoine existant local.\n3 - Ni en désaccord ni d'accord : La projet a considéré l'existance d'un patrimoine local\n4 - Pas d'accord : Le projet a peu tenu compte des éléments du patrimoine existant local\n5 - Pas du tout d'accord : Le projet n'a pas tenu compte des éléments du patrimoine existant local","Variable selon le type d'action",null,null,null,"Echelle de Likert",null,null,"x",null,null,null,null,"x","Enquête à mener ",null,null,"x",null,null,null,null,null,null,null,null,"x",null,null,null,"x",null,"x",null,null,null,null,"x","x",null,null,"x","x","x",null,null,null,"x","x",null,"x","x","x",null,"x",null,null,null,null,"x"]
[97,"Production alimentaire locale","Quantité d'aliments produits localement","Résultat",null,"Cet indicateur vise à évaluer le \"rendement\" des dispositifs d'agriculture urbaine:\n- production alimentaire surfacique : kg/m²/an\n- production alimentaire par habitant : kg/m²/hab",null,"Ratio : production alimentaire en kg/an par m² dédié à l'agriculture urbaine ","Ratio : production alimentaire en kg/an par habitant du quartier",null,null,"kg/an","kg/an/m² dédié à l'agriculture urbaine","kg/an/hab","x",null,null,null,"x","x","Données exploitant","Données bailleur/copropriétés",null,null,null,null,null,null,null,null,null,null,null,null,null,null,null,null,null,null,null,null,null,null,null,null,null,null,null,null,"x",null,null,null,null,null,null,null,null,null,null,null,null,null,null,null,null,null,null,"x"]
[98,"Production d'énergie renouvelable du bâtiment","Quantité d'énergie renouvelable produite par m2 du projet","Résultat",null,"Cet indicateur vise à évaluer la quantité d'énergie renouvelable produite par le bâtiment en phase exploitation. \nLa loi de programme fixant les orientations de la politique énergétique française du 13 juillet 2005 (article 29) définit les sources d'énergie renouvelables ; il s'agit des « énergies éolienne, solaire, géothermique, houlomotrice, marémotrice et hydraulique ainsi que l'énergie issue de la biomasse, du gaz de décharge, du gaz de stations d'épuration d'eaux usées et du biogaz. »\nIl convient de calculer séparément la quantité d'ENR produite pour l'électricité, la chaleur, le froid et l'eau chaude sanitaire.","Il s'agit du ratio entre la quantité d'énergie renouvelable produite par postes (électricité, eau chaude sanitaire, chaud, froid) par an rapportée à la surface de plancher du projet en m2. ","Chauffage","Froid","Electricité","ECS","kWh/an","kWh/m2/an",null,"x",null,null,null,"x","x","Données issues du projet (dossiers PC déposés)",null,null,null,null,null,null,null,null,null,null,null,null,null,null,null,null,null,null,null,null,null,null,"x","x",null,null,null,null,null,null,null,null,null,null,null,null,null,null,null,null,null,null,null,null,null,null,null,null,null,null,"x"]
[99,"Production d'énergie totale du système énergétique","Production énergétique totale","Résultat",null,"Cet indicateur donne la production de chaleur, de froid et d'électricité du système énergétique sur une année.","L'indicateur se calcule ainsi :\nQuantité d'énergie produite en GWh par an ",null,null,null,null,"GWh/an",null,null,"x",null,null,null,"x","x","Données exploitant",null,null,null,null,null,null,null,null,null,null,null,null,null,"x",null,null,null,null,null,null,null,null,null,null,null,null,null,null,null,null,null,null,null,null,null,null,null,null,null,null,null,null,null,null,null,null,null,null,null,null,"x"]
[100,"Proximité des espaces publics extérieurs de récréation","Surface d'espaces publics extérieurs de récréation disponible","Résultat",null,"Vis à vis d'un point donné (ex: bâtiment), cet indicateur mesure la surface d' espaces publics extérieurs de récreation qui sont accessibles dans un rayon de 500m autour de ce point.\nEst entendu par espace de récréation les espaces extérieurs ou intérieurs ouverts au public disponibles pour des activités de récréation (parc, cour de récréation...)","Cet indicateur se calcule en traçant un cercle de 500 m de rayon autour du bâtiment ou objet pour lequel on souhaite connaître la proximité des espaces publics extérieurs, puis en mesurant la superficie desdits espaces au sein de ce cercle.",null,null,null,null,"m2",null,null,"x",null,null,null,null,"x","Données SIG de la collectivité","Données de la population géolocalisées",null,"x",null,null,null,null,null,null,null,null,null,null,null,null,null,null,null,null,null,null,null,"x",null,null,null,"x",null,null,null,null,null,null,"x",null,null,null,null,null,null,null,null,null,"x"]
[101,"Proximité des espaces verts","Part de la population qui dispose d'un espace vert à proximité","Résultat","Résultat","Cet indicateur vise à évaluer la part de la population qui dispose d'un espace vert à proximité, c'est à dire à moins de 300m.\nLes espaces verts considérés sont ceux supérieur à 15m2 afin de prendre en compte les parc, les squares mais pas les parterres.","Cet indicateur se calcule ainsi :  \nnombre d'habitants habitant à moins de 300m d'un espace vert / nombre total d'habitants\nCet indicateur se calcule en traçant des cercles concentriques de 300 mètres de rayon autour de tous les espaces verts du périmètre d'étude puis en calculant le nombre d'habitants situés à l'intérieur de ces cercles, et de rapporter ce nombre au nombre total d'habitants au sein du périmètre d'étude.",null,null,null,null,"% d'habitants","% de logements",null,"x","x","x",null,null,"x","Plan masse ou plan des espaces verts de la collectivité","Données de la population géolocalisées",null,null,null,null,null,"Paris",null,null,null,null,null,null,null,null,null,null,null,null,null,"x",null,null,null,null,null,null,null,"x",null,null,null,null,null,null,null,null,null,null,null,null,null,null,"x"]
[102,"Proximité des services de base (Alimentaire)","Part de la population qui vit à proximité d'un commerce alimentaire","Résultat","Résultat","Cet indicateur mesure la part de la population qui vit à proximité de commerces alimentaires.\nLa proximité aux services de base améliore la qualité de vie des habitants et les conditions de vie de la population, dans la mesure où il est possible de s'y rendre en parcourant les distances à pied ; ce qui a un effet direct pour qu'une ville devienne plus accessible. Obtenir des résultats appropriés pour cet indicateur est souhaitable, non seulement parce que la proximité des services de base contribue à améliorer la qualité de vie, mais également parce que cela a un effet positif en matière d'économie d'énergie, de temps de travail, de pollution, etc.\nLes commerces alimentaires pris en compte (et les distances pour calculer la proximité) sont :\nApprovisionnement en produits alimentaires de base : distance de 500 m\nApprovisionnement du marché : distance de 500 m","Cet indicateur se calcule à partir de données géolocalisées et s'appuit sur des systèmes d'information géographiques (SIG). Il doit être calculé de préférence en prenant en compte les distances réelles (graphe des routes), le cas échéant des \"buffers\" peuvent être utilisés (distance à vol d'oiseau). \nCet indicateur se calcule selon la formule suivante (exprimée en %) : nombre de logements (et/ou d'immeuble de bureaux) à 500m d'un commerce alimentaire / nombre total de logements (ou d'immeuble de bureaux) x 100\nUne possibilité alternative est de prendre pour base de calcul la part de la population (et non la part des bâtiments). Dans ce second cas, l'indicateur se calcule selon la formule suivante (exprimée en %) : nombre d'habitants qui vive à 500m d'un commerce alimentaire / nombre total d'habitants x 100","Préciser si seuls les bâtiments résidentiels sont pris en compte et/ou les bâtiments de bureaux. \n\nIdem pour la population, est-ce qu'il s'agit uniquement des habitants, des emplois, ou des habitants + emplois","Commerces alimentaires","Marché","Autres types de commerces alimentaires","%\n\n(part des logements et/ou des bureaux à proximité d'un commerce alimentaire)","%\n\n(la part des habitants à proximité d'un commerce alimentaire)",null,"x","x","x",null,null,"x","Données de la population géolocalisées","Données des équipements géolocalisées (ex : base SIRENE...)","Données collectivité","Adapté de CityKeys","Adapté de ISO 37151","x",null,null,null,null,null,null,null,null,null,null,null,null,null,null,null,null,null,"x",null,null,null,null,null,null,null,null,null,null,null,null,null,"x",null,null,"x",null,null,null,"x"]
[103,"Proximité des services de base (Centres culturels)","Part de la population qui vit à proximité d'un centre culturel","Résultat","Résultat","Cet indicateur mesure la part de la population qui vit à proximité d'un centre culturel.\nLa proximité aux services de base améliore la qualité de vie des habitants et les conditions de vie de la population, dans la mesure où il est possible de s'y rendre en parcourant les distances à pied ; ce qui a un effet direct pour qu'une ville devienne plus accessible. Obtenir des résultats appropriés pour cet indicateur est souhaitable, non seulement parce que la proximité des services de base contribue à améliorer la qualité de vie, mais également parce que cela a un effet positif en matière d'économie d'énergie, de temps de travail, de pollution, etc.\nLes centres culturels pris en compte (et les distances pour calculer la proximité) sont :\nBibliothèques publiques, musées et autres centres culturels : distance de 500 m.\n","Cet indicateur se calcule à partir de données géolocalisées et s'appuit sur des systèmes d'information géographiques (SIG). Il doit être calculé de préférence en prenant en compte les distances réelles (graphe des routes), le cas échéant des \"buffers\" peuvent être utilisés (distance à vol d'oiseau). \nCet indicateur se calcule selon la formule suivante (exprimée en %) : nombre de logements (et/ou d'immeuble de bureaux) à 500m d'un centre culturel / nombre total de logements (ou d'immeuble de bureaux) x 100\nUne possibilité alternative est de prendre pour base de calcul la part de la population (et non la part des bâtiments). Dans ce second cas, l'indicateur se calcule selon la formule suivante (exprimée en %) : nombre d'habitants qui vive à 500m d'un centre culturel / nombre total d'habitants x 100","Préciser si seuls les bâtiments résidentiels sont pris en compte et/ou les bâtiments de bureaux. \n\nIdem pour la population, est-ce qu'il s'agit uniquement des habitants, des emplois, ou des habitants + emplois","Bibliothèques publiques","Musées","Autres centres culturels","%\n\n(part des logements et/ou des bureaux à proximité d'un centre culturel)","%\n\n(part des habitants à proximité d'un centre culturel)",null,"x","x","x",null,null,"x","Données de la population géolocalisées","Données des équipements géolocalisées (ex : base SIRENE...)","Données collectivité","Adapté de CityKeys","Adapté de ISO 37151","x",null,null,null,null,null,null,null,null,null,null,null,null,null,null,null,null,null,"x",null,null,null,null,null,null,null,null,null,null,"x",null,null,null,null,null,null,null,null,null,"x"]
[104,"Proximité des services de base (Centres de loisirs)","Part de la population qui vit à proximité d'un centre de loisirs","Résultat","Résultat","Cet indicateur mesure la part de la population qui vit à proximité d'un centre de loisirs.\nLa proximité aux services de base améliore la qualité de vie des habitants et les conditions de vie de la population, dans la mesure où il est possible de s'y rendre en parcourant les distances à pied ; ce qui a un effet direct pour qu'une ville devienne plus accessible. Obtenir des résultats appropriés pour cet indicateur est souhaitable, non seulement parce que la proximité des services de base contribue à améliorer la qualité de vie, mais également parce que cela a un effet positif en matière d'économie d'énergie, de temps de travail, de pollution, etc.\nLes centres de loisirs pris en compte (et les distances pour calculer la proximité) sont :\nCinémas, théâtres et autres centres de divertissement : distance de 500 m.","Cet indicateur se calcule à partir de données géolocalisées et s'appuit sur des systèmes d'information géographiques (SIG). Il doit être calculé de préférence en prenant en compte les distances réelles (graphe des routes), le cas échéant des \"buffers\" peuvent être utilisés (distance à vol d'oiseau). \nCet indicateur se calcule selon la formule suivante (exprimée en %) : nombre de logements (et/ou d'immeuble de bureaux) à 500m d'un centre de loisirs / nombre total de logements (ou d'immeuble de bureaux) x 100\nUne possibilité alternative est de prendre pour base de calcul la part de la population (et non la part des bâtiments). Dans ce second cas, l'indicateur se calcule selon la formule suivante (exprimée en %) : nombre d'habitants qui vive à 500m d'un centre de loisirs / nombre total d'habitants x 100","Préciser si seuls les bâtiments résidentiels sont pris en compte et/ou les bâtiments de bureaux. \n\nIdem pour la population, est-ce qu'il s'agit uniquement des habitants, des emplois, ou des habitants + emplois","Cinémas","Théâtres","Autres centres de divertissements","%\n\n(part des logements et/ou des bureaux à proximité d'un centre de loisirs)","%\n\n(la part des habitants à proximité d'un centre de loisirs)",null,"x","x","x",null,null,"x","Données de la population géolocalisées","Données des équipements géolocalisées (ex : base SIRENE...)","Données collectivité","Adapté de CityKeys","Adapté de ISO 37151","x",null,null,null,null,null,null,null,null,null,null,null,null,null,null,null,null,null,"x",null,null,null,null,null,null,null,null,null,null,"x",null,null,null,null,null,null,null,null,null,"x"]
[105,"Proximité des services de base (Centres de santé et de soin)","Part de la population qui vit à proximité d'un centre de santé et de soin","Résultat","Résultat","Cet indicateur mesure la part de la population qui vit à proximité d'un centre de soin et de santé.\nLa proximité aux services de base améliore la qualité de vie des habitants et les conditions de vie de la population, dans la mesure où il est possible de s'y rendre en parcourant les distances à pied ; ce qui a un effet direct pour qu'une ville devienne plus accessible. Obtenir des résultats appropriés pour cet indicateur est souhaitable, non seulement parce que la proximité des services de base contribue à améliorer la qualité de vie, mais également parce que cela a un effet positif en matière d'économie d'énergie, de temps de travail, de pollution, etc.\nLes centres de santé et de soin pris en compte (et les distances pour calculer la proximité) sont :\nCentres médicaux (en incluant les cabinets médicaux, les médecins généralistes, les pharmacies...) : distance de 500 m\nHôpitaux : distance de 1 000 m (optionnel)","Cet indicateur se calcule à partir de données géolocalisées et s'appuit sur des systèmes d'information géographiques (SIG). Il doit être calculé de préférence en prenant en compte les distances réelles (graphe des routes), le cas échéant des \"buffers\" peuvent être utilisés (distance à vol d'oiseau). \nCet indicateur se calcule selon la formule suivante (exprimée en %) : nombre de logements (et/ou d'immeuble de bureaux) à 500m d'un centre médical / nombre total de logements (ou d'immeuble de bureaux) x 100\nUne possibilité alternative est de prendre pour base de calcul la part de la population (et non la part des bâtiments). Dans ce second cas, l'indicateur se calcule selon la formule suivante (exprimée en %) : nombre d'habitants qui vive à 500m d'un centre médical / nombre total d'habitants x 100","Préciser si seuls les bâtiments résidentiels sont pris en compte et/ou les bâtiments de bureaux. \n\nIdem pour la population, est-ce qu'il s'agit uniquement des habitants, des emplois, ou des habitants + emplois","Centres médicaux (préciser les types qui ont été retenus pour le calcul : cabinets médicaux, médecins généralistes, pharmacies...)","Hôpitaux","Autres types de centres de santé et de soin","%\n\n(la part des logements et/ou des bureaux à proximité d'un centre de santé et de soin)","%\n\n(part des habitants à proximité d'un centre de santé et de soin)",null,"x","x","x",null,null,"x","Données de la population géolocalisées","Données des équipements géolocalisées (ex : base SIRENE...)","Données collectivité","Adapté de CityKeys","Adapté de ISO 37151","x",null,null,null,null,null,null,null,null,null,null,null,null,null,null,null,null,null,"x",null,null,null,null,null,null,null,null,null,null,null,"x",null,null,null,null,null,null,null,null,"x"]
[106,"Proximité des services de base (Centres d'éducation)","Part de la population qui vit à proximité d'un centre d'éducation","Résultat","Résultat","Cet indicateur mesure la part de la population qui vit à proximité des centres d'éducation.\nLa proximité aux services de base améliore la qualité de vie des habitants et les conditions de vie de la population, dans la mesure où il est possible de s'y rendre en parcourant les distances à pied ; ce qui a un effet direct pour qu'une ville devienne plus accessible. Obtenir des résultats appropriés pour cet indicateur est souhaitable, non seulement parce que la proximité des services de base contribue à améliorer la qualité de vie, mais également parce que cela a un effet positif en matière d'économie d'énergie, de temps de travail, de pollution, etc.\nLes centres d'éducation pris en compte (et les distances pour calculer la proximité) sont :\nÉcole maternelle : distance de 300 m.\nÉcole primaire : distance de 300 m.","Cet indicateur se calcule à partir de données géolocalisées et s'appuit sur des systèmes d'information géographiques (SIG). Il doit être calculé de préférence en prenant en compte les distances réelles (graphe des routes), le cas échéant des \"buffers\" peuvent être utilisés (distance à vol d'oiseau). \nCet indicateur se calcule selon la formule suivante (exprimée en %) : nombre de logements (et/ou d'immeuble de bureaux) à 300m d'un centre d'éducation / nombre total de logements (ou d'immeuble de bureaux) x 100\nUne possibilité alternative est de prendre pour base de calcul la part de la population (et non la part des bâtiments). Dans ce second cas, l'indicateur se calcule selon la formule suivante (exprimée en %) : nombre d'habitants qui vive à 300m d'un centre d'éducation / nombre total d'habitants x 100\n","Préciser si seuls les bâtiments résidentiels sont pris en compte et/ou les bâtiments de bureaux. \n\nIdem pour la population, est-ce qu'il s'agit uniquement des habitants, des emplois, ou des habitants + emplois","Ecole maternelle","Ecole primaire","Autres établissements d'éducation et de formation (et la distance retenue pour caractériser la \"proximité\")","%\n\n(part des logements et/ou des bureaux à proximité d'un centre d'éducation)","%\n\n(part des habitants à proximité d'un centre d'éducation)",null,"x","x","x",null,null,"x","Données de la population géolocalisées","Données des équipements géolocalisées (ex : base SIRENE...)","Données collectivité","Adapté de CityKeys","Adapté de ISO 37151","x",null,null,null,null,null,null,null,null,null,null,null,null,null,null,null,null,null,"x",null,null,null,null,null,null,null,null,null,"x",null,null,null,null,null,null,null,null,null,null,"x"]
[107,"Proximité des services de base (Centres sportifs)","Part de la population qui vit à proximité d'un centre sportif","Résultat","Résultat","Cet indicateur mesure la part de la population qui vit à proximité d'un centre sportif.\nLa proximité aux services de base améliore la qualité de vie des habitants et les conditions de vie de la population, dans la mesure où il est possible de s'y rendre en parcourant les distances à pied ; ce qui a un effet direct pour qu'une ville devienne plus accessible. Obtenir des résultats appropriés pour cet indicateur est souhaitable, non seulement parce que la proximité des services de base contribue à améliorer la qualité de vie, mais également parce que cela a un effet positif en matière d'économie d'énergie, de temps de travail, de pollution, etc.\nLes centres sportifs pris en compte (et les distances pour calculer la proximité) sont :\nInstallations sportives à usage public : distance de 500 m.\n","Cet indicateur se calcule à partir de données géolocalisées et s'appuit sur des systèmes d'information géographiques (SIG). Il doit être calculé de préférence en prenant en compte les distances réelles (graphe des routes), le cas échéant des \"buffers\" peuvent être utilisés (distance à vol d'oiseau). \nCet indicateur se calcule selon la formule suivante (exprimée en %) : nombre de logements (et/ou d'immeuble de bureaux) à 500m d'un centre sportif / nombre total de logements (ou d'immeuble de bureaux) x 100\nUne possibilité alternative est de prendre pour base de calcul la part de la population (et non la part des bâtiments). Dans ce second cas, l'indicateur se calcule selon la formule suivante (exprimée en %) : nombre d'habitants qui vive à 500m d'un centre sportif / nombre total d'habitants x 100\n","Préciser si seuls les bâtiments résidentiels sont pris en compte et/ou les bâtiments de bureaux. \n\nIdem pour la population, est-ce qu'il s'agit uniquement des habitants, des emplois, ou des habitants + emplois","Installations sportives à usage public (préciser les catégories prises en compte)",null,null,"%\n\n(la part des logements et/ou des bureaux à proximité d'un centre sportif)","%\n\n(la part des habitants à proximité d'un centre sportif)",null,"x","x","x",null,null,"x","Données de la population géolocalisées","Données des équipements géolocalisées (ex : base SIRENE...)","Données collectivité","Adapté de CityKeys","Adapté de ISO 37151","x",null,null,null,null,null,null,null,null,null,null,null,null,null,null,null,null,null,"x",null,null,null,null,null,null,null,null,null,null,"x",null,null,null,null,null,null,null,null,null,"x"]
[108,"Proximité des transports en commun","Part de logements proches d'une station de transports en communs","Résultat","Résultat","Cet indicateur vise  à évaluer la qualité de l'offre en transports en commun, dans l'optique de mailler au maximum le territoire et de desservir le plus d'habitants et usagers possible.","L'indicateur se calcule en dessinant des cercles concentriques de 500m de rayon autour des stations de tramway/métro/autres transports lourds et de 300 m de rayon autour des arrêts de bus, puis de comptabiliser le nombre de logements situés à l'intérieur d'un cercle.\nIl suffit alors de calculer : Nombre de logements à l'intérieur d'un cercle / Nombre total de logements sur le périmètre d'étude\n\nLe périmètre d'étude peut varier : on peut raisonner soit en nombre d'habitants, soit en nombre de logements, et s'intéresser soit aux Permis de Construire déposés dans l'année, soit à l'ensemble des logements existants.","Tramway","Métro","Bus","Autres moyens de transport","Nombre de logements","Nombre d'habitants","% de logements ou % d'habitants","x","x","x",null,null,"x","Plan masse de l'opération (recensant logements et arrêts de transports en commun)","Traitement SIG à partir de deux couches (arrêts TC et localisation des logements","Permis de construire",null,null,null,"Adapté EcoCité générique RES 1","AEU2",null,null,null,null,null,null,null,null,"x",null,null,null,null,null,null,"x",null,null,null,null,null,null,null,null,null,null,null,null,null,null,null,null,null,null,null,null,"x",null,null,"x",null,null,null,"x","x"]
[109,"Puissance du système énergétique","Puissance du système énergétique","Résultat",null,"La puissance correspond à un débit d’énergie. C'est un indicateur déterminant dans le dimmensionnement des infrastructures énergétiques",null,null,null,null,null,"MW ou GW",null,null,"x",null,null,null,null,"x","Données issues du projet",null,null,null,null,null,null,null,null,null,null,null,null,null,"x","x",null,null,null,null,null,null,null,null,null,null,null,null,null,null,null,null,null,null,null,null,null,null,null,null,null,null,null,null,null,null,null,null,null,"x",null,"x"]
[110,"Qualité de l'eau","Mesure de la qualité de l'eau traitée","Résultat",null,"Cet indicateur vise à évaluer la qualité de l'eau traitée.","Cet indicateur concerne la DCO (Demande Chimique en Oxygène), la DBO (demande Biologique en Oxygène), Oxygène dissous, concentration en NH4+, concentration en NaCl, concentration en SS, turbidité.","Tous les éléments cités dans la méthode de calcul",null,null,null,"mg/l",null,null,"x",null,null,null,null,"x","Données du gestionnaire des réseaux d'eau potable (rapport annuel)",null,null,null,null,null,"Indicateur spécifique, Marseille, Parc de Bougainville",null,null,"x",null,null,null,null,null,null,null,null,null,null,null,null,null,null,null,null,null,null,null,"x",null,null,null,null,null,null,null,null,null,null,null,null,null,null,null,null,null,null,null,null,null,null,"x",null,null,null,"x"]
[111,"Qualité de l'eau : Demande biologique en oxygène (DBO5)","Demande biologique en oxygène (DBO5)","Résultat",null,"L'indicateur vise à évaluer la charge polluante des eaux usées. \nLes matières organiques consomment, en se dégradant, l’oxygène dissous dans l’eau. Elles peuvent donc être à l’origine, si elles sont trop abondantes, d’une consommation excessive d’oxygène, et provoquer l’asphyxie des organismes aquatiques. La demande chimique en oxygène (DCO) est la consommation en dioxygène par les oxydants chimiques forts pour oxyder les substances organiques et minérales de l’eau. \nLa demande biochimique en oxygène (DBO) est la quantité d’oxygène nécessaire pour oxyder les matières organiques (biodégradables) par voie biologique (oxydation des matières organiques biodégradables par des bactéries). ","La DBO est la quantité d’oxygène - consommée pendant 5 jours - mesurée en mg/l, nécessaire à l’oxydation par voie biologique des matières organiques et inorganiques contenues dans l’échantillon d’eau placé dans des conditions définies.\nLa DBO est en général calculée au bout de 5 jours à 20 °C et dans le noir. On parle alors de DBO5. \nIl est aussi demandé de calculer la réduction de la BOD5 / jour / habitant en pourcentage.","Le réseau de gestion des eaux usées",null,null,null,"mg O2 / l","%\n",null,"x",null,null,null,null,"x","Données du gestionnaire des réseaux d'assainissement (rapport annuel)",null,null,null,"ISO 37151",null,null,null,null,"x",null,null,null,null,null,null,null,null,null,null,null,null,null,null,null,null,null,null,null,null,null,null,null,null,null,null,null,null,null,null,null,null,null,null,null,null,null,null,null,null,null,null,"x",null,null,null,"x"]
[112,"Réaménagement des friches industrielles","Part de surface construites sur des anciennes friches","Résultat",null,"Cet indicateur est adpaté d'un indicateur territorial mesurant le pourcentage de surface de friches industrielles réaménagé l'année précédente sur l'ensemble des surfaces de friches d'un territoire. Les friches étant définies comme des terrains ayant accueuillis  autrefois une activité industrielle ou commerciale. La plupart de ces friches ayant des problèmes de contamination au niveau des sols.","L'indicateur se calcule ainsi : \nSurfaces du projet bâti sur d'anciennes friches  / surfaces totales du projet",null,null,null,null,"% de surface",null,null,null,"x",null,null,null,"x","PLU et données projet",null,null,"Adapté de CityKeys",null,null,null,null,null,null,null,null,null,null,null,null,null,null,null,null,null,null,null,"x",null,null,null,null,null,null,null,null,null,null,null,null,null,null,null,null,null,null,null,null,null,null,null,null,null,null,null,null,null,null,"x"]
[113,"Rénovation d'espaces publics","Surface d'espaces publics aménagés en renouvellement urbain","Résultat",null,"Cet indicateur vise à mesurer les efforts en matière de lutte contre l'étalement urbain : surface d'espaces publics en renouvellement urbain et part des espaces publics en renouvellement","L'indicateur se calcule de la manière suivante :\nSurface d'espaces publics rénovés durant l'année / Surface totale d'espaces publics ayant fait l'objet de travaux de rénovation ou de construction durant l'année",null,null,null,null,"m2","% de surface",null,"x","x",null,null,null,"x","Plan masse",null,null,null,null,null,null,null,null,null,null,null,null,null,null,null,null,null,null,null,null,null,null,null,null,null,null,"x",null,null,null,null,null,null,null,null,null,null,null,null,null,null,null,null,null,null,null,null,null,null,null,null,null,null,"x"]
[114,"Réutilisation de terres in situ","Part de terres issues de terrassements réutilisées in situ","Résultat",null,"Il s'agit de mesurer le volume de déblais sur un site, puis d'identifier la part de ce volume réutilisé pour remblayer in situ.\nUn projet durable cherche en effet à atteindre un équilibre déblais-remblais afin de valoriser localement les terres, limitant ainsi les trajets en camion et les coûts.","L'indicateur se calcule ainsi : \nVolume de terres issues du site réutilisées en remblais (m3) / Volume total de terres déblayées (m3)","Chantier espaces publics","Chantier lots privés","Ensemble de l'opération",null,"m3 de déblais","% de volume de terre",null,"x",null,null,null,null,"x","Plans de géomètre",null,null,null,null,null,null,null,null,null,null,null,null,null,null,null,null,null,null,null,null,null,null,null,null,null,null,"x",null,null,null,"x",null,null,null,null,null,null,null,null,null,null,null,null,null,null,null,null,null,null,null,null,null,null,null,"x"]
[115,"Réutilisation d'eau pluviale","Volume d'eau de pluie réutilisé pour l'arrosage des espaces verts  publics","Résultat","Résultat","Cet indicateur permet d’apprécier dans quelle mesure le projet a intégré la récupération et l’utilisation des eaux pluviales en vue de :\n- réduire la consommation en eau potable et préserver ainsi la ressource,\n- réduire les surcharges sur les réseaux.","L’indicateur se calcule ainsi : \nsomme des volumes d’eau de pluie utilisés annuellement pour l’arrosage des différents espaces verts pris en compte/surface des espaces verts de l’opération en ha Selon l’étape à laquelle l’indicateur est utilisé, il s’agit d’un volume prévisionnel ou effectif.\nLe volume d’eau de pluie prévisionnel peut se calculer ainsi : Surface x pluviométrie x coefficient d’imperméabilisation (cf. fiche indicateur Coefficient d’imperméabilisation)",null,null,null,null,"m3/ha/an",null,null,"x","x","x",null,"x","x","Données techniques sur l'opération : volume des cuves de stockage OU plan masse/pluviométrie annuelle afin d'estimer les volumes d'eau pluviale récupérables en phase études",null,null,null,null,null,null,"AEU2",null,null,null,null,null,null,null,null,null,null,null,null,null,null,null,"x","x",null,null,null,null,"x",null,null,null,null,null,null,null,null,null,null,null,null,null,null,null,null,null,null,null,null,null,null,null,null,null,null,"x"]
[116,"Surface de plan d'eau","Surface de plan d'eau par habitant","Résultat","Résultat","Cet indicateur vise à quantifier la surface en eau (ex: étang, fontaine, miroir d'eau, jardin d'eau...) au sein d'une opération d'aménagement qui constitue ainsi un îlot de fraîcheur : rafraichissement de l'air et refuge pour les usagers en cas de fortes chaleurs","L'indicateur se calcule ainsi :\nSurface en eau au sein d'un périmètre donné / Nombre d'habitants au sein de ce même périmètre",null,null,null,null,"m²/habitant",null,null,"x","x","x",null,null,"x","Plan masse d'un projet d'aménagement OU données collectivité sur les espaces publics",null,null,null,null,null,null,null,null,null,null,null,null,null,null,null,null,null,null,null,null,null,null,null,null,null,null,"x",null,"x",null,null,null,null,null,null,null,null,null,null,null,null,null,null,null,null,null,null,null,"x"]
[117,"Surface de sol non polluée","Part surfacique de sol non pollué au sein d'un périmètre de projet","Résultat",null,"Il s'agit d'évaluer le pourcentage en surface de sol non pollué : (1-surface présentant des traces de pollution (m²)) / surface totale du périmètre (m²)","L'indicateur se calcule ainsi : \nsurface présentant des traces de pollution (m²)) / surface totale du périmètre (m²)","Possibilité d'approfondissement : évaluer la surface de sol pollué avant projet et après projet",null,null,null,"m² de surface présentant une pollution","% de surface",null,"x",null,null,null,null,"x","Données issues du projet : étude technique de pollution des sols, DCE Lot dépollution, etc.",null,null,null,null,null,null,null,null,null,null,null,null,null,null,null,null,null,null,null,null,null,null,null,null,null,null,null,null,null,null,"x",null,null,null,null,null,null,null,null,null,null,null,null,null,null,null,null,null,null,null,null,"x"]
[118,"Surface instrumentée","Surface instrumentée couverte par un réseau de capteurs","Résultat",null,"Cet indicateur de résultat vise à mesurer l'étendue du déploiement d'un réseau de capteurs en vue d'obtenir des données dans le temps.","Il s'agit de mesurer la surface instrumentée couverte par le réseau de capteur (en cumulée).",null,null,null,null,"m²","km²","ha","x",null,null,null,null,"x","Données issues du projet",null,null,null,null,null,null,null,null,null,null,"x",null,null,null,null,null,null,null,null,null,null,null,null,null,null,"x",null,null,null,null,null,"x",null,null,null,null,null,null,null,null,null,null,null,"x",null,null,null,null,"x"]
[119,"Taux de remplissage des véhicules","Taux de remplissage des véhicules","Résultat",null,"Cet indicateur vise à évaluer l'optimisation du remplissage des véhicules de logistique urbaine. L'objectif étant entre autres de réduire les temps de circulation à vide (acquisition de fret retour par exemple).","Il s'agit du ratio entre la quantité ou le volume total chargé et la capacité théorique totale de la période en quantité ou volume. La capacité théorique totale est la capacité théorique multipliée par le nombre de voyages.\n\nLe ratio entre le nombre de km à vide et le nombre total de km réalisés durant la même période peut aussi être calculé.",null,null,null,null,"% de volume","% de km",null,"x",null,null,null,"x","x","Données du porteur de l'action",null,null,null,null,null,"Indicateur spécifique, Bordeaux, Logistique urbaine",null,null,null,null,null,null,null,null,null,null,null,null,null,"x",null,null,null,null,null,null,null,null,null,null,null,null,null,null,null,null,null,null,null,null,null,null,null,null,null,null,null,null,null,null,"x","x",null,null,null,null,"x"]
[120,"Taux de surface du projet modélisée","Part de la surface du projet modélisée","Résultat",null,"Cet indicateur de résultat mesure la part des m² du projet ayant fait l'objet d'une modélisation (BIM,  modélisation accessible en réalité virtuelle ou réalité augmentée..).\nIl peut également servir à mesurer la superficie de territoire couvert par une modélisation urbaine afin de gérer les risques naturels (ex: inondation, pic d'îlot de chaleur urbain..), ou encore la superficie du projet couverte par une simulation énergétique.","Il s'agit de quantifier la surface modélisée et le pourcentage en surface du projet modélisé ou simulé.",null,null,null,null,"m² (km² ou ha)","% de surface",null,"x","x","x",null,"x","x","Données issues du projet",null,null,null,null,null,null,null,null,null,null,"x",null,null,null,null,null,null,null,null,null,null,null,null,null,null,null,null,null,null,null,null,"x",null,null,null,null,null,null,null,null,null,null,null,"x",null,null,null,null,"x"]
[121,"Taux d'ombrage ","Part de surfaces ombragées","Résultat",null,"Cet indicateur vise à évaluer le confort thermique offert par les espaces extérieurs en été, en estimant la part de surface ombragée. Il se calcule en évaluant surface totale de canopée des arbres de haute tige à moyen ou grand développement en fonction d'hypothèses moyennes de surface de canopée (en m²) pour de grands types d'essences. ","L'indicateur se calcule ainsi : \nSurface totale de canopée des arbres / surface totale non bâtie du secteur d'étude",null,null,null,null,"% de surface",null,null,"x","x",null,null,null,"x","Palette végétale (notice paysagère) et plan masse d'une opération  d'aménagement",null,null,null,null,null,null,"Adapté de  la grille du référentiel AURA (Montpellier)",null,null,null,null,null,null,null,null,null,null,null,null,null,null,null,null,null,null,null,"x",null,"x",null,null,null,null,null,null,null,null,null,null,null,null,null,null,null,"x",null,null,null,"x"]
[122,"Temps d'attente (services de santé)","Part de réduction du temps d'attente ","Résultat",null,"La réduction du temps d'attente avant d'obtenir une date pour une consultation médicale ou pour une opération (non-urgente) est un indicateur de qualité pour les services de santé et de soin.\nLe temps d'attente est défini comme le nombre de jours ou de semaines (traduit en nombre d'heures) qu'un patient doit attendre avant d'obtenir un rendez-vous avec une infirmière, un docteur ou un chirurgien. ","L'indicateur se calcule ainsi : \nTemps d'attente en heure après le projet rapporté au temps d'attente en heure avant le projet multiplié par 100","Préciser le cas échéant si ce sont tous les services qui sont concernés ou si l'évaluation ne porte que sur certains services de santé et de soin",null,null,null,"Nombre moyen de minutes d'attente  (par usager pour l'ensemble des services ou le cas échéant pour certains services du centre de santé)","%\n\n(Pourcentage de réduction du temps d'attente grâce au projet)",null,"x",null,null,null,null,"x","Données issues du projet",null,null,"x",null,null,null,null,null,null,null,null,null,null,null,null,null,null,null,null,null,null,null,null,null,null,null,null,null,null,null,null,null,null,null,"x",null,null,null,null,null,null,null,null,null,"x"]
[123,"Temps de réaction d'un système de stockage","Temps de réaction d'un système de stockage","Résultat",null,"Le temps de réaction est un indicateur de la réactivité du moyen de stockage. Il est parfois préférable de définir la vitesse de montée et de descente en charge qui caractérise de manière plus fine la comportement réactif du système",null,null,null,null,null,"Secondes","Minutes","Heures","x",null,null,null,null,"x","Données du gestionnaire du système énergétique",null,null,null,null,null,null,null,null,null,null,null,null,null,null,"x",null,null,null,null,null,null,null,null,null,null,null,null,null,null,null,null,null,null,null,null,null,null,null,null,null,null,null,null,null,null,null,null,null,"x",null,"x"]
[124,"Traitement alternatif des eaux","Augmentation du volume d'eau traitée par des techniques dites alternative","Résultat",null,"Les techniques dites alternatives sont notamment le traitement par macrophytes, les bassins plantés de roseaux ou encore la phytoépuration.\nL'indicateur traduit le résultat de l'installation sur le périmètre de projet Ville de Demain de systèmes de traitement des eaux usées par des techniques dites alternatives. Ce taux de traitement par des techniques alternatives est comparé à une situation de référence.\nIl est rapporté au nombre d‟habitants et peut être également, pour des projets Ville de Demain où l'activité économique est prédominante, rapporté au nombre d'emplois.","L'indicateur se calcule ainsi :\n- en établissant une situation de référence\n- puis une  valeur sur le périmètre du projet\n- enfin en mesurant l'évolution en chiffre et en pourcentage\n\nRéférence :\nSituation initiale sur le périmètre de projet Ville de Demain\nOu\nMoyenne sur les dernières opérations d'aménagement réalisées par la collectivité\nOu\nMoyenne sur l‟ensemble de la ville ou de l'EPCI","Préciser les différentes techniques dites alternatives prises en compte",null,null,null,"m3/an/hab\n(valeur sur le périmètre du projet)","% de volume d'eau\n(évolution par rapport à la situation initiale)","Si justifié m3/an/emploi et %","x","x",null,null,null,"x","Données du gestionnaires des équipements de\ntraitement de l'eau","INSEE (nombre d'habitants) et chambres consulaires (nombre d'emplois), collectivité",null,null,null,null,null,"Adapté indicateurs Montpellier",null,"x",null,null,null,null,null,null,null,null,null,null,null,null,null,null,null,null,null,null,null,"x",null,null,null,null,null,null,null,null,null,null,null,null,null,null,null,null,null,null,null,null,null,null,"x","x",null,null,"x"]
[125,"Trame bleue","Part de l’écoulement des eaux pluviales traitées en surface","Résultat","Résultat","La trame bleue regroupe l’ensemble des circulations hydrologiques. Cet indicateur de performance permet de connaître la nature du traitement de la gestion des eaux pluviales sur le périmètre de l’opération et d’évaluer la part traitée en surface de manière alternative favorisant les écosystèmes et limitant la création d’un réseau enterré. L’objectif consiste à gérer le cycle de l’eau à l’échelle d’une opération (amélioration de l’infiltration et de la rétention) en privilégiant ces ouvrages en surface qui contribuent à l’aménagement paysagé du site.","Il s'agit du ratio entre la longueur du réseau d’eau pluviale traité en surface en mètre linéaire et la longueur totale des ouvrages d’assainissement pluvial du secteur d’étude en mètre linéaire.",null,null,null,null,"% de réseau",null,null,"x",null,null,null,null,"x","Plans VRD d'une opération d'aménagement",null,null,null,null,null,null,"AEU2",null,null,null,null,null,null,null,null,null,null,null,null,null,null,null,null,null,null,null,null,null,"x",null,null,null,null,null,null,null,null,null,null,null,null,null,null,null,null,null,null,null,null,null,null,null,"x",null,null,"x"]
[126,"Utilisation d'énergie renouvelable pour l'eau chaude sanitaire","Part des logements utilisant une source d’énergie renouvelable pour le chauffage ou l’eau chaude sanitaire.","Résultat",null,"Cet indicateur permettra d'évaluer à quel niveau un bâtiment s'approvisionne en énergie renouvelable ou de récupération pour ses besoins","L'indicateur se calcule ainsi : \n-        Numérateur : nombre de logements dont les pétitionnaires déclarent recourir, pour le chauffage ou l’eau chaude sanitaire, à une source d’énergie renouvelable ou fatale. Pour être pris en compte, un logement devra être approvisionné à plus de 20 % par des énergies renouvelables.\n-        Dénominateur : nombre total de logement dans le périmètre concerné.\n\nL'indicateur peut aussi se calculer en ratio de surface. Le porteur devra préciser la méthode choisie.","Chauffage","Froid","Electricité","ECS","% de logements","% de surface",null,"x","x",null,null,null,"x","Données issues du projet: dossiers PC",null,null,null,null,null,"Ecocité générique RES 2",null,null,null,null,null,null,null,null,null,null,null,null,null,null,null,null,"x","x",null,null,null,null,null,null,null,null,null,null,null,null,null,null,null,null,null,null,null,null,null,null,null,null,null,null,"x"]
[127,"Utilisation des applications numériques","Nombre d'utilisateurs de l'application numérique","Résultat",null,"Cet indicateur vise à qualifier le degré d'utilisation des applications selon le nombre d'utilisateurs du service.\nLe nombre de téléchargements de l'application (ou des applications) peut aussi être indiqué.","Pour calculer cet indicateur, il est nécessaire de compter le nombre d'utilisateurs du service. Il est aussi possible de compter le nombre de téléchargements de l'application.",null,null,null,null,"Nombre d'utilisateurs (total annuel)","Nombre de téléchargement de l'application (en cumulé)",null,"x",null,null,null,"x","x","Données du gestionnaire de l'application numérique",null,null,null,null,null,null,null,null,null,null,"x",null,null,null,null,null,null,null,null,null,null,null,null,null,null,null,null,null,null,null,null,null,null,null,null,"x",null,null,null,null,null,null,null,"x"]
[128,"Utilisation du service de mobilité","Nombre d'usagers du service de mobilité","Résultat",null,"Cet indicateur permet de mesurer l'évolution de l'utilisation du service de mobilité. Il peut être séparé entre les abonnés et les usagers occasionnels.","L'indicateur se calcule ainsi :\nNombre d'usagers par an après mise en place du projet - Nombre d'usagers  par an dans la situation de référence ","Abonnés","Usagers occasionnels",null,null,"Nombre d'utilisateurs",null,null,"x",null,null,null,"x","x","Données de l'exploitant du service",null,null,null,null,null,"Indicateur Spécifique, Nantes, LiberTAN",null,null,null,null,null,null,null,null,null,"x","x",null,"x",null,"x","x",null,null,null,null,null,null,null,null,null,null,null,null,null,null,null,null,null,null,null,null,null,"x"]
[129,"Valorisation des déchets en phase chantier","Quantité de déchets de chantier faisant l'objet d'une réutilisation, d'un recyclage ou d'une valorisation matière ","Résultat","Résultat","L’indicateur qualifie dans quelle mesure la gestion des déchets de chantier favorise la réutilisation, le recyclage ou la valorisation matière. Il contribue ainsi à qualifier les exigences qui s’imposent aux opérateurs.\nIl s'agit de calculer le pourcentage en masse des déchets de chantier, tous déchets confondus, qui ne finit pas en site d'enfouissement.\nLes déchets concernés peuvent être, selon les contextes et selon les ambitions, ceux produits par les chantiers des espaces publics et ceux des lots privés liés à la mise en oeuvre du projet.","L’indicateur se calcule ainsi : Volume en m3 (ou poids en Tonnes) de déchets valorisés, recyclés ou réutilisés / Volume total en m3 (ou poids en Tonnes) de déchets des chantiers concernés.",null,null,null,null,"% en masse des déchets",null,null,"x","x","x",null,"x","x","Opérateur des travaux, collectivité-MOA et promoteurs","Bordereaux de suivi des déchets pour les projets d'aménagement",null,null,null,null,null,"PLAINE DU VAR / AEU2",null,"x","x",null,null,"x","x",null,"x",null,null,null,null,null,null,"x","x",null,null,"x",null,null,null,"x",null,null,null,null,null,null,null,"x",null,null,null,null,null,null,null,null,null,null,null,null,null,null,null,"x"]
[130,"Valorisation des déchets ménagers et assimilés","Part des déchets ménagers et assimilés valorisés par mode de valorisation","Résultat","Résultat","Cet indicateur vise à évaluer la gestion durable des déchets de la ville. \nLes déchets municipaux (ou déchets ménagers et assimilés) correspondent aux déchets collectés par les autorités municipales ou pour leur compte et éliminés dans le cadre du système de gestion des déchets. Les déchets municipaux sont principalement produits par les ménages, cependant les déchets similaires en provenance, par exemple, des commerces, des bureaux et des institutions publiques sont inclus.\n\nLa définition ne comprend pas :\n• Les déchets de traitement et du réseau des eaux d'égouts municipaux,\n• les déchets de construction et de démolition municipaux.\n\nIl faut calculer séparément la part des déchets valorisée pour les différents modes de valorisation (matière, organique et énergétique).\nLa valorisation matière correspond au recyclage, à l'utilisation de déchets comme substituts de matière et au ré-emploi. La valorisation organique correspond au compostage et à la méthanisation. La valorisation énergétique correspond à l'incinération et à la pyrolyse.","L'indicateur se calcule en établissant le ratio entre la quantité de déchets collectés à l'échelle de la ville et valorisés chaque année et la quantité totale de déchets collectés chaque année.\nL'indicateur peut aussi se calculer à l'échelle du quartier.\n\nIl faut calculer séparément la part des déchets valorisée pour les différents modes de valorisation (matière, organique et énergétique).","Valorisation matère","Valorisation organique","Valorisation énergie",null,"Tonnes","% de tonnes de déchets",null,null,"x","x",null,"x","x","Gestionnaire des équipement de collecte et de traitement des déchets",null,null,"x",null,"x",null,"étude CSTB 2011",null,null,"x",null,null,null,null,null,null,null,null,null,null,null,null,null,null,null,null,null,null,null,null,null,null,null,null,null,null,null,null,null,null,null,null,null,null,null,null,null,null,null,null,"x",null,null,null,"x"]
[131,"Valorisation énergétique des déchets ménagers et assimilés","Production ou récupération d'énergie à partir des installations de traitement des déchets","Résultat","Résultat","Production (ou récupération) d'énergie électrique et thermique à partir des installations de traitement des déchets","L'indicateur se calcule ainsi : \nproduction (ou récupération) d'énergie électrique et thermique exprimée (en kWh) /  quantité de déchets traités (en tonnes)","Energie produite à partir de l'incinération","Energie produite à partir de la méthanisation","Autres modes de production d'énergie",null,"kWh/an","kWh par tonne de déchets traités",null,"x",null,"x",null,"x","x","Gestionnaire des équipement de collecte et de traitement des déchets",null,null,null,"Adapté de ISO 37151",null,null,null,null,null,"x",null,null,null,null,null,null,null,null,null,null,null,null,null,null,null,null,null,null,null,null,null,null,null,null,null,null,null,null,null,null,null,null,null,null,null,null,null,null,null,null,"x"]
[132,"Végétalisation des toitures et façades","Part des toitures végétalisées et part des façades végétalisées","Résultat",null,"Cet indicateur mesure l'effort de végétalisation sur des espaces autrement non utilisés au sein d'un périmètre donné, à savoir les toitures et les façades. ","Il s'agit du ratio entre :\n- la surperficie des toitures végétalisées et la superficie totale de toitures \n- la superficie des façades végétalisées et la superficie totale des façades","toitures","façades",null,null,"m2","% de surface",null,"x",null,null,null,null,"x","Dossiers PRO/DCE des projets de bâtiment (voire dossiers PC si le PRO/DCE n'est pas disponible)",null,null,null,null,null,"Indicateur spécifique, Plaine Commune, Gestion innovante de l'eau dans la ville",null,null,null,null,null,null,null,null,null,null,null,null,null,null,null,null,"x","x",null,null,"x",null,null,null,null,null,null,null,null,null,null,null,null,null,null,null,null,null,null,null,null,null,null,null,null,null,null,null,null,"x"]
[133,"Voiries dédiées aux modes doux","Part de voirie dédiée aux modes doux (voies vertes, pistes cyclables, trottoirs partagés...)","Résultat","Résultat","Cet indicateur permet d'évaluer la part de voirie dédiée aux mobilités douces (piétons, vélos...). \nL'indicateur peut être calculé en pourcentage de linéaire ou bien pourcentage de surface.","L'indicateur se calcule ainsi :\nLinéaire de voiries modes doux / linéaires total de voirie\nOu bien \nSurface (Linéaire * Largeur) réservée aux cheminements piétonniers / surface totale du réseau viaire",null,null,null,null,"m linéaire","m2","% de voirie ou % de surface","x","x","x",null,null,"x","Plan masse (lot VRD) OU plan de voirie à l'échelle de la ville\nDonnée difficilement accessible à l'échelle de l'EPCI (toutes les collectivités n'ont pas ce genre de données)",null,null,null,null,null,null,"ADEME",null,null,null,null,null,null,null,null,null,null,null,null,null,"x",null,null,null,null,null,"x","x",null,null,null,null,null,null,null,null,null,null,null,null,null,null,null,"x","x",null,null,null,null,null,null,null,null,"x"]
[134,"Volume d'eau moyen traité","Volume d'eau moyen traité","Résultat",null,"L'indicateur traduit la capacité de traitement des eaux usées (ou souillées) au sein du projet.","L'indicateur est une moyenne annuelle. Il peut s'exprimer en m3/j",null,null,null,null,"m3/j",null,null,"x",null,null,null,null,"x","Données du gestionnaire des réseaux d'assainissement",null,null,null,null,null,"Indicateur spécifique, Marseille, Parc de Bougainville",null,null,"x",null,null,null,null,null,null,null,null,null,null,null,null,null,null,null,null,null,null,null,"x",null,null,null,null,null,null,null,null,null,null,null,null,null,null,null,null,null,null,null,null,null,null,null,null,null,null,"x"]
[135,"Accessibilité financière au logement","Part de population fragilisée vivant dans un logement abordable financièrement","Impact",null,"On parle ici de population fragilisée pour les personnes ayant le plus de difficultés d'accession à un logement (jeunes de moins de 25 ans, étudiants, bénéficiaires du RSA, etc.)\nUn logement est considéré comme abordable lorsque ses occupants dépensent moins de 40% de leurs revenus pour se loger. Cela comprends les loyers, les crédits, etc.","Il s'agit du ratio entre le nombre d'habitants fragilisés vivant dans un logement abordable et le nombre d'habitants total.",null,null,null,null,"% d'habitants",null,null,"x","x","x",null,"x","x","Enquêtes menées auprès des habitants",null,null,"Adapté de CityKeys",null,null,null,null,null,null,null,null,null,null,null,null,null,null,null,null,null,null,null,"x","x",null,null,null,null,null,null,null,null,null,null,null,null,null,null,null,null,null,null,null,null,null,null,null,"x",null,null,null,null,null,null,null,null,null,"x"]
[136,"Accidents de la route","Nombre d'accidents de la route par linéaire de voiries ","Impact","Impact","Cet indicateur vise à mesurer le degré d'accidentogénité des voiries. \nLes accidents de la route à prendre en compte sont ceux répertoriés par la police.","Il s'agit du ratio entre le nombre d'accidents de la route et la longueur totale de voiries du secteur d'étude.\nL'indicateur peut être évalué séparément pour les différents modes : transport en commun, véhicule, modes doux, etc.","Transports en communs","Véhicules individuels","Logistique urbaine","Modes doux","Nombre d'accidents","Nombre d'accidents / km de voirie",null,"x","x","x",null,"x","x","Données collectivité",null,null,"Adapté de CityKeys",null,null,null,null,null,null,null,null,null,null,null,null,"x",null,null,"x",null,null,null,null,null,null,null,null,"x",null,null,null,null,null,null,null,null,null,null,null,null,null,null,null,null,null,"x"]
[137,"Concentration en COV","Concentration en Composés Organiques Volatils","Impact",null,"Les COV regroupent une multitude de substances, comme le formaldéhyde, le butane, le toluène, l'éthanol (alcool à 90°), l'acétone, le benzène...\nD’après l’inventaire CITEPA de 2013, le secteur du résidentiel/tertiaire représente 38 % des  sources anthropiques d’émissions de COV en 2010.\nLes COV ont un double effet sur la santé :\n- un effet indirect en agissant sur l’ozone, en tant que précurseurs de ce gaz dans l’air : les conséquences de cette surproduction d’ozone pour la santé varient selon le niveau d’exposition, le volume d’air inhalé et la durée de l’exposition. Plusieurs manifestations sont possibles : toux, inconfort thoracique, gêne douloureuse en cas d’inspiration profonde, mais aussi essoufflement, irritation nasale, oculaire et de la gorge. Ces effets diffèrent toutefois en fonction des individus et de l’état de santé ;\n- un effet direct en tant que substance toxique, jusqu’à des niveaux de gravité extrêmes justifiant une classification rigoureuse. Les COV les plus nocifs, comme le benzène, sont classés CMR pour « cancérogène, mutagène et reprotoxique ».","Mesure d'une concentration du polluant dans l'air intérieur des bâtiments",null,null,null,null,"µg.m-3",null,null,"x",null,null,null,null,"x","Campagne de mesures à mener (en fin de chantier, pendant la vie des bâtiments)",null,null,null,null,null,null,null,null,null,null,null,null,null,null,null,null,null,null,null,null,null,null,"x","x",null,"x",null,null,null,null,null,null,null,null,null,null,null,null,null,null,null,null,null,null,null,"x"]
[138,"Confort climatique des espaces extérieurs","Part des espaces extérieurs (en surface) présentant un indice de confort climatique satisfaisant ","Impact",null,"Pour une opération d'aménagement, cet indicateur peut s’utiliser de manière prévisionnelle et se traduire dans les prescriptions à intégrer dans les CPE et les CCCT pour l’évaluation de lots privés.\nIl vise à mesurer le degré d'adaptation d'une opération à son environnement climatique et le confort climatique offert par les espaces extérieurs.\n\n","L'indicateur se calcule ainsi:  surfaces extérieures présentant un indice de confort climatique satisfaisant / surfaces extérieures totales\n\nPour savoir si un espace présente un indice de confort climatique satisfaisant, il est nécessaire d'évaluer cet indice de confort :\n- Soit via un outil de modélisation et simulation à partir du plan masse de l'opération (ex : SOLENE Microclimat)\n- Soit via une enquête habitant \nL’indice de confort est généralement associé à la “température ressentie”, c’est-à-dire à une donnée calculée en degrés Celsius qui tient compte de la température, de l’humidité et du vent, et qui correspond à la température qui devrait régner pour que l’on ressente la même sensation par temps sec et sans vent. Par ailleurs, le sentiment de confort thermique est variable d’un individu à l’autre et dépend de l’activité (assis, debout, en mouvement, ...). La plupart des outils calculant un indice de confort admettent donc une plage de “température ressentie” satisfaisante, parfois fonction de la localisation géographique, parfois encore fonction de l’activité pratiquée. Cette plage d’indice satisfaisant correspond à une plage de “température ressentie” pour laquelle le pourcentage prévisible d’insatisfaits ne dépasse pas un certain seuil (20 % par exemple). Afin d’évaluer si l’indice de confort d’un espace extérieur est satisfaisant, il est nécessaire de l’évaluer sur un cycle annuel complet, et de prendre en compte les heures/saisons d’utilisation et le type de fréquentation de l’espace considéré.",null,null,null,null,"% de surface",null,null,"x","x",null,null,null,"x","Nécessité de réaliser des études de confort (modélisation ou mesures de \"température ressentie\")",null,null,null,null,null,null,"AEU2",null,null,null,"x",null,null,null,null,null,null,null,null,null,null,null,null,null,null,null,"x",null,null,null,null,null,null,null,null,null,null,null,null,null,null,null,null,null,null,"x",null,null,"x"]
[139,"Confort thermique intérieur","Nombre d'heures d'inconfort en été à l'intérieur des bâtiments","Impact",null,"Cet indicateur permet d'évaluer le confort d'été offert par les bâtiments, c'est à dire le ressenti qu'auront les occupants durant l'été.","Nombre d'heures au cours d'une année pendant lesquelles la température intérieure dépasse 28 °C.\nLe nombre d'heures (où la température intérieure dépasse 28 °C) peut être rapporté au nombre de logements rénovés ou construits par le projet.",null,null,null,null,"Nombre d'heures","heures/logement/an",null,"x",null,null,null,null,"x","Etude de confort d'été issue d'une Simulation Thermique Dynamique (dossier PC ou PRO)",null,null,null,null,null,null,null,null,null,null,null,null,null,null,null,null,null,null,null,null,null,null,"x","x",null,null,null,null,null,null,null,null,null,null,null,null,null,null,null,null,null,null,null,null,null,"x",null,null,"x"]
[140,"Congestion","Augmentation globale des temps de trajet par rapport à une situation de trafic fluide","Impact","Impact","Cet indicateur vise à mesure l'amélioration de la congestion du territoire. La congestion se traduit par l'augementation d'un temps de trajet par rapport à une situation de trafic fluide. ","L'indicateur se calcule ainsi : (temps de trajet en heures pleines - temps de trajet en heures creuses)/temps de trajet en heures creuses",null,null,null,null,"Nombre d'heures","% d'heures",null,null,null,null,"De l'axe à l'agglomération",null,"x","TomTom (tomtom.org)","EMD",null,"x",null,null,null,null,null,null,null,null,null,null,null,null,"x",null,null,"x","x",null,null,null,null,null,null,null,null,null,null,null,null,null,null,null,null,null,null,null,null,null,null,null,"x",null,null,null,null,null,null,null,null,null,null,null,null,"x"]
[141,"Coût actualisé de l’énergie","Coût actualisé de l’énergie","Impact",null,"Cet indicateur est une mesure du coût complet de production d’énergie pour un système donné. Il prend donc théoriquement en compte l’ensemble des coûts relatifs à une installation, et ce pour toute sa durée de vie. Dans la pratique, les coûts pris en compte se limitent la plupart du temps aux coûts :\n- d’acquisition / construction / rénovation du système : investissements initiaux, remboursement d’emprunts et frais financiers ;\n- d’opération et de maintenance, main d’œuvre et matériel ;\n- d’achats de carburant (nuls dans le cas d’une énergie renouvelable, par exemple pour une éolienne).\n\nPour être exhaustif, il faudrait notamment rajouter à cette liste d’éventuels coûts de démantèlement ou la valeur résiduelle des installations à la fin de la durée de vie, un coût de la tonne de CO2 produite (si elle est monétisable sur un marché), etc.","Cet indicateur correspond, pour une installation de production d’énergie donnée, à la somme des coûts actualisés de production d’énergie divisée par la quantité d’énergie produite, elle aussi actualisée. Il s’exprime typiquement en €/kWh (ou autre monnaie) et est fréquemment employé dans le secteur électrique.",null,null,null,null,"Euros","€/kWh",null,"x",null,null,null,null,"x","Données du gestionnaire du système énergétique",null,null,null,null,null,null,null,null,null,null,null,null,null,"x","x",null,null,null,null,null,null,null,null,null,null,null,null,null,null,null,null,null,null,null,null,null,null,null,null,null,null,null,null,null,null,null,null,null,null,"x"]
[142,"Création d'emploi","Nombre d'emplois directs créés par le projet","Impact",null,"Cet indicateur vise à mesurer le nombre d'emplois directs créés par le projet en équivalent temps plein (ETP) ","Il s'agit d'un comptage annuel de l'évolution du nombre d'emplois en ETP (le calcul peut commencer à la livraison du projet, en ex post, ou alors consister en un reporting annuel dès le démarrage du projet et inclure les phases de conception et réalisation)","Les emplois directs en valeur brute\n","Les emplois directs en valeur nette (ie en déduisant les \"pertes\" d'emploi)","Préciser les phases du projet pris en compte (phases de conception, réalisation, post-livraison et fonctionnement...)","Les emplois indirects","Nombre d'emplois en ETP ",null,null,"x",null,null,null,null,"x","Données issues du projet",null,null,"x","Adapté de ISO 37120",null,null,null,null,"x","x","x","x","x","x","x","x","x","x","x","x","x","x","x","x","x","x","x","x","x","x","x","x","x","x","x","x","x","x","x","x","x","x","x",null,null,null,null,null,null,null,null,null,null,null,null,null,"x"]
[143,"Densité urbaine","Variation de la densité urbaine","Impact","Impact","L'augmentation de la densité permet de nombreux avantages en termes de développement durable, notamment concernant :\n- la réduction de l'étalement urbain\n- la diminution de la demande en énergie\n- l'utilisation des modes de déplacements doux\nAttention toutefois car une densité excessive peut également engendrer des problèmes sociaux et environnementaux","L'indicateur se calcule ainsi : \n(nombre d'habitants après le projet - nombre d'habitant avant le projet/ nombre d'habitants avant le projet) / superficie du projet. ","Densité en nombre de logements par hectare","Densité en nombre d'habitants par ha",null,null,"% d'évolution de la densité entre avant et après le projet",null,null,null,"x","x",null,null,"x","PLU et données projet",null,null,"x",null,null,null,null,null,null,null,null,null,null,null,null,null,null,null,null,null,null,null,"x","x",null,null,null,null,null,null,null,null,null,null,null,null,null,null,null,null,null,null,null,null,null,null,null,null,null,null,null,null,null,"x"]
[144,"Différence de température estivale entre ville et campagne","Différence maximale de température de l'air entre la ville et la campagne pendant les mois d'été","Impact","Impact","Cet indicateur vise à évaluer l'effet d'îlot de chaleur urbain.","Pour calculer cet indicateur, il est nécessaire de disposer d'au moins un capteur de température situé à l'extérieur de la ville (qui servira de référence) et d'un ou plusieurs capteurs de température à l'intérieur de la ville. L'idéal est de disposer de plusieurs capteurs à la campagne et de plusieurs capteurs en ville.\nIl convient ensuite de calculer la différence entre les moyennes horaires de température entre la station de référence et les autres durant les mois d'été, et d'identifier l'écart maximal.",null,null,null,null,"°C (différence de température)",null,null,null,null,"x",null,null,"x","Données de capteurs de température ; ces données peuvent être difficilement accessibles car elles nécessitent une instrumentation.",null,null,"x",null,null,null,null,null,null,null,"x",null,null,null,null,null,null,null,null,null,null,null,null,null,null,null,"x",null,null,null,null,"x",null,null,null,null,null,null,null,null,null,null,null,null,null,null,null,null,"x"]
[145,"Distribution alimentaire locale ","Part de la production alimentaire, issue de l'agriculture urbaine, revendue localement ","Impact","Impact","Cet indicateur permet d'évaluer la contribution de  l'agriculture urbaine à la mise en place de circuits courts. La notion de locale implique une distribution à moins de 15km ","L'indicateur se calcule ainsi :\nQuantité de produits revendus localement (dans un rayon de 15km autour du point de production) / Quantité totale de produits issus de l'agriculture urbaine\n\nLa quantité peut être évaluée, au choix, en masse (tonnes) ou en chiffre d'affaires (€)",null,null,null,null,"% de produits en tonnes ou en euros",null,null,"x","x","x",null,"x","x","Données exploitant ou revendeurs",null,null,null,null,null,null,null,null,null,null,null,null,null,null,null,null,null,null,null,null,null,null,null,null,null,null,null,null,null,"x",null,null,null,null,null,null,null,null,null,null,null,null,"x",null,null,null,null,null,"x"]
[146,"Economies monétaires pour les utilisateurs finaux","Evaluation des économies monétaires réalisées par les utilisateurs finaux grâce au projet","Impact",null,"L'indicateur vise à déterminer dans quelle mesure le projet à permis aux utilisateurs finaux de réaliser des économies monétaires. Les économies peuvent être réalisées par exemple grâce à une optimisation des consommations d'eau ou d'énergie d'un logement ou d'un nouveau système de tarification pour l'usage d'un équipement (par exemple un abonnement pour les transports publics).\nIl faut que soient clairement indiqués les postes qui sont pris en compte pour le calcul des économies monétaires. Par exemple pour un bâtiment, est-ce que seules les dépenses pour le chauffage sont prises en compte ou est-ce qu'il s'agit plus largement de l'ensemble des postes qui pèsent sur la facture énergétique mais aussi de l'entretien des espaces verts ? \nIl faut veiller à bien prendre en compte l'ensemble des coûts liés au service (inclure notamment le coût annuel de l'abonnement au service).","L'indicateur se calcule en comparant le montant annuel en euros des dépenses des utilisateurs finaux pour l'utilisation du service, avant et après la livraison du projet. \nRemarque : pour permettre des économies, des investissements initiaux peuvent être nécessaires, par exemple l'achat d'une chaudière ou d'une pompe à chaleur pour améliorer le rendement du système de chauffage. Ces coûts doivent être rapportés à des coûts annuels (en fonction de la durée de vie de l'équipement) de manière à déterminer les réelles économies monétaires réalisées grâce au projet. Le cas échéant, si des revenus sont générés par le projet, ils doivent être intégrés dan le calcul comme des coûts évités (donc à soustraire des dépenses annuelles).","Pour un service, prendre en compte le coût de l'usage du service en incluant le cas échéant l'abonnement annuel","Pour l'usage d'un bâtiment, bien préciser quels sont les postes qui sont couverts par le calcul des économies (énergie, eau, entretiens des parties communes...)",null,null,"Euros / usager final (si service)","Euros / ménages (si dépenses liées à un logement)","%\n\n(Pour montrer le niveau d'économie réalisée par l'usager final ou le ménage)","x",null,null,null,null,"x",null,null,null,"x",null,null,null,null,null,"x","x",null,null,null,null,null,"x","x",null,null,null,null,null,null,null,"x",null,null,null,null,null,null,null,"x","x","x",null,"x",null,null,null,"x","x",null,null,null,null,null,"x",null,null,null,null,null,null,null,null,null,"x"]
[147,"Emissions de gaz à effet de serre du projet","Nombre de tonnes de gaz à effet de serre en equivalent CO2","Impact",null,"Cet indicateur vise à mesurer les efforts mis en place pour réduire les émissions de gaz à effet de serre (GES) et atténuer le changement climatique.","La méthode de calcul des emissions de GES d'un projet est définie dans le décret d'application n° 2017-725 du 3 mai 2017 relatif aux principes et modalités de calcul des émissions de gaz à effet de serre des projets publics.\nLa quantité de gaz à effet de serre d'une opération est obtenue par le produit de la quantité d'énergie, de gaz consommés, de matériaux ou d'équipements mis en œuvre d'une part et du facteur d'émission de la source d'énergie, du gaz, du matériau ou de l'équipement considéré d'autre part. ","Pour la construction","En exploitation",null,null,"Tonnes équivalent CO2",null,null,"x",null,null,null,null,"x","Décret d'application n° 2017-725 du 3 mai 2017 relatif aux principes et modalités de calcul des émissions de gaz à effet de serre des projets publics","ADEME",null,null,null,null,null,null,null,"x","x","x","x","x","x","x",null,"x","x","x","x","x","x","x","x","x","x","x","x","x","x","x","x","x","x","x","x","x","x","x","x","x","x",null,null,null,null,null,null,null,null,"x",null,null,null,null,null,"x"]
[148,"Emissions de gaz à effet de serre économisées","Evolution des émissions de Gaz à Effet de Serre (GES) par rapport à une situation de référence","Impact",null,"Cet indicateur doit permettre d'évaluer le nombre de tonnes de gaz à effet de serre (GES) économisés grâce à la mise en place du projet (rénovation énergétique d'un bâtiment, projet d'économie circulaire sur un territoire, etc.). Il se base sur l'indicateur \"Mitigation of Climate Change\" de la norme ISO 37 151.\nLa situation de référence est à définir par le porteur de projet.","L'indicateur se calcule ainsi : \nTonnes de GES (éqCO2) emises sur le périmètre du projet avant sa mise en place - Tonnes de GES emises sur le même périmètre après sa mise en place.\nLa méthode de calcul des emissions de GES d'un projet est définie dans le décret d'application n° 2017-725 du 3 mai 2017 relatif aux principes et modalités de calcul des émissions de gaz à effet de serre des projets publics.\nPour les opérations d'aménagement, il est possible d'utiliser le logiciel GES OpAm de l'ADEME, qui permet de comparer différentes options d'aménagement au regard de leurs émissions en GES..",null,null,null,null,"Tonnes équivalent CO2",null,null,"x",null,null,null,null,"x","Coefficient de transposition en teqCO2 pour chaque GES","ADEME",null,null,"ISO 37151 ",null,null,null,null,"x","x","x","x","x","x","x",null,"x","x","x","x","x","x","x","x","x","x","x","x","x","x","x","x","x","x","x","x","x","x","x","x","x","x",null,null,null,null,null,null,null,null,"x",null,null,null,null,null,"x"]
[149,"Emissions de gaz à effet de serre économisées grâce au projet de TCSP","Nombre de tonnes de gaz à effet de serre en equivalent CO2 économisés grâce au projet de TCSP","Impact",null,"Cet indicateur vise à mesurer la contribution du projet à l'atténuation du changement climatique.","L'économie de CO2 est obtenue par différence entre les émissions qui auraient eu lieu en l'absence de projet et les émissions de CO2 du projet. \nLes émissions qui auraient eu lieu sans le projet correspondent à la somme pour chaque mode de transport alternatif des véhicule.km x facteur d'émission du mode associé. \nCe calcul est basé sur l'hypothèse de report modal apporté par le projet qui permet d'obtenir les véhicule.km en mode alternatif au transport en commun évités par le projet.\nLes émissions de CO2 du projet correspondent aux véhicule.km TC x facteur d'émission TC.\n\nSi le facteur d'émission TC du projet est identique à celui des modes alternatifs TC, le calcul se réduit à : (véhicule.km VP x facteur d'émission VP - véhicule.km TC supplémentaires x facteur d'émission TC).\n\nTC = transport en commun\nVP = véhicule privé\n\nPour plus de détails sur la méthode de calcul, il est recommandé de référer au guide méthodologique \"Méthodologie pour l’évaluation de l’impact énergie /CO2 des projets de TCSP\" (Annexe 4 de l'AAP Ttransports collectifs et mobilité durable) de Observatoire Energie Environnement des Transports Commission Technique Voyageurs, disponible en ligne ici : http://www.territoires-ville.cerema.fr/IMG/pdf/Annexe_4_CO2_cle7585d7.pdf","En exploitation","Pour la construction (indicateur facultatif à séparer de la phase exploitation)",null,null,"Tonnes équivalent CO2 par an",null,null,"x",null,null,null,null,"x","Données sur le report modal (bilan LOTI)","ADEME","CGEDD",null,null,null,null,null,null,null,null,null,null,null,null,null,"x",null,null,null,null,null,null,null,null,null,null,null,null,null,null,null,null,null,null,null,null,null,null,null,null,null,null,null,null,null,null,null,null,null,null,"x"]
[150,"Emissions de gaz à effet de serre spécifiques à la mobilité","Nombre de tonnes de gaz à effet de serre en equivalent CO2 pour la mobilité","Impact","Impact","Cet indicateur vise à mesurer les efforts du secteur de la mobilité pour réduire les émissions de gaz à effet de serre (GES) et atténuer le changement climatique.","Cet indicateur correspond à la conversion des consommations énergétiques des système de mobilité en émissions de CO2.\nLa quantité de CO2 rejetée consiste en l'addition des émissions de CO2 liées aux consommations de combustibles pendant le déplacement du véhicule.\nPour ce calcul, il est recommandé de se référer au guide méthodologique \"Information CO2 des prestations de transport \" du Ministère, disponible en ligne : http://www.bretagne.developpement-durable.gouv.fr/IMG/pdf/guide2_information_co2_cle7a3f22.pdf","Emissions évitées du fait du report modal véhicule privé à transport en commun","Emissions supplémentaires en valeur absolue dues à la circulation d'un bus",null,null,"Tonnes équivalent CO2 /an",null,null,"x","x","x",null,null,"x","Autorité Organisatrice du Transports","Exploitants des transports en commun","Agance Locale de l'Energie",null,null,null,null,null,null,null,null,null,null,null,null,null,null,null,null,"x","x","x",null,null,null,null,null,null,null,null,null,null,null,null,null,null,null,null,null,null,null,null,null,null,null,null,null,null,null,null,null,"x",null,null,null,null,null,"x"]
[151,"Emissions de gaz à effet de serre spécifiques à la production d'énergie et les réseaux","Nombre de tonnes de gaz à effet de serre en equivalent CO2 dans le bâtiment par kWh produit","Impact","Impact","Cet indicateur permet d'évaluer les émissions de gaz à effet de serre (GES) dues à chaque kWh consommé. Ces émissions dépendent de la sources énergétique permettant la production de ce kWh (électricité, gaz, biomasse, etc.).","Il s'agit du ratio entre la quantité de CO2 rejetée et la quantité d'énergie produite.\nLa quantité de CO2 rejetée consiste en l'addition des émissions de CO2 liées aux consommations de combustibles entrant dans les équipements de production et à soustraire les émissions de CO2 qu'auraient générées la production d'électricité par les équipements auxquels se substitue la cogénération (le facteur conventionnel pour ce poste est de 0,356 t/MWh).\nPour les réseaux, une méthode de calcul de la quantité de CO2 a été élaborée par le SNCU (Syndicat National du Chauffage Urbain).",null,null,null,null,"Tonnes équivalent CO2/KWh",null,null,"x","x","x",null,null,"x","ADEME",null,null,null,null,null,null,"PEER / IGD",null,null,null,null,null,"x","x","x",null,null,null,null,null,null,null,null,null,null,null,null,null,null,null,null,null,null,null,null,null,null,null,null,null,null,null,null,null,null,null,null,null,null,null,"x"]
[152,"Emissions de gaz à effet de serre spécifiques au bâtiment","Nombre de tonnes de gaz à effet de serre en equivalent CO2 par m2 pour le bâtiment","Impact","Impact","Cet indicateur vise à mesurer les efforts du secteur de la mobilité pour réduire les émissions de gaz à effet de serre (GES) et atténuer le changement climatique.\nLes émissions de CO2 sont rapporté au m2.","L'indicateur se calcule ainsi : \nNombre de kWh consommé * Facteur d'émission propre au type d'énergie utilisé\nLes kWh consommé seront mesurés directement grâce aux données du projet.\nLes facteurs d'émissions sont disponibles sur le site Bilan GES de l'ADEME (http://www.bilans-ges.ademe.fr)\nUne méthode de calcul des emissions de GES est aussi définie dans le décret d'application n° 2017-725 du 3 mai 2017 relatif aux principes et modalités de calcul des émissions de gaz à effet de serre des projets publics","Chauffage","ECS","Electricité","Froid","gCO2/kwh consommé","gCO2 /m2/an",null,"x","x","x",null,null,"x","Dossier Permis de Construire bâtiment (étude thermique, ACV, etc.)\n","Agence Locale de l'energie","ADEME",null,null,null,null,"Bilan Carbone ADEME",null,null,null,null,null,null,null,null,null,null,null,null,null,null,null,"x","x","x","x",null,null,null,null,null,null,null,null,null,null,null,null,null,null,null,null,null,null,null,null,null,null,null,null,"x"]
[153,"Emissions de polluants atmosphériques","Quantité de polluants rejetés dans l'atmosphère","Impact",null,"L'indicateur explore en quoi la qualité de l'air a été améliorée ou dégradée par l'action. Il s'agit des résultats des mesures réglementaires de rejets dans le milieu naturel pour les poussières, les particules en suspensions (PM10, PM2.5), les oxydes d'azote (NOx), les oxydes de soufre (SOx) et le monoxyde de carbone (CO). ",null,"Poussière\nPM10\nPM 2,5","Oxydes d'azote (NOx)","Oxydes de soufre (SOx)","Monoxyde de carbone (CO)","mg/m3","µg/m3",null,null,"x","x",null,null,"x","Fédération des associations de surveillance de la qualité de l'air","Relevé de capteurs spécifiques mis en place",null,null,"Adapté de ISO 37151",null,null,"IGD",null,null,"x",null,null,"x","x",null,"x",null,null,"x",null,"x",null,null,null,null,null,"x",null,null,null,null,null,null,null,null,null,null,null,null,null,null,null,null,null,null,null,null,null,null,null,null,"x"]
[154,"Energie grise du bâtiment","Energie grise du bâtiment","Impact",null,"L'énergie grise est la quantité d'énergie nécessaire tout au long du cycle de vie du bâtiment : de la production des matériaux, à l'extraction, la transformation, la fabrication, le transport, la mise en œuvre, l'entretien puis pour finir au recyclage, à l'exception de l'utilisation.","L'énergie grise doit être calculée à l'aide d'une Analyse du Cycle de Vie (ACV).",null,null,null,null,"kWh EP/m² SP",null,null,"x",null,null,null,null,"x","Données issues du projet","Bases de données ACV",null,null,null,null,null,"Grenoble",null,null,null,null,null,null,null,null,null,null,null,null,null,null,null,"x",null,null,null,null,null,null,null,null,null,null,null,null,null,null,null,null,null,null,null,null,null,null,null,null,null,null,null,"x"]
[155,"Exposition au bruit des logements","Nombre de logements exposés à des niveaux sonores nocturnes inférieurs à 55d(A)","Impact",null," \t\n\nL'indicateur décrit le nombre de logements soumis à une nuisance sonore faible de nuit.  Le niveau sonore de 55 dB(A) est fixé comme seuil à ne dépasser afin que le bruit ne soit pas une nuisance. Ce niveau sonore est proposé en analogie à ce qui est proposé dans les référentiels existants mais peut être revue lors de l'utilisation de l'indicateur en fonction du contexte local. ","         \n\n\nCet indicateur nécessite l'acquisition de données in situ précises. En effet, il est nécessaire au préalable d'avoir mis en œuvre une étude acoustique du site initial dans le cas d'opérations de renouvellement urbain, une étude prévisionnelle d'après le plan de masse et une étude après livraison des équipements pour déterminer le niveau sonore.",null,null,null,null,"Nombres de logements","% de logement",null,"x",null,null,null,null,"x","Etude acoustique","Plan masse",null,null,null,null,null,"AEU2",null,null,null,null,null,null,null,null,null,null,null,null,null,null,null,"x","x","x","x",null,null,null,null,null,null,null,null,null,null,null,null,null,null,null,null,null,null,null,"x"]
[156,"Exposition au bruit sur l'espace public","Part de la surface des espaces publics présentant des seuils de bruit jugés nuisibles","Impact",null,"L’indicateur caractérise la proportion d'espaces publics à présenter des seuils de bruit jugées nuisibles.\nRemarque : Nuisances élevées (selon réglementation française) : +60db(A) sur les façades le jour et +55db(A) la nuit. Jour : 6h-22h. Nuit : 22h-6h. ","L'indicateur se calcule ainsi : \nSurface d'espaces publics présenatnt des seuils de bruit jugées nuisibles / surface totale des espaces publics\n de l'opération d'aménagement","Ensemble des espaces publics","Ensemble des espaces verts",null,null,"% de surface",null,null,"x","x",null,null,null,"x","Mesures de bruit spécifiques et/ou enquête auprès des habitants",null,null,null,null,null,null,"AEU2",null,null,null,null,null,null,null,null,null,null,null,null,null,null,null,null,null,null,null,"x",null,"x",null,null,null,null,null,null,null,null,null,null,null,null,null,null,null,null,"x"]
[157,"Exposition réduite aux nuisances sonores","Evaluation de la réduction du niveau de bruit auquel sont exposés les habitants et usagers du quartier","Impact",null,"L'indicateur vise à évaluer la réduction du niveau de bruit auquel sont exposés les récepteurs (habitants et usagers). ","La valeur de l'indicateur doit être renseignée avant le projet et après la livraison de ce dernier (en ex post) selon la formule suivante : (niveau dB après le projet / niveau de dB avant le projet) x 100 = le pourcentage d'évolution du niveau de dB.\nRemarque : Nuisances élevées (selon réglementation française) : +60db(A) sur les façades le jour et +55db(A) la nuit. Jour : 6h-22h. Nuit : 22h-6h. \nLa valeur de l'indicateur est renseignée de préférence sur la base de mesures in situ (ou le cas échéant, avec des outils de simulation).\nSources de données : cartes de bruits existant en France dans les agglomérations de +250 000hab et qui seront également réalisées en 2012 dans les agglomérations de +100 000hab (d'après CSTB, IMBE, 2011).","Définir les récepteurs pris en compte (seulement les habitants ou aussi les usagers, par exemple les salariés des bâtiments tertiaires du quartier...)",null,null,null,"dB","% \n\n(réduction du niveau de dB avant et après le projet)",null,null,null,null,"Le niveau de bruit doit être mesuré (ou modélisé) au niveau de l'objet qui est le récepteur des nuisances sonores",null,"x","Mesure de bruit","Carte de bruit",null,"x","ISO 37120",null,null,null,null,null,null,null,null,null,null,null,null,null,null,null,null,null,null,null,null,null,null,"x",null,null,null,null,null,null,"x","x",null,null,"x",null,null,null,null,null,null,null,"x"]
[158,"Facteur de ressource primaire","Facteur de ressource primaire d'un réseau énergétique","Impact",null,"Cet indicateur correspond à la quantité d'énergie primaire non renouvelable consommée par le réseau relativement à la quantité d'énergie utile délivrée. Un système est d'autant plus performant que son facteur de ressource primaire sera faible.\n\nLa quantité d'énergie consommée en entrée d'un générateur correspond aux quantités de combustibles utilisées pour produire l'énergie thermique. La quantité d'énergie délivrée correspond à la somme des énergies facturées aux abonnés.","Il se calcule de la manière suivante :\nQuantité d'énergie primaire non renouvelable consommée (MWh) / Quantité  d'énergie thermique livrée (MWh)\n\noù\n\nQuantité d'énergie primaire non renouvelable consommée = somme des énergies finales des combustibles entrant dans les instalations de production multipliées par les facteurs de ressource primaire du combustible + somme des chaleurs délivrées au réseau primaire par une source externe (autre réseau industriel, UIOM...) multipliées par les facteurs de ressource primaire des sources de chaleur - l'énergie électrique produite par la cogénération multipliée par le facteur de ressource primaire de l'électricité cogénérée\n\n Les quantités de combustibles consommées sont fournies par comptages, relevés ou factures du fournisseur de combustible ou d’énergie pour les différents types de générateurs.\n\nLes facteurs de ressource primaire sont les suivants : 1.20 pour le charbon, 1.10 pour le fioul, 1.10 pour le gaz naturel, 0.10 pour la biomasse, 0.05 pour la chaleur de récupération, 0 pour la géothermie, 0 pour les déchets ménagers, 0 pour le gaz de décharge, 2.58 pour l'électricité française, 2.50 pour l'électricité européenne.",null,null,null,null,"% de MWh",null,null,"x",null,null,null,null,"x","La source principale et la plus fiable est la facture établie par l'organisme\nfournissant le combustible. Ces énergies doivent être fournies en PCI.",null,null,null,null,null,null,"NORME EN 15316-4-5 et IGD",null,null,null,null,null,"x","x",null,null,null,null,null,null,null,null,null,null,null,null,null,null,null,null,null,null,null,null,null,null,null,null,null,null,null,null,null,null,null,null,null,null,null,null,"x"]
[159,"Gain d'espace","Gain d'espace en m² dans les bâtiments suite au raccordement au réseau ","Impact",null,"Cet indicateur vise à évaluer le gain d'espace en m² dans les bâtiments suite au raccordement au réseau, par exemple grâce à la disparition des chaudières en pied d'immeuble ou des chaudières individuelles.\nCet indicateur est surtout pertinent dans les zones où le prix du foncier est élevé. ","L'indicateur se calcule ainsi :\nSurface dédiée à la production de chaleur dans le bâtiment avant projet - Surface dédiée à la sous-station au sein du bâtiment après projet\nLe résultat peut être rapporté à la surface totale du projet.",null,null,null,null,"m² de surface","% de surface",null,null,"x",null,null,null,"x",null,null,null,null,null,null,null,null,null,null,null,null,null,"x",null,null,null,null,null,null,null,null,null,null,"x",null,null,null,null,null,null,null,null,null,null,null,null,null,null,null,null,null,null,null,null,null,null,null,null,null,null,null,null,null,"x"]
[160,"Ménages en situation de précarité énergétique","Part de ménages en situation de précarité énergétique","Impact","Impact","Cet indicateur est un révélateur de situations de précarité énergétique. On considère généralement que si de 10% du revenu des ménages est consacré aux factures énergétiques, on peut alors déduire qu'ils se trouvent en situation de précarité énergétique","La précarité énergétique pour un ménage se calcule ainsi :\nfacture énergétique / revenu du ménage.\nDans le cadre d'un projet, par exemple de rénovation, l'indicateur permettra de comparer le nombre de ménages en situation de précarité énergétique avant le projet au nombre de ménages dans cette situation après. ",null,null,null,null,"% du revenu ",null,null,"x","x","x",null,"x","x","Enquêtes menées auprès des habitants",null,null,"x",null,null,null,null,null,null,null,null,null,null,null,null,null,null,null,null,null,null,null,null,"x","x","x",null,null,null,null,null,null,null,null,null,null,null,null,null,null,null,null,null,null,null,null,null,"x",null,null,null,null,null,null,null,null,null,"x"]
[161,"Mix énergétique du réseau","Répartition des quantités d'énergie en production","Impact",null,"Il s'agit de la répartition des quantités d'énergie en production (injectées dans le réseau) par type d'énergie (Energie fossile & Energie renouvelable).\nLes énergies fossiles correspondent au charbon, fioul lourd, Combustible Haute Viscosité, fioul domestique, gaz, part d'électricité non renouvelable.\nLa loi de programme fixant les orientations de la politique énergétique française du 13 juillet 2005 (article 29) définit les sources d'énergie renouvelables ; il s'agit des « énergies éolienne, solaire, géothermique, houlomotrice, marémotrice et hydraulique ainsi que l'énergie issue de la biomasse, du gaz de décharge, du gaz de stations d'épuration d'eaux usées et du biogaz. »","- 1er cas : un compteur existe en aval de chaque générateur : on considère le relevé du compteur (cas des géothermies, des énergies de récupération, de la quasi totalité des cogénérations et de certaines chaudières gaz /fioul...).\n- 2ème cas : s'il n'existe pas de compteur en aval d'un générateur, on considère le relevé du compteur de combustible pondéré du rendement théorique sur PCI du générateur et de la conversion de l'énergie de départ en PCI.","Energies renouvelables","Energies fossiles",null,null,"GWh/an","% de GWh",null,"x","x",null,null,null,"x","L'opérateur surveille ces énergies et selon son contrat est tenu de fournir ces informations à l'autorité publique.",null,null,null,null,null,null,"IGD",null,null,null,null,null,"x",null,null,null,null,null,null,null,null,null,null,null,null,null,null,null,null,null,null,null,null,null,null,null,null,null,null,null,null,null,null,null,null,null,null,null,"x",null,"x"]
[162,"Nombre de logements construits au delà du point mort","Nombre de logements construits au-delà du point mort","Impact","Impact","Il s’agit du nombre de permis de construire portant sur des logements, accordés sur la période et au sein du périmètre concerné, diminué du nombre de logements qu’il est nécessaire  de construire (sur la même période et sur le même périmètre) pour stabiliser le nombre d’habitants (notamment du fait de l’évolution du parc et de son occupation et des phénomènes de desserrement). \nLes besoins en logements liés au « point mort » seront estimés par les porteurs de projets en s’appuyant sur les prévisions réalisées dans les programmes locaux de l’habitat (PLH) des collectivités ou EPCI concernés.\n","L'indicateur se calcule ainsi :\nNombre de permis de construire pour des logements accordés sur une période donnée - Nombre de logements qu'il aurait été nécessaire de construire sur cette même période pour stabiliser le nombre d'habitants.",null,null,null,null,"Nombre de logements",null,null,null,"x","x",null,"x","x","PLUI / PLH","Dossiers de Permis de construire",null,null,null,null,"EcoCité générique IMP 1",null,null,null,null,null,null,null,null,null,null,null,null,null,null,null,null,"x",null,null,null,null,null,null,null,null,null,null,null,null,null,null,null,null,null,null,null,null,"x"]
[163,"Production de déchets","Quantité de déchets annuelle par occupant","Impact",null,"Cet indicateur permet de mesurer la  quantité moyenne d'ordures ménagères et assimilées (OMA) produites par chaque occupant au sein d'un périmètre donné.","L'indicateur se calcule ainsi : \nQuantité totale d'OMA produite par année lors de l'occupation du bâtiment (kg de déchets) / nombre d'occupants du bâtiment","Ordures Ménagères Résiduelles","Recyclables","Verre","Déchets organiques","kg/habitant/an",null,null,"x",null,null,null,"x","x","Gestionnaire de déchets et porteur d'action",null,null,null,null,null,null,"IDF",null,null,null,null,null,null,null,null,null,null,null,null,null,null,null,"x","x","x","x",null,null,null,null,null,null,null,null,null,null,null,null,null,null,null,null,null,null,null,null,null,null,null,null,null,null,null,"x"]
[164,"Qualité des liaisons","Qualité des liaisons entre le quartier et le reste de la ville","Impact",null,"Il s'agit d'évaluer la qualité des liens entre le quartier et son environnement à travers une analyse de la trame viaire et bâti constituée.  Cela inclut notamment la prise en compte d'éventuelles coupures urbaines entre le quartier et la ville et l'étude de la qualité des entrées de quartier,  les liaisons avec les équipements attractifs de la ville, etc.","L'indicateur est évalué via une échelle de Likert:\n1 - Tout à fait d'accord : Le quartier est complètement intégré à son environnement et parfaitement relié au reste de la ville et aux principaux équipements.\n2 - D'accord : La quartier est intégré à son environnement et relié au reste de la ville.\n3 - Ni en désaccord ni d'accord : Il n'existe pas de coupures urbaines majeures entre le quartier et le reste de la ville.\n4 - Pas d'accord : Le quartier est mal relié à son environnement et au reste de la ville, il existe des coupures et les équipements majeurs ne sont pas facilement accessibles.\n5 - Pas du tout d'accord : Le quartier est complètement enclavé, coupé du reste de la ville et des équipements majeurs.",null,null,null,null,"Echelle de Likert",null,null,"x","x",null,null,null,"x","Plan masse du projet, enquête pour évaluer le ressenti des habitants et usagers",null,null,null,null,null,null,"Adapté de AEU2/Strasbourg et INDI",null,null,null,null,null,null,null,null,null,null,null,null,null,null,null,null,null,null,null,null,"x",null,null,null,null,null,null,null,null,null,null,null,null,null,null,null,"x","x"]
[165,"Rendement du réseau de distribution d'eau potable","Evaluer la politique de lutte contre les pertes d’eau en réseau de distribution","Impact","Impact","Cet indicateur permet de connaître la part des volumes introduits dans le réseau de distribution qui est consommée avec autorisation sur le périmètre du service ou vendue en gros à un autre service d’eau potable. Sa valeur et son évolution sont le reflet de la politique de lutte contre les pertes d’eau en réseau de distribution.\nPour les définitions des différents \"volumes\", voir les informations indiquées dans la \"méthode de calcul\".","Il s’agit du ratio entre, d’une part le volume consommé autorisé augmenté des volumes vendus en gros à d’autres services publics d’eau potable et, d’autre part le volume produit augmenté des volumes achetés en gros à d’autres services publics d’eau potable.\n\nRendement = (volume consommé autorisé + volume vendu en gros) / (volume produit + volume acheté en gros) X 100, avec :\nvolume produit + volume acheté en gros = volume mis en distribution + volume vendu en gros\nvolume consommé autorisé = volume comptabilisé + volume consommateurs sans comptage + volume de service du réseau\n\nIl est aussi demande d'ndiquer les pertes du réseau de distribution d'eau potable en m3/km/jour.","Les services visés sont les services assurant les missions de production et/ou de transfert et/ou de distribution d’eau jusqu’aux points de livraison (abonnés, ventes en gros), que la production soit faite par le service ou non",null,null,null,"% de volume d'eau","m3/km/jour",null,"x",null,"x",null,null,"x","L’opérateur du réseau de distribution, qui s’appuie le cas échéant sur l’organisme chargé du relevé des compteurs",null,null,null,"ISO 37151",null,null,"Observatoire national des services d'eau et d'assainissement (Fiche P104.3)\n",null,"x",null,null,null,null,null,null,null,null,null,null,null,null,null,null,null,null,null,null,null,null,null,null,null,null,null,null,null,null,null,null,null,null,null,null,null,null,null,null,null,null,null,null,null,null,null,null,"x"]
[166,"Report modal","Report modal","Impact",null,"Cet indicateur vise à mesurer l'impact environnemental du projet en estimant le mode de report. Il montre la proportion des usagers de la ligne de transport en commun concernée qui réalisaient avant leur déplacement : \n- en voiture particulière  \n- en transports en commun \n- en modes actifs \n- n'auraient pas réalisé le déplacement avant (trafic induit).\nCet indicateur est nécessaire pour calculer ensuite les émissions de GES économisées grâce au projet de TCSP.","Il est recommandé de réaliser une enquête auprès des usagers de la ligne ou de l'extension de ligne en projet pour obtenir le report modal.\nUne méthode de calcul alternative consiste à mettre à jour les évaluations ex ante à partir des données de fréquentation ex post.",null,null,null,null,"% d'usagers de la ligne / portion de ligne concernée",null,null,"x","x",null,null,null,"x","Enquête Origine-Destination à mener auprès des usagers","Cerema","Enquêtes Ménages Déplacements (EMD) ou Enquêtes Déplacements Grands Territoires (EDGT)",null,null,null,null,null,null,null,null,null,null,null,null,null,"x",null,null,null,null,null,null,null,null,null,null,null,null,null,null,null,null,null,null,null,null,null,null,null,null,null,null,null,null,null,null,null,null,null,null,"x"]
[167,"Satisfaction des usagers du service ou de l'équipement ","Satisfaction des usagers de l'équipement ou du service proposé par le projet","Impact",null,"L'indicateur vise à déterminer la proportion des usagers qui sont satisfaits de l'équipement ou du service proposé par le projet ","L’indicateur est basé sur les résultats d’une enquête à conduire auprès des usagers sur leur perception de la qualité de l’équipement ou du service proposé par le projet. La formulation peut s’inspirer de l’exemple suivant : « De manière générale, pouvez-vous me dire si vous êtes très satisfait, plutôt satisfait, plutôt insatisfait, ou pas du tout satisfait avec chacune des questions suivantes liées au projet [a, b ou c] » ?","Un service ou un équipement (porté par le projet)",null,null,null,"% de personnes interrogées\n\n(avec 4 classes de réponses)",null,null,"x",null,null,null,null,"x","Enquête auprès des usagers du service ou de l'équipement",null,null,null,null,"Adapté RFSC",null,null,null,null,null,null,null,null,null,null,null,null,null,null,null,null,null,null,null,null,null,null,null,null,null,null,null,"x","x","x","x","x","x",null,null,"x","x",null,null,"x"]
[168,"Surface naturelle ou agricole artificialisée","Surface moyenne d’espaces naturels, agricoles ou forestiers consommés ","Impact","Impact","Cet indicateur évalue le niveau d'étalement urbain causé par un projet donné, en mesurant la  surface  d’espaces naturels, agricoles ou forestiers consommés et artificialisés au global et par habitant supplémentaire accueilli.","L'indicateur se calcule ainsi :\nSurface naturelle, agricole ou forestière artificialisée (en m²) / Nombre d'habitants accueillis ",null,null,null,null,"m²","m²/habitant supplémentaire",null,"x","x","x",null,null,"x","Plan masse projet et PLU",null,null,null,null,null,null,"Adapté du PLUi de Bordeaux Métropole",null,null,null,null,null,null,null,null,null,null,null,null,null,null,null,null,null,null,null,null,null,"x",null,null,null,null,null,null,null,null,null,null,null,null,null,null,null,null,null,null,null,null,null,null,null,null,"x"]
[169,"Taux d'autosuffisance énergétique","Ratio entre la production locale d’énergies renouvelables et la consommation énergétique dans le périmètre","Impact","Impact","Cet indicateur correspond au taux d’autosuffisance énergétique, ou bilan énergétique de l'espace considéré (bâtiment, quartier, territoire...). L’objectif est de mesurer l’effort local en termes de production d’énergies renouvelables, en le mettant en perspective avec la consommation du quartier. Au-delà de la contribution à l’effort national, cet effort permet également de diminuer la facture énergétique pour les usagers du quartier. Le suivi de cet indicateur dans le temps peut par ailleurs permettre de détecter des problèmes (matériel défectueux, comportements inadaptés, ..).\nLes énergies renouvelables sont définies l’article L.211-2 du Code de l’énergie. Pour aller plus loin, l’indicateur pourra être détaillé par lot, sur les productions et consommations de chaleur d’une part et d’électricité d’autre part.","L’indicateur se calcule ainsi : \n100 x (Nombre de kWh/an de chaleur et d’électricité produits à partir de sources renouvelables par des unités de production installées dans le périmètre considéré) / (Nombre de kWh/an de chaleur et d’électricité consommés).\n","Chaleur","Electricité",null,null,"% de kWh",null,null,null,"x","x",null,"x","x","La production énergétique des unités de production gérées par le public (en régie ou DSP, etc.) est disponible auprès des exploitants. La production énergétique des unités de productions gérées par le privé est disponible auprès des occupants ou gestionnaires de bâtiments, ou peut être estimée par les promoteurs.\nLes consommations énergétiques sont disponibles auprès des gestionnaires de réseaux, des occupants ou gestionnaires de bâtiments, et des services compétents pour les consommations liés à l’éclairage et l’espace public.",null,null,null,null,null,null,"AEU2",null,null,null,null,null,"x","x",null,null,null,null,null,null,null,null,"x","x","x","x",null,null,null,null,null,null,null,null,null,null,null,null,null,null,null,null,null,null,null,null,null,null,"x"]
[170,"Taux de réclamation","Niveau d’insatisfaction des abonnés au service public","Impact",null,"Cet indicateur correspond à la traduction de manière synthétique du niveau d’insatisfaction des abonnés au service public (service de l'eau, service de collecte et gestion des déchets...). Il reprend les réclamations écrites de toute nature relatives au service de l’eau (ou du service de collecte et de gestion des déchets), à l’exception de celles qui sont relatives au niveau de prix. Elles comprennent notamment les réclamations réglementaires, y compris celles qui sont liées au règlement de service.","L'indicateur se calcule ainsi : \nLe nombre de réclamations écrites (du 1 janvier au 31 décembre de l'année N) est rapporté au nombre d’abonnés divisé par 1 000","Seuls les services de distribution sont concernés. Les services de transfert et de production ne sont pas concernés (pas d’abonnés)",null,null,null,"Nombre de réclamations par milliers d'abonnés",null,null,null,null,null,"Echelle du service public",null,"x","Données opérateur (avec le concours de la collectivité qui transmet à l’opérateur les réclamations écrites qu’elle reçoit)",null,null,null,"ISO 37151",null,null,"Observatoire national des services d'eau et d'assainissement (Fiche P155.1)",null,"x","x",null,null,null,null,null,null,null,null,null,null,null,null,null,null,null,null,null,null,null,null,null,null,null,null,null,null,null,null,null,null,null,null,null,null,"x"]
[171,"Temps de retour sur investissement (TRI) ","Temps de retour sur investissement","Impact",null,"Cet indicateur permet d'évaluer en combien de temps l'investissement initial d'un projet sera remboursé, grâce aux recettes annuelles qu'il engendre . Il s'inscrit dans une analyse des coûts à l'échelle du projet uniquement basé sur les flux de trésorerie","L'indicateur se calcule ainsi :\nInvestissement initial / Flux de trésorerie annuels",null,null,null,null,"Années",null,null,"x",null,null,null,null,"x","Données issues du projet",null,null,null,null,null,null,"Norme ISO/DIS 15686-5",null,"x","x","x","x","x","x","x",null,"x","x","x","x","x","x","x","x","x","x","x","x","x","x","x","x","x","x","x","x","x","x","x","x","x","x",null,null,null,null,null,null,null,"x",null,null,null,null,null,null,"x"]
[172,"Valeur actuelle nette (VAN) ","Valeur actuelle nette (VAN) socio-économique","Impact",null,"La VAN s'inscrit  dans le cadre de l'analyse coûts bénéfices qui, contrairement à l'analyse des coûts classique, prends en compte l'ensemble des co-bénfices qu'engendre l'action. Ainsi, cette annalyse dépasse le périmètre du projet et intègre par exemple la prise en compte d'externalités positives sur la santé ou la valeur patrimoniale. Le calcul de la VAN permettra d'évaluer la rentabilité de l'investissement au regard des flux de trésorerie et des co- bénéfices qui découlent de cet investissement. La VAN intègre également un taux d'actualisation permettant d'anticper la valeur future des différents investissements","Il s'agit de la somme des flux générés par le projet, chaque flux étant actualisé par rapport à l'année 0. Une VAN positive indique que l'investissement peut être entrepris\nLe porteur doit préciser s'il calcule une VAN socio économique ou une VAN financière.\n\n\n\n\n",null,null,null,null,"Euros ",null,null,"x",null,null,null,null,"x","Données issues du projet",null,null,"x",null,null,null,null,null,"x","x","x","x","x","x","x","x","x","x","x","x","x","x","x","x","x","x","x","x","x","x","x","x","x","x","x","x","x","x","x","x","x","x",null,null,null,null,null,null,null,"x",null,null,null,null,null,null,"x"]
[173,"Valorisation d'eau et de déchets en agriculture urbaine","Part d'eaux pluviales et de déchets valorisés en agriculture urbaine","Impact",null,"Cet indicateur vise à évaluer la part de déchets et eaux pluviales valorisés localement pour l'agriculture urbaine:\n- économies en eau potable : part de la consommation en eau satisfaite par de l'eau pluviale récupérée\n- valorisation des déchets du quartier : part des déchets organiques du quartier réutilisés en compost ",null,"Ratio : part des consommations en eau satisfaites par de l'eau pluviale (%) ","Ratio : part des déchets organiques du quartier valorisés en compost pour l'agriculture urbaine (%)",null,null,"% d'eau pluviale "," % de déchets organiques",null,"x",null,null,null,null,"x","Données exploitant","Données bailleur/copropriétés",null,null,null,null,null,null,null,null,null,null,null,null,null,null,null,null,null,null,null,null,null,null,null,null,null,null,null,null,"x",null,null,null,null,null,null,null,null,null,null,null,null,null,null,null,null,null,null,"x",null,null,null,null,null,"x","x"]
[174,"Budget municipal attribué à des activités culturelles et de loisirs","Part du budget municipal attribué à des activités culturelles et de loisirs",null,"Réalisation","Les dépenses prises en compte doivent au moins couvrir :\no La motivation pour l'accès à la culture et la culture (bibliothèques, groupes de lecture, musées, galeries, théâtres, concerts et autres activités culturelles) ;\no L'entretien des monuments historiques, la protection des sites ;\no les médias de masse ;\no les espaces publiques, les sentiers pédestres ;\no les sports ;\no autres loisirs ;",null,null,null,null,null,"Euros","% en euros",null,null,null,"x",null,"x","x","Données collectivité ",null,null,null,null,"x",null,null,null,null,null,null,null,null,null,null,null,null,null,null,null,null,null,null,null,null,null,null,null,null,null,null,null,null,"x",null,null,null,null,null,null,null,null,null,null,"x","x"]
[175,"Dépenses de la municipalité pour une transition vers une « ville intelligente »","Dépenses annuelles de la municipalité pour une transition vers une « ville intelligente »",null,"Réalisation","Dans leur transition vers plus de durabilité, les villes se font plus « intelligentes » et encouragent l’innovation. L’intelligence se traduit par la mise en place de solutions innovantes qui bénéficient à l’économie locale, à une meilleure préservation des ressources naturelles et, d’une manière plus générale, améliorent la qualité de vie.\nL’innovation et l’intelligence peuvent alors être d’ordre\n> social : en utilisant de façon innovante les infrastructures publiques existantes, telles que les écoles et les bibliothèques, ainsi que les réseaux sociaux et les médias, afin de plus impliquer les citoyens dans la vie de la cité ; d’une manière plus générale, en encourageant les initiatives locales qui bénéficient à la communauté, depuis la création de petites entreprises jusqu’aux activités à but non lucratif. L’innovation est le résultat de partenariats innovants ;\n> financier: si une utilisation efficace des ressources améliore la rentabilité économique et la compétitivité, elle exige souvent des investissements initiaux. Des instruments financiers innovants constituent la clé d’une transition réussie, des microcrédits aux fonds renouvelables pour la rénovation énergétique ;\n> technologique : les technologies de l’information et de la communication (TIC) peuvent contribuer à rendre les villes plus intelligentes et plus connectées et à améliorer leur planification et leur services : en tirant profit de l’information en temps réel pour optimiser les infrastructures et les services de la ville, en ouvrant les sources de données à peu ou pas de frais dans le but de favoriser le développement des applications qui facilitent la vie et le travail des citoyens de la ville, en fournissant des services et des applications directement aux habitants par le biais de plateformes techniques (numérisation des services publics). ",null,null,null,null,null,"Euros",null,null,null,null,"x",null,"x","x","Données collectivité",null,null,null,null,"x",null,null,null,null,null,null,null,null,null,null,null,null,null,null,null,null,null,null,null,null,null,null,null,null,null,null,null,null,null,null,null,null,null,null,null,null,null,null,"x"]
[176,"Mise en place d'un plan d'adaptation au changement climatique","Existence d'un plan d'adaptation au changement climatique",null,"Réalisation","Cet indicateur cherche à identifier si un plan d'adaptation au changement climatique a été mis en place.\nLa montée du niveau des océans, les inondations dans l'intérieur des terres et les événements météorologiques extrêmes, notamment la plus grande fréquence des vagues de chaleur, ainsi que l'accroissement des sécheresses, souvent associées à la raréfaction de l'eau et la pollution atmosphérique, ainsi que le développement potentiel de maladies, peut avoir des impacts négatifs de grande ampleur sur la santé, les moyens de subsistance et les biens des personnes.\nLes villes sont extrêmement vulnérables au changement climatique, en raison de leur forte densité de population, d'activités économiques, de services publics et d'infrastructures. Les gouvernements locaux jouent un rôle essentiel en ce qui concerne l'adaptation aux menaces existantes et émergentes auxquelles les villes doivent faire face. Elles doivent mieux comprendre leur degré d'exposition et leur vulnérabilité aux impacts potentiels, de façon à être en mesure d'évaluer les risques associés à ces impacts.\nCe processus doit impliquer les principales parties prenantes, tels que les experts, les prestataires de services et la communauté locale, dans le but de développer des plans d'adaptation transversaux.","Avez-vous un plan d'adaptation au changement climatique (oui/non) ?",null,null,null,null,"Oui/non",null,null,null,null,"x",null,null,"x",null,null,null,null,null,"x",null,null,null,null,null,null,null,null,null,null,null,null,null,null,null,null,null,null,null,null,null,null,null,null,null,null,null,null,null,null,null,null,null,null,null,null,null,null,null,null,null,null,null,"x"]
[177,"Mise en place d'une stratégie de gestion des risques","Existence d'une stratégie de réduction des risques et de résilience",null,"Réalisation","Une stratégie de réduction des risques et de résilience consiste au moins à (source : boîte à outils UNISDR pour les autorités locales) :\n1. Mettre en place une organisation et coordination afin de comprendre et réduire les risques de catastrophe, sur la base de la participation de groupes de citoyens et de la société civile. Constituer des alliances locales. Veiller à ce que chaque service comprenne bien son rôle dans la préparation et la réduction des risques de catastrophes.\n2. Attribuer un budget à la réduction des risques et proposer des subventions aux propriétaires, familles à faible revenu, communautés, entreprises et au secteur public pour investir dans la réduction des risques auxquels ils sont confrontés.\n3. Maintenir à jour les données relatives aux dangers et vulnérabilités. Préparer les évaluations des risques puis les utiliser comme base pour la planification du développement urbain et la prise de décisions dans ce domaine. S'assurer que ces informations et les planifications en vue de la résilience de votre ville soient facilement accessibles au grand public et amplement débattues avec lui.\n4. Investir dans une infrastructure essentielle, entretenue, qui réduise les risques, comme les réseaux d'égouts pour éviter les inondations et s'adapter aux changements climatiques.\n5. Évaluer la sécurité de toutes les écoles et les établissements sanitaires et l'améliorer selon les besoins.\n6. Faire appliquer et respecter des réglementations en matière de construction et des principes d'aménagement du territoire qui soient réalistes et tiennent compte des risques. Identifier des terrains sans danger pour les citoyens à faible revenu et aménager les établissements informels, lorsque cela est réalisable.\n7. S'assurer que des programmes d'éducation et de formation relatifs à la réduction des risques de catastrophes sont en place dans les écoles e les communautés locales.\n8. Protéger les écosystèmes et les zones tampon naturelles afin d'atténuer les inondations, les tempêtes et autres aléas qui pourraient menacer votre ville. S'adapter au changement climatique en mettant en place de bonnes pratiques en matière de réduction des risques.\n9. Installer des structures de systèmes d'alerte rapide et des moyens de gestion des situations urgences dans votre ville et organiser des exercices publics de sensibilisation de manière périodique.","Avez-vous mis en place une stratégie de réduction des risques et de résilience (oui/non) ?",null,null,null,null,"Oui/non",null,null,null,null,"x",null,null,"x",null,null,null,null,null,"x",null,null,null,null,null,null,null,null,null,null,null,null,null,null,null,null,null,null,null,null,null,null,null,null,null,null,null,null,null,null,null,null,null,null,null,null,null,null,null,null,null,null,null,"x"]
[178,"Préservation du patrimoine","Mise en oeuvre d'une politique de préservation du patrimoine",null,"Réalisation","Cet indicateur vise à savoir si votre autorité locale a mis en place une politique de préservation du patrimoine.\n\nLe patrimoine urbain et architectural constitue un élément central en matière de développement urbain durable, car il améliore l'attractivité économique et démographique d'une ville et contribue à créer des liens entre les cultures de tous les groupes de population. En représentant de façon positive le pluralisme du patrimoine culturel, cela favorise la tolérance et l'inclusion sociale et forge le tissu social. La culture est un facteur de solidité économique grâce aux projets de restauration, aux événements attractifs innovants et aux activités touristiques, en particulier pour les villes petites et moyennes.","Avez-vous une politique de préservation du patrimoine ? (Oui/Non)",null,null,null,null,"Oui/non",null,null,null,null,"x",null,null,"x",null,null,null,null,null,"x",null,null,null,null,null,null,null,null,null,null,null,null,null,null,null,null,null,null,null,null,null,null,null,null,null,null,null,null,null,null,null,null,null,null,null,null,null,null,null,"x"]
[179,"Fréquentation des transports en commun sur le territoire","Nombre de voyages par jour dans les transports en commun",null,"Résultat","Il s’agit du nombre moyen de voyages constatés par jour ouvré sur le réseau de transport en commun de l’EPCI ou de l’AOT. Le nombre de jours ouvrés par an pris en compte pour renseigner cet indicateur est de 252 jours ouvrés.","L'indicateur se calcule ainsi :\nNombre de voyages journaliers constatés sur 252 jours ouvrés / 252",null,null,null,null,"Nombre de voyages / jour",null,null,null,null,"x","Périmètre AOT","x","x","Données billettique","Données AOM","Enquêtes reports et induction",null,null,null,"EcoCité générique IMP 3",null,null,null,null,null,null,null,null,null,null,null,null,null,null,null,null,null,null,null,null,null,null,null,null,null,null,null,null,null,null,null,null,null,null,null,null,null,"x","x",null,null,null,null,null,"x","x"]
[180,"Linéaire de chemins de découverte du territoire","Linéaire de cheminements de loisirs et de découverte mettant en valeur le territoire ",null,"Résultat","Cet indicateur évalue la qualité de l'offre d'un territoire en matière de cheminements de loisirs et de découverte  (linéaire de randonnées, pistes cyclables...) mettant en valeur le capital paysager, culturel et patrimonial d’exception du territoire.","Cet indicateur se calcule en mesurant le linéaire de cheminements dédiés aux modes doux permettant la découverte du territoire.",null,null,null,null,"mètre linéaire",null,null,null,null,"x",null,null,"x","Données collectivité",null,null,null,null,null,null,"Adapté du SCOT de Nantes Saint Nazaire",null,null,null,null,null,null,null,null,null,null,null,null,null,null,null,null,null,null,null,null,"x"]
[181,"Linéaire de transports en commun par habitant","Linéaire de transports en commun par habitant",null,"Résultat","Cet indicateur permet d'évaluer la qualité de l'offre en transports en commun pour répondre aux besoins de la population. ","L'indicateur se calcule en mesurant les kilomètres de lignes de transports en commun pour 100 000 habitants","m ou km","possibilité de rapporter ce kilométrage à la superficie de la ville pour tempérer l'observation selon la densité de population moyenne",null,null,"km linéaire",null,null,null,null,"x",null,null,"x","Données disponibles chez l'autorité organisatrice de la mobilité (souvent une émanation de la collectivité)","Dossiers projets TC","Couches SIG de l'exploitant et/ou de l'autorité organisatrice de la mobilité",null,"ISO 37120",null,null,null,null,null,null,null,null,null,null,null,"x",null,null,null,null,null,null,null,null,null,null,null,null,null,null,null,null,null,null,null,null,null,null,null,null,null,null,null,"x"]
[182,"Nombre de places de stationnement voiture sur le territoire par habitant","Nombre de places de stationnement voiture sur le territoire par habitant",null,"Résultat","Cet indicateur vise à évaluer les efforts mis en oeuvre en vue de réduire l'utilisation de la voiture.","L'indicateur se calcule ainsi : \nNombre de places de stationnement voiture sur l'espace public / Nombre d'habitants de plus de 18 ans sur le périmètre géographique de l'étude","Par type d'usagers : habitants, bureaux, autres",null,null,null,"Nombre de places de stationnement sur l'espace public (voirie)","Nombre de places / usager",null,"x","x","x",null,null,"x","Données collectivité",null,null,null,null,null,null,"Adapté indicateurs Montpellier",null,null,null,null,null,null,null,null,null,null,null,"x",null,null,"x",null,null,null,null,"x",null,null,null,null,null,null,null,null,null,null,null,null,null,null,null,null,"x","x",null,null,null,null,null,null,null,null,"x"]
[183,"Production d’énergie renouvelable sur le territoire","Quantité d'énergie renouvelable produite",null,"Résultat","La production d'énergies renouvelables sur le territoire doit être détaillé par filières pour la production d’électricité (éolien terrestre, solaire photovoltaïque, solaire thermodynamique, hydraulique, biomasse solide – biogaz, géothermie électrique), de chaleur (biomasse solide, pompes à chaleur, géothermie, solaire thermique, biogaz), de gaz (biométhane) et de biocarburants. ","L'indicateur se calcule ainsi :\nQuantité d'énergie renouvelable produite en GWh par an ","Par filière","Par type d'énergie",null,null,"MWh/an",null,null,null,null,"x",null,"x","x","Données collectivité (Bilan Carbone PCAET, données gestionnaires des réseaux, etc.)",null,null,null,null,null,null,"PCAET",null,null,null,null,null,null,null,null,null,null,null,null,null,null,null,null,null,null,null,null,null,null,null,null,null,null,null,null,null,null,null,null,null,null,null,null,null,null,null,null,null,null,null,"x"]
[184,"Proximité des services de base sur le territoire","Part de la population qui vit à proximité des équipements et services de base",null,"Résultat","Cet indicateur vise à évaluer l'accés aux aménités, équipements et services de base. Cet indicateur mesure le pourcentage de la population qui vit à proximité des équipements et services de base (commerces alimentaires, écoles et crèches, centres de santé et de soin, équipements sportifs, culturels et de loisirs, points de collecte sélective...). La distance prise en compte (i.e. \"normée\") dépend de la nature du service ou de l'équipement considéré. ","Cet indicateur se calcule à partir du recensement de la population, de données géolocalisées et s'appuit sur des systèmes d'information géographiques (SIG). Il doit être calculé de préférence en prenant en compte les distances réelles (graphe des routes), le cas échéant des \"buffers\" peuvent être utilisés (distance à vol d'oiseau). \nL'indicateur se calcule selon la formule suivante (exprimée en %) : nombre d'habitants qui vive à proximité du service ou de l'équipement / nombre total d'habitants x 100\n","La part de la population correspond au nombre d'habitants (le cas échéant, si c'est un quartier d'affaires, possibilité d'inclure le nombre de salariés des bâtiments tertiaires)","Si le périmètre technique prend en compte les bâtiments, préciser si seuls les bâtiments résidentiels sont pris en compte ou aussi les bâtiments de bureaux.","Selon le type de services et équipements pris en compte, préciser le périmètre technique des aménités et équipements (par exemple, pour la distance aux arrêts de transport, est-ce que seuls les RER, métro et tramway sont pris en compte ou est-ce que les arrêts de bus sont aussi intégrés).",null,"%\n\n(part des habitants à proximité des équipements et services)",null,null,null,null,"x",null,null,"x","Données de la population géolocalisées","Données des équipements géolocalisées (ex : base SIRENE...)","Données collectivité",null,null,"x",null,null,null,null,null,null,null,null,null,null,null,null,null,null,null,null,null,null,null,null,null,null,null,null,null,null,null,null,null,null,null,null,null,null,null,null,null,null,"X"]
[185,"Puissance installée en énergie renouvelable","Puissance installée pour la production d’énergies renouvelables",null,"Résultat","La loi de programme fixant les orientations de la politique énergétique française du 13 juillet 2005 (article 29) définit les sources d'énergie renouvelables ; il s'agit des « énergies éolienne, solaire, géothermique, houlomotrice, marémotrice et hydraulique ainsi que l'énergie issue de la biomasse, du gaz de décharge, du gaz de stations d'épuration d'eaux usées et du biogaz. »",null,null,null,null,null,"MW",null,null,null,null,"x",null,null,"x","Données collectivité (Bilan Carbone PCAET, données gestionnaires des réseaux, etc.)",null,null,null,null,null,null,"PCAET",null,null,null,null,null,null,null,null,null,null,null,null,null,null,null,null,null,null,null,null,null,null,null,null,null,null,null,null,null,null,null,null,null,null,null,null,null,null,null,null,null,null,null,"x"]
[186,"Réaménagement des friches industrielles sur le territoire","Part des friches industrielles réaménagées",null,"Résultat","Cet indicateur mesure le pourcentage de surface de friches industrielles réaménagée sur l'ensemble des surfaces de friches d'un territoire. Les friches étant définies comme des terrains ayant accueuillis autrefois une activité industrielle ou commerciale. La plupart de ces friches ayant des problèmes de contamination au niveau des sols.","L'indicateur se calcule ainsi : \nSurfaces du projet bâti sur d'anciennes friches  / surfaces totales de friches",null,null,null,null,"% de surface",null,null,null,null,"x",null,null,"x","PLU",null,null,"x",null,null,null,null,null,null,null,null,null,null,null,null,null,null,null,null,null,null,null,null,null,null,null,null,null,null,null,null,null,null,null,null,null,null,null,null,null,null,null,null,null,null,null,null,null,null,null,null,null,null,"x"]
[187,"Consommation d'espace","Consommation d'espace par rapport au taux de croissance démographique",null,"Impact","L'indicateur peut être défini comme étant la quantité de terres agricoles, forêts et autres milieux semi-naturels et naturels utilisés par le développement urbain et autres espaces artificiels. Il inclut les zones imperméabilisées par les constructions et les infrastructures urbaines, ainsi que les espaces verts et les installations sportives et de loisir.\n\nLes principaux facteurs d'occupation des espaces sont groupés en processus conduisant à l'extension des :\n• logements, services et loisirs,\n• sites industriels et commerciaux,\n• réseaux et infrastructures de transport,\n• mines, carrières et décharges de déchets,\n• sites de construction.\n\nLa consommation d'espace (également appelée artificialisation des sols).\n\nLa consommation d'espace est comparée à la croissance démographique, ou en d'autres termes à l'augmentation de la population sur la période considérée.\nPar définition, cet indicateur ne peut pas être calculé pour une zone urbaine morphologique. ","Il s'agit du ratio entre la consommation d'espace (espaces pour lesquels l'utilisation des sols a été modifiée, à savoir territoires agricoles, forêts et autres milieux semi-naturels et naturels devenus des surfaces urbaines et des espaces artificialisés) et le taux de croissance démographique\n\nLa consommation de l'espace/artificialisation des sols est calculé comme ceci : \nPour les villes de l'atlas urbain :\nL'indicateur est actuellement calculé d'après le projet Corine Land Cover 2000 et 2006 cartographié à partir de l'imagerie des satellites Landsat et SPOT. Les changements des terres agricoles (CLC classe 2xx), de la forêt et des milieux semi-naturels/naturels (CLC classe 3xx), des zones humides (CLC classe 4xx), des surfaces en eau (CLC 5xx) ou des zones urbaines (CLC classe 1xx) sont groupés selon la méthodologie des comptes d'occupation des sols.\nAfin d'être plus précis, l'atlas urbain combine actuellement les données CLC avec des ensembles de données haute résolution similaires à celles de l'atlas.\nPour les villes de l'atlas non urbain :\nCartographie haute résolution avec classes d'utilisation du sol : la résolution de l'atlas urbain est recommandée\n\n\nLa croissance démographique est issue des données du recensement.",null,null,null,null,"% de surface",null,null,null,null,"x",null,null,"x","Atlas Corine Land Cover","Données de recensement",null,null,null,"x",null,null,null,null,null,null,null,null,null,null,null,null,null,null,null,null,null,null,null,null,null,null,null,null,null,null,null,null,null,null,null,null,null,null,null,null,null,null,null,null,null,null,null,null,null,null,null,null,"x"]
[188,"Consommation en eau potable par habitant sur le territoire","Consommation annuelle d'eau potable par habitant",null,"Résultat","Cet indicateur mesure les mètres cubes de consommation urbaine d'eau potable, par personne sur une année. Il inclut l'eau destinée à: \n· un usage domestique ;\n· un usage industriel ;\n· le secteur de la construction ;\n· les services de vente aux détails ;\n· l'entretien des espaces publics ;\n· la perte d'eau dans les conduits\nL'eau de recyclage, essentiellement utilisée pour l'entretien des espaces publics et des espaces verts, n'est pas comptabilisée dans l'indicateur.\nL'utilisation industrielle est prise en compte. La consommation d'eau par les industries peut être précisée pour information. L'utilisation agricole n'est pas prise en compte. Elle peut également être précisée pour information.\nLa consommation d'eau doit être connue par les services de la ville. Si tel n'est pas le cas, prendre contact avec le distributeur."," ","Avec utilisation industrielle","Avec utilisation agricole",null,null,"m3/habitant/an",null,null,null,null,"x",null,"x","x","Direction de l'eau de la Métropole","Syndicat des eaux",null,null,null,"x",null,"PLUI Bordeaux",null,null,null,null,null,null,null,null,null,null,null,null,null,null,null,null,null,null,null,null,null,null,null,null,null,null,null,null,null,null,null,null,null,null,null,null,null,null,null,null,null,null,null,null,null,null,null,null,"x"]
[189,"Consommation énergétique du territoire","Consommation énergétique du territoire exprimée en énergie finale",null,"Résultat","L'énergie finale est l'énergie livrée aux consommateurs pour être convertie en énergie utile.\nLa consommation d'énergie finale peut être détaillée par secteur (Secteur énergie, Résidentiel, Tertiaire, Transport, Industrie et gestion des déchets, Agriculture, sylviculture et aquaculture) ou par produit énergétique (Combustibles Minéraux Solides, Produits Pétroliers, Gaz, Electricité, ENRt). ","\nLe ministère de l'environnement, de l'énergie et de la mer met à disposition des données locales d'énergie. Elles sont disponibles à ce lien : https://www.data.gouv.fr/fr/datasets/donnees-locales-denergie/\n\nLes données couvrent la France métropolitaine et les DOM (Guadeloupe, Martinique, Guyane, Réunion et Mayotte). Toutefois, à ce jour, les données pour les produits pétroliers ne couvrent que la France métropolitaine.",null,null,null,null,"GWhEF/an",null,null,null,null,"x",null,"x","x","Données locales d'énergie (Ministère)",null,null,null,null,null,null,"PCAET",null,null,null,null,null,null,null,null,null,null,null,null,null,null,null,null,null,null,null,null,null,null,null,null,null,null,null,null,null,null,null,null,null,null,null,null,null,null,null,null,null,null,null,"x"]
[190,"Dépassement des limites d'émission de polluants atmosphériques","Nombre de jours où la limite des émissions de polluants dans l'air définie par les directives européennes sur la qualité de l'air est dépassée (PM10, O3, NO2)",null,"Impact","Cet indicateur comptabilise le nombre de jours par an enregistrés avec une mauvaise qualité de l'air, dans les limites prévues par les réglementations européennes.\n\nLes directives 2008/50/CE et 2004/107/CE de l'UE préconisent la surveillance obligatoire de 15 polluants, ainsi que la préservation de la qualité de l'air ou la réduction de la pollution atmosphérique, le cas échéant. Les villes disposent de nombreux leviers d'action pour réduire la pollution atmosphérique en partenariat avec d'autres niveaux de gouvernance. Dans le cas d'alertes ou de crises en matière de pollution atmosphérique, des mesures spécifiques comme la gratuité des transports publics, les restrictions de circulation, les péages urbains et les zones à faibles émissions de CO2 peuvent être mises en œuvre par les gouvernements locaux. Les mesures en matière de pollution dans les maisons incluent la sensibilisation des citoyens et le traitement des sources de pollution dans les bâtiments publics, notamment les écoles et les crèches. Sur le long terme, la réduction de tous les types de pollution inclut des mesures communes en termes d'atténuation du changement climatique, de renaturation des villes et de mobilité durable.\nLa pollution de l'eau, y compris les nappes phréatiques, et des sols, résulte de sources agricoles, urbaines et industrielles diffuses ainsi que de la pollution atmosphérique. En ce qui concerne la pollution des sols, le nombre de parcelles de terre contaminées en Europe est estimé à 340 000, la plupart d'entre elles n'ayant pas encore été identifiées. Les sites pollués orphelins nécessitent des mesures spécifiques de la part des villes pour permettre la réhabilitation de terres à des fins de réaménagement urbain ainsi que pour faciliter l'accès aux mécanismes de financement. La réduction de la pollution concerne également la pollution sonore qui est susceptible de menacer la qualité de vie dans les villes.\n","L'indicateur doit prendre en compte les différents seuils d'émissions des polluants : \n\nPM10, Matière particulaire, seuil d'évaluation minimal\nMoyenne sur 24 heures PM10\n50 % de la valeur limite (25 μg/m3, à ne pas dépasser plus de trente-cinq fois par année civile)\nMoyenne annuelle PM10\n50 % de la valeur limite (20 μg/m3)\n\nNO2, dioxyde d'azote, seuil d'évaluation minimal\nValeur limite par heure pour la protection de la santé humaine (NO2)\n50 % de la valeur limite (100 μg/m3, à ne pas dépasser plus de dix-huit fois par année civile)\nValeur limite annuelle pour la protection de la santé humaine (NO2)\n65 % de la valeur limite (26 μg/m3)\n\nO3, Ozone\nMaximum journalier de la moyenne sur 8 heures, 120 μg/m3\n(à ne pas dépasser plus de vingt-cinq fois par année civile sur une moyenne de trois années)","PM10","NO2","O3",null,"Nombre de jours par an",null,null,null,null,"x",null,null,"x","Agences de la qualité de l'air",null,null,null,null,"x",null,null,null,null,null,null,null,null,null,null,null,null,null,null,null,null,null,null,null,null,null,null,null,null,null,null,null,null,null,null,null,null,null,null,null,null,null,null,null,null,null,null,null,null,null,null,"x"]
[191,"Emissions de gaz à effet de serre du territoire","Nombre de tonnes de gaz à effet de serre en equivalent CO2 par habitant",null,"Impact","Cet indicateur vise à mesurer les efforts du territoire pour réduire ses émissions de gaz à effet de serre (GES) et atténuer le changement climatique.","L'indicateur se calcule ainsi : \n-        Numérateur : nombre de tonnes équivalent CO2 calculé à partir des bilans de gaz à effet de serre rendus obligatoires par l’article 75 de la loi n° 2010-788 du 12 juillet 2010 portant engagement national pour l’environnement (ENE) pour les collectivités de plus de 50 000 habitants. Comme il est recommandé dans le guide méthodologique du MEDDTL relatif à la réalisation des bilans d’émission de gaz à effet de serre des collectivités , les porteurs de projets retiendront, pour renseigner cet indicateur, une approche territoriale (non réduite aux patrimoine et compétences de l’EPCI) et prendront en compte les émissions directes et indirectes (catégories 1 à 2 ). Les émissions sur le territoire liées aux circulations de transit (véhicules terrestres et aériens) pourront être exclues du numérateur. Dans cette hypothèse, le niveau d’émission retiré et ses modalités de calcul devront être indiqués dans la colonne « Commentaires ». En tout état de cause, la méthodologie retenue devra être stable dans la durée.\n-        Dénominateur : somme des populations municipales du territoire. \n","Avec les émissions liées aux circulations de transit","Sans les émissions liées aux circulations de transit",null,null,"Tonnes équivalent CO2/an","Tonnes équivalent CO2 / an / habitant",null,null,null,"x",null,null,"x","ADEME",null,null,null,null,null,"EcoCité générique IMP 2",null,null,null,null,null,null,null,null,null,null,null,null,null,null,null,null,null,null,null,null,null,null,null,null,null,null,null,null,null,null,null,null,null,null,null,null,null,null,null,null,null,null,null,null,"x"]
[192,"Emissions de polluants atmosphériques sur le territoire","Quantité de polluants rejetés dans l'atmosphère sur le territoire",null,"Impact","La liste des polluants atmosphériques à prendre en compte en application de l’article R. 229-52 sont les oxydes d’azote (NOx), les particules PM10, PM2,5 et les composés organiques volatils (COV), définis aux alinéas 15 à 18 de l’article R. 221-1, ainsi que le dioxyde de soufre (SO2) et l’ammoniac (NH3).",null,"NOx","PM10, PM 2,5, COV","SO2","NH3","μg/m3",null,null,null,null,"x",null,null,"x","Fédération des associations de surveillance de la qualité de l'air","Relevé de capteurs spécifiques mis en place",null,null,null,null,null,"PCAET",null,null,null,null,null,null,null,null,null,null,null,null,null,null,null,null,null,null,null,null,null,null,null,null,null,null,null,null,null,null,null,null,null,null,null,null,null,null,null,null,null,null,null,null,"x"]
[193,"Emplois \"verts\"","Part des emplois dans les secteurs de l’économie circulaire, de l’environnement et du développement durable ",null,"Impact","Le PNUE (Programme des Nations Unies pour l'Environnement\") définit un emploi vert comme un emploi (dans l’agriculture, l’industrie, les services et l’administration...) qui contribue à la préservation ou au rétablissement de la qualité de l’environnement. Plus précisément, mais pas exclusivement, cela comprend des emplois qui aident à protéger les écosystèmes et la biodiversité, à réduire les consommations d'énergie, de matériaux et d'eau grâce à des stratégies à haut rendement, à décarboniser l'économie et minimiser ou éviter la production de toutes les formes de déchets et de pollution.","Il s'agit du ratio entre le nombre d'emplois \"verts\" et le nombre total d'emplois au sein d'un périmètre donnée.",null,null,null,null,"Nombre d'emplois verts","% en emplois",null,null,null,"x",null,"x","x","INSEE, Chambre de Commerce",null,null,"x",null,null,null,null,null,null,null,null,null,null,null,null,null,null,null,null,null,null,null,null,null,null,null,null,null,null,null,null,null,null,null,null,null,null,null,null,null,null,null,"x"]
[194,"Exposition au bruit sur le territoire","Cartographie des nuisances sonores sur le territoire",null,"Impact","Cet indicateur territorial est utilisé dans les cartes de bruit. Il permet d’analyser finement les nuisances sonores sur le territoire. ","L'indicateur se calcule ainsi : « Population exposée en nombre d'habitants/population totale du territoire en nombre d'habitants pour chaque tranche d'exposition de 5dBA à partir de 55dB (A)» (source : CSTB, IMBE, 2011) .\nSon renseignement est basé de préférence sur des mesures, le cas échéant sur des simulations.\n","Possibilité de décomposer par source de bruit (routier, ferroviaire, aérien et industrie)",null,null,null,"%  de population\n\n(pour chaque classe de niveaux de bruit)",null,null,null,null,"x","Commune",null,"x","Cartes de bruit",null,null,null,null,null,null,"Dispositif réglementaire",null,null,null,null,null,null,null,null,null,null,null,null,null,null,null,null,null,null,null,null,null,null,null,null,null,null,null,null,null,null,null,null,null,null,null,null,null,null,"X"]
[195,"Nouvelles entreprises enregistrées","Nombre d'entreprises nouvelles pour 100 000 habitants",null,"Impact","Le nombre d'entreprises peut indiquer le niveau d'activité économique et de performance économique d'une ville. Une forte activité entrepreneuriale est étroitement associée à une économie dynamique et en pleine croissance. Le nombre d'entreprises est également utilisé pour informer la compétitivité d'une ville. (ISO / DIS 37120, 2013).\nCet indicateur évalue le nombre de nouvelles entreprises créées (y compris les start-up). ","L'indicateur se calcule ainsi : \n(Nombre d'entreprises nouvellement créées par an / Nombre total d'habitants) x 100 000 habitants",null,null,null,null,"Nombre d'entreprises","Nombre d'entreprises / 100 000 habitants",null,null,null,"x",null,"x","x","Chambre du commerce",null,null,"x",null,null,null,null,null,null,null,null,null,null,null,null,null,null,null,null,null,null,null,null,null,null,null,null,null,null,null,null,null,null,null,null,null,null,null,null,null,null,null,"x"]
[196,"Production de déchets sur le territoire","Production annuelle d'ordures ménagères et assimiliées par habitant",null,"Impact","La quantité d'ordures ménagères et assimilées correspond aux déchets collectés par les autorités municipales ou pour leur compte et éliminés dans le cadre du système de gestion des déchets. Ces déchets municipaux sont principalement produits par les ménages, cependant les déchets similaires en provenance, par exemple, des commerces, des bureaux et des institutions publiques (écoles, hôpitaux, bâtiments administratifs...) sont inclus.\n\nSelon le questionnaire commun OECD/Eurostat les déchets municipaux comprennent les catégories suivantes de matériaux : le papier, le carton et les produits dérivés du papier, les plastiques, le verre, les métaux, les déchets de cuisine et du jardin et les textiles. \nLa définition comprend également :\n• Les encombrants (par ex : l'électroménager, les vieux meubles, les matelas) ; et\n• Les déchets du jardin, les feuilles, l'herbe coupée, le contenu du balayage des chaussées, les détritus des poubelles de rue et du nettoyage de marchés, si gérés en tant que déchets.\n• Des déchets de services municipaux sélectionnés, à savoir de l'entretien des parcs et des jardins, des services de nettoyage des rues (balayage des rues, détritus des poubelles publiques et du nettoyage des marchés), si gérés en tant que déchets.\n\nLa définition ne comprend pas :\n• Les déchets de traitement et du réseau des eaux d'égouts municipaux,\n• les déchets de construction et de démolition municipaux.\n","L'indicateur se calcule ainsi : \nQuantité totale  de déchets produite par année lors de l'occupation du bâtiment (kg de déchets) / nombre d'habitants","Ordures Ménagères Résiduelles","Recyclables","Verre","Atres : encombrants, déchets verts...","Tonne/habitant/an",null,null,null,null,"x",null,"x","x","Eurostat",null,null,null,null,"x",null,null,null,null,null,null,null,null,null,null,null,null,null,null,null,null,null,null,null,null,null,null,null,null,null,null,null,null,null,null,null,null,null,null,null,null,null,null,null,null,null,null,null,null,null,null,null,null,null,"x"]
[197,"Satisfaction des habitants et usagers sur le territoire","Niveau de satisfaction des habitants et usagers vis-vis des aménités, équipements et/ou services proposés par le projet",null,"Impact","L'indicateur vise à déterminer la proportion de personnes qui sont satisfaites des espaces publics, des équipements ou des services proposés par le projet visé par l’évaluation.","L’indicateur est basé sur les résultats d’une enquête à conduire auprès des habitants et usagers sur leur perception de la qualité des espaces publics, de l’équipement ou du service. La formulation peut s’inspirer de l’exemple suivant : « De manière générale, pouvez-vous me dire si vous êtes très satisfait, plutôt satisfait, plutôt insatisfait, ou pas du tout satisfait avec chacune des questions suivantes liées au projet [a, b ou c] » ?\nIl est souhaitable de proposer une ventilation pour chaque type d’action pris en compte et d'ajouter des questions spécifiques pour chacune d'entre elles.","Variable selon la nature de l'action et la portée de l'enquête",null,null,null,"% de personnes interrogées",null,null,"x",null,null,null,null,"x","Enquête  à mener auprès des habitants et usagers",null,null,null,null,"x",null,null,null,"x","x","x","x","x",null,null,"x","x","x","x","x","x","x","x","x","x","x","x","x","x","x","x","x","x","x","x","x","x","x","x","x","x","x",null,null,"x",null,null,null,null,null,null,null,null,null,null,null,"x"]

{"sheet":"Etiquettes","index":2,"n_rows":35,"n_cols":4,"rows_kept":35,"cut":false,"hidden":false,"merged":[]}
["Axe d'intervention","Domaine d'action","Finalités ISO","Objectif RFSC (14, pour les actions)"]
["Services urbains","Gestion de l'eau et de l'assainissement","Attractivité","Renforcer l'emploi et l'économie locale"]
[null,"Collecte, valorisation et traitement des déchets",null,"Assurer la connectivité et l'accès aux aménités sur le territoire"]
[null,"Monitoring, données et modélisation urbaine","Bien-être","Promouvoir la qualité des aménités, des espaces publics et du cadre de vie"]
[null,"Eclairage public",null,"Favoriser la santé et le bien-être"]
["Energie et réseaux","Réseaux et smart grid","Cohésion sociale","Garantir l’équité sociale et inter-générationnelle"]
[null,"Production d’énergie ",null,"Garantir l’intégration socio-économique"]
[null,"Stockage de l’énergie","Résilience","Encourager la résilience des territoires et s'adapter aux effets du changement climatique"]
["Mobilités","Transports en commun",null,"Assurer la résilience et l'efficience économique du projet"]
[null,"Service d'aide à la mobilité","Préservation de l'environnement","Réduire les émissions de gaz à effet de serre et économiser l'énergie\n"]
[null,"Pôle intermodal",null,"Réduire la pollution"]
[null,"Véhicules individuels motorisés",null,"Protéger, restaurer et valoriser la biodiversité et les écosystèmes"]
[null,"Logistique urbaine","Usage responsable des ressources","Maîtriser les ressources foncières"]
[null,"Modes actifs",null,"Gérer les ressources naturelles de façon durable et diminuer la production de déchets"]
[null,"Stationnement ",null,"Protéger, préserver et gérer les ressources en eau"]
["Bâtiments et usages","Construction"]
[null,"Rénovation"]
[null,"Exploitation dans les bâtiments"]
[null,"Instrumentation et suivi de performance"]
["Conception urbaine et environnement","Aménagement des espaces publics"]
[null,"Trame viaire et trame bâtie"]
[null,"Espaces Verts, Milieux naturels et aquatiques"]
[null,"Agriculture urbaine"]
[null,"Gestion des sols et des déblais"," "]
[null,"Gestion des risques"]
["Equipements et services au public","Education, sensibilisation et formation"]
[null,"Culture, loisirs et patrimoine"]
[null,"Service de santé et de soins"]
[null,"Application numérique et site web"]
[null,"Conciergerie"]
[null,"Espaces de vivre ensemble"]
["Economie durable et de la connaissance","Economie circulaire"]
[null,"Economie sociale et solidaire"]
[null,"Economie collaborative"]
[null,"Incubateurs et clusters de R&D"]